Supplier Id,Invoice Id,Supplier Name,Date Paid,Subjective Code,Subjective Name,Service Area,Cost Centre Desc,Spend Exc VAT
213906,5592656,BOLTON COMMUNITY RADIO CIC#BOLTON FM CIC,05/09/2018,48200,Advertising General,Environmental Services,Markets  Rent Account,670.00
125827,5566377,ELEVEN SPORTS MEDIA,13/09/2018,48200,Advertising General,Environmental Services,Markets  Rent Account,965.24
125827,5563087,ELEVEN SPORTS MEDIA,17/09/2018,48200,Advertising General,Environmental Services,Markets  Rent Account,"1,000.00"
2613325,5567122,Newsquest Media Group,10/09/2018,48200,Advertising General,Environmental Services,Highway Management,850.26
2613325,5556883,Newsquest Media Group,10/09/2018,48200,Advertising General,Environmental Services,Highway Management,"1,017.41"
125827,5562856,PAYPAL PAMS ASSESS,05/09/2018,48200,Advertising General,Childrens Services,WPD Project Link,625.00
3388759,5592649,UK Theatres Online Ltd,05/09/2018,48200,Advertising General,Environmental Services,Markets  Rent Account,540.00
2457290,5555513,AXCIS EDUCATION RECRUITMENT,27/09/2018,53100,Agency Staff  Fulltime,Childrens Services,Early Intervention Team,675.00
2457290,5570177,AXCIS EDUCATION RECRUITMENT,06/09/2018,53100,Agency Staff  Fulltime,Childrens Services,Early Intervention Team,675.00
204318,5569452,WILDE CONSULTANTS LTD,05/09/2018,53100,Agency Staff  Fulltime,Environmental Services,Highway Management,"3,400.16"
204318,5567814,WILDE CONSULTANTS LTD,05/09/2018,53100,Agency Staff  Fulltime,Environmental Services,Highway Management,"5,031.00"
6111,5558674,BADENOCH & CLARK,20/09/2018,53102,Agency Staff  Other,Childrens Services,Integrated Commissioning,"3,648.32"
4167967,5567116,Baltimore Consulting Ltd,05/09/2018,53102,Agency Staff  Other,Childrens Services,Integrated Commissioning,"10,800.00"
3041384,5558699,Duval FM Limited,06/09/2018,53102,Agency Staff  Other,Environmental Services,Security Services,"5,130.65"
220061,5556789,GATENBYSANDERSON,24/09/2018,53102,Agency Staff  Other,Environmental Services,DMT,"4,060.00"
220061,5570377,GATENBYSANDERSON,13/09/2018,53102,Agency Staff  Other,Environmental Services,DMT,"4,060.00"
220061,5567118,GATENBYSANDERSON,05/09/2018,53102,Agency Staff  Other,Environmental Services,DMT,"8,120.00"
3398627,5570212,Greengrape Solutions,17/09/2018,53102,Agency Staff  Other,Development & Regeneration,The Work Programme,562.50
3398627,5559439,Greengrape Solutions,10/09/2018,53102,Agency Staff  Other,Development & Regeneration,The Work Programme,693.75
3398627,5569840,Greengrape Solutions,05/09/2018,53102,Agency Staff  Other,Development & Regeneration,The Work Programme,693.75
3398627,5591436,Greengrape Solutions,27/09/2018,53102,Agency Staff  Other,Development & Regeneration,The Work Programme,693.75
3398627,5556772,Greengrape Solutions,17/09/2018,53102,Agency Staff  Other,Development & Regeneration,The Work Programme,"2,081.25"
3398627,5569840,Greengrape Solutions,20/09/2018,53102,Agency Staff  Other,Development & Regeneration,Skills For Employment,562.50
3398627,5570212,Greengrape Solutions,05/09/2018,53102,Agency Staff  Other,Development & Regeneration,Skills For Employment,562.50
3398627,5556772,Greengrape Solutions,17/09/2018,53102,Agency Staff  Other,Development & Regeneration,Skills For Employment,693.75
3398627,5559439,Greengrape Solutions,13/09/2018,53102,Agency Staff  Other,Development & Regeneration,Skills For Employment,693.75
3398627,5591436,Greengrape Solutions,17/09/2018,53102,Agency Staff  Other,Development & Regeneration,Skills For Employment,693.75
3470643,5557154,Labmed#Maxxima Ltd,13/09/2018,53102,Agency Staff  Other,Adult Services,LD Health Teams,996.60
2729460,5573920,Proactive Personnel Ltd,17/09/2018,53102,Agency Staff  Other,Environmental Services,Transport Support Service,"1,433.56"
2729460,5573919,Proactive Personnel Ltd,17/09/2018,53102,Agency Staff  Other,Environmental Services,Transport Support Service,"1,672.49"
2729460,5573917,Proactive Personnel Ltd,05/09/2018,53102,Agency Staff  Other,Environmental Services,Transport Support Service,"1,911.42"
3071459,5570407,Profile Security Services Ltd,05/09/2018,53102,Agency Staff  Other,Environmental Services,Security Services,517.92
3071459,5570396,Profile Security Services Ltd,17/09/2018,53102,Agency Staff  Other,Environmental Services,Security Services,517.92
3071459,5572453,Profile Security Services Ltd,05/09/2018,53102,Agency Staff  Other,Environmental Services,Security Services,517.92
3071459,5572458,Profile Security Services Ltd,13/09/2018,53102,Agency Staff  Other,Environmental Services,Security Services,604.24
3071459,5570399,Profile Security Services Ltd,17/09/2018,53102,Agency Staff  Other,Environmental Services,Security Services,647.40
3071459,5570393,Profile Security Services Ltd,17/09/2018,53102,Agency Staff  Other,Environmental Services,Security Services,647.40
3071459,5572460,Profile Security Services Ltd,10/09/2018,53102,Agency Staff  Other,Environmental Services,Security Services,647.40
3071459,5572455,Profile Security Services Ltd,17/09/2018,53102,Agency Staff  Other,Environmental Services,Security Services,712.14
3071459,5570404,Profile Security Services Ltd,05/09/2018,53102,Agency Staff  Other,Environmental Services,Security Services,"1,014.26"
3071459,5572465,Profile Security Services Ltd,13/09/2018,53102,Agency Staff  Other,Environmental Services,Security Services,"1,149.50"
3071459,5572452,Profile Security Services Ltd,10/09/2018,53102,Agency Staff  Other,Environmental Services,Security Services,"1,294.80"
3071459,5570401,Profile Security Services Ltd,10/09/2018,53102,Agency Staff  Other,Environmental Services,Security Services,"1,402.70"
3071459,5572457,Profile Security Services Ltd,17/09/2018,53102,Agency Staff  Other,Environmental Services,Security Services,"1,424.28"
3071459,5570387,Profile Security Services Ltd,24/09/2018,53102,Agency Staff  Other,Environmental Services,Security Services,"1,719.03"
3071459,5570392,Profile Security Services Ltd,13/09/2018,53102,Agency Staff  Other,Environmental Services,Security Services,"1,724.25"
3071459,5570389,Profile Security Services Ltd,13/09/2018,53102,Agency Staff  Other,Environmental Services,Security Services,"1,938.48"
3071459,5572466,Profile Security Services Ltd,13/09/2018,53102,Agency Staff  Other,Environmental Services,Security Services,"2,006.40"
3490653,5567457,Reed Specialist Recruitment Ltd,13/09/2018,53102,Agency Staff  Other,Adult Services,MH North Fieldwork Team,825.84
3490653,5573436,Reed Specialist Recruitment Ltd,20/09/2018,53102,Agency Staff  Other,Adult Services,MH North Fieldwork Team,"1,018.54"
3490653,5557216,Reed Specialist Recruitment Ltd,20/09/2018,53102,Agency Staff  Other,Adult Services,MH North Fieldwork Team,"1,018.54"
3490653,5567457,Reed Specialist Recruitment Ltd,20/09/2018,53102,Agency Staff  Other,Adult Services,MH Early Intervention Team,730.17
3490653,5573436,Reed Specialist Recruitment Ltd,27/09/2018,53102,Agency Staff  Other,Adult Services,MH Early Intervention Team,912.72
3490653,5557216,Reed Specialist Recruitment Ltd,13/09/2018,53102,Agency Staff  Other,Adult Services,MH Early Intervention Team,"1,533.36"
3490653,5567457,Reed Specialist Recruitment Ltd,20/09/2018,53102,Agency Staff  Other,Adult Services,ICES,587.66
3490653,5573436,Reed Specialist Recruitment Ltd,24/09/2018,53102,Agency Staff  Other,Adult Services,ICES,714.37
3490653,5567457,Reed Specialist Recruitment Ltd,17/09/2018,53102,Agency Staff  Other,Adult Services,Safeguarding,776.58
3490653,5573436,Reed Specialist Recruitment Ltd,10/09/2018,53102,Agency Staff  Other,Adult Services,Safeguarding,897.92
3490653,5557216,Reed Specialist Recruitment Ltd,06/09/2018,53102,Agency Staff  Other,Adult Services,Safeguarding,897.92
3490653,5567457,Reed Specialist Recruitment Ltd,17/09/2018,53102,Agency Staff  Other,Adult Services,Districts & Neighbourhoods - HoS,880.90
3490653,5557216,Reed Specialist Recruitment Ltd,06/09/2018,53102,Agency Staff  Other,Adult Services,Districts & Neighbourhoods - HoS,977.24
3490653,5573436,Reed Specialist Recruitment Ltd,24/09/2018,53102,Agency Staff  Other,Adult Services,Districts & Neighbourhoods - HoS,"1,089.66"
3490653,5573436,Reed Specialist Recruitment Ltd,24/09/2018,53102,Agency Staff  Other,Adult Services,Adult ACM - South,728.04
3490653,5557216,Reed Specialist Recruitment Ltd,13/09/2018,53102,Agency Staff  Other,Adult Services,Adult ACM - South,728.04
3490653,5567457,Reed Specialist Recruitment Ltd,24/09/2018,53102,Agency Staff  Other,Adult Services,Adult ACM - South,728.04
3490653,5557216,Reed Specialist Recruitment Ltd,27/09/2018,53102,Agency Staff  Other,Adult Services,Darley Court,508.47
3490653,5573436,Reed Specialist Recruitment Ltd,05/09/2018,53102,Agency Staff  Other,Adult Services,Darley Court,883.20
3490653,5567457,Reed Specialist Recruitment Ltd,10/09/2018,53102,Agency Staff  Other,Adult Services,Darley Court,"1,129.77"
3490653,5567457,Reed Specialist Recruitment Ltd,24/09/2018,53102,Agency Staff  Other,Adult Services,Laburnum Lodge,534.78
3490653,5567457,Reed Specialist Recruitment Ltd,24/09/2018,53102,Agency Staff  Other,Chief Executives,Legal Services Trading Account,"1,912.61"
3490653,5573436,Reed Specialist Recruitment Ltd,17/09/2018,53102,Agency Staff  Other,Chief Executives,Legal Services Trading Account,"3,310.18"
3490653,5557216,Reed Specialist Recruitment Ltd,05/09/2018,53102,Agency Staff  Other,Chief Executives,Legal Services Trading Account,"3,846.81"
3490653,5573436,Reed Specialist Recruitment Ltd,24/09/2018,53102,Agency Staff  Other,Chief Executives,HR - Adults and Community Services,609.24
3490653,5557216,Reed Specialist Recruitment Ltd,24/09/2018,53102,Agency Staff  Other,Chief Executives,HR - Adults and Community Services,609.24
3490653,5567457,Reed Specialist Recruitment Ltd,05/09/2018,53102,Agency Staff  Other,Chief Executives,Organisational Development,627.93
3490653,5573436,Reed Specialist Recruitment Ltd,13/09/2018,53102,Agency Staff  Other,Chief Executives,Organisational Development,738.63
3490653,5567457,Reed Specialist Recruitment Ltd,03/09/2018,53102,Agency Staff  Other,Chief Executives,Health and Safety,556.89
3490653,5573436,Reed Specialist Recruitment Ltd,27/09/2018,53102,Agency Staff  Other,Chief Executives,Health and Safety,698.49
3490653,5557216,Reed Specialist Recruitment Ltd,12/09/2018,53102,Agency Staff  Other,Chief Executives,Health and Safety,698.49
3490653,5573436,Reed Specialist Recruitment Ltd,06/09/2018,53102,Agency Staff  Other,Chief Executives,Marketing Agency,565.95
3490653,5567457,Reed Specialist Recruitment Ltd,05/09/2018,53102,Agency Staff  Other,Chief Executives,Marketing Agency,"1,035.44"
3490653,5557216,Reed Specialist Recruitment Ltd,05/09/2018,53102,Agency Staff  Other,Chief Executives,Marketing Agency,"1,131.90"
3490653,5567457,Reed Specialist Recruitment Ltd,05/09/2018,53102,Agency Staff  Other,Chief Executives,Business Support,"1,516.64"
3490653,5557216,Reed Specialist Recruitment Ltd,05/09/2018,53102,Agency Staff  Other,Chief Executives,Business Support,"3,694.85"
3490653,5573436,Reed Specialist Recruitment Ltd,05/09/2018,53102,Agency Staff  Other,Chief Executives,Business Support,"5,383.30"
3490653,5557216,Reed Specialist Recruitment Ltd,05/09/2018,53102,Agency Staff  Other,Chief Executives,Operational Facilities Management,678.85
3490653,5573436,Reed Specialist Recruitment Ltd,05/09/2018,53102,Agency Staff  Other,Chief Executives,Operational Facilities Management,"1,328.81"
3490653,5567457,Reed Specialist Recruitment Ltd,05/09/2018,53102,Agency Staff  Other,Chief Executives,Projects,533.71
3490653,5573436,Reed Specialist Recruitment Ltd,05/09/2018,53102,Agency Staff  Other,Chief Executives,Projects,711.62
3490653,5557216,Reed Specialist Recruitment Ltd,05/09/2018,53102,Agency Staff  Other,Chief Executives,Projects,711.62
3490653,5567457,Reed Specialist Recruitment Ltd,05/09/2018,53102,Agency Staff  Other,Chief Executives,Financial Management,622.42
3490653,5573436,Reed Specialist Recruitment Ltd,05/09/2018,53102,Agency Staff  Other,Chief Executives,Financial Management,742.89
3490653,5567457,Reed Specialist Recruitment Ltd,05/09/2018,53102,Agency Staff  Other,Chief Executives,C.R.M. Operations,"2,187.21"
3490653,5557216,Reed Specialist Recruitment Ltd,05/09/2018,53102,Agency Staff  Other,Chief Executives,C.R.M. Operations,"2,714.85"
3490653,5573436,Reed Specialist Recruitment Ltd,05/09/2018,53102,Agency Staff  Other,Chief Executives,C.R.M. Operations,"2,737.65"
3490653,5573436,Reed Specialist Recruitment Ltd,24/09/2018,53102,Agency Staff  Other,Childrens Services,Children and Family Supp Svs West,"1,222.18"
3490653,5567457,Reed Specialist Recruitment Ltd,27/09/2018,53102,Agency Staff  Other,Childrens Services,Quality & inclusion,616.37
3490653,5567457,Reed Specialist Recruitment Ltd,13/09/2018,53102,Agency Staff  Other,Childrens Services,Targeted Youth Support,591.55
3490653,5557216,Reed Specialist Recruitment Ltd,20/09/2018,53102,Agency Staff  Other,Childrens Services,Targeted Youth Support,653.35
3490653,5557216,Reed Specialist Recruitment Ltd,20/09/2018,53102,Agency Staff  Other,Childrens Services,Res Serv Resource Mgmt Team,"1,020.19"
3490653,5567457,Reed Specialist Recruitment Ltd,05/09/2018,53102,Agency Staff  Other,Childrens Services,Res Serv Resource Mgmt Team,"1,020.19"
3490653,5557216,Reed Specialist Recruitment Ltd,05/09/2018,53102,Agency Staff  Other,Childrens Services,Conference and Reviewing,"1,387.80"
3490653,5567457,Reed Specialist Recruitment Ltd,27/09/2018,53102,Agency Staff  Other,Childrens Services,Conference and Reviewing,"1,765.42"
3490653,5573436,Reed Specialist Recruitment Ltd,17/09/2018,53102,Agency Staff  Other,Childrens Services,Conference and Reviewing,"3,530.84"
3490653,5567457,Reed Specialist Recruitment Ltd,27/09/2018,53102,Agency Staff  Other,Childrens Services,Child Prot Leaving Care Team,592.55
3490653,5573436,Reed Specialist Recruitment Ltd,17/09/2018,53102,Agency Staff  Other,Childrens Services,Child Prot Leaving Care Team,671.54
3490653,5557216,Reed Specialist Recruitment Ltd,13/09/2018,53102,Agency Staff  Other,Childrens Services,Child Prot Leaving Care Team,730.81
3490653,5557216,Reed Specialist Recruitment Ltd,13/09/2018,53102,Agency Staff  Other,Childrens Services,Business Support  Children Social Care,503.24
3490653,5567457,Reed Specialist Recruitment Ltd,05/09/2018,53102,Agency Staff  Other,Childrens Services,Business Support    West District,513.95
3490653,5567457,Reed Specialist Recruitment Ltd,03/09/2018,53102,Agency Staff  Other,Childrens Services,Regional Adoption Agency (RAA),770.78
3490653,5573436,Reed Specialist Recruitment Ltd,17/09/2018,53102,Agency Staff  Other,Childrens Services,Regional Adoption Agency (RAA),963.48
3490653,5557216,Reed Specialist Recruitment Ltd,24/09/2018,53102,Agency Staff  Other,Childrens Services,FIAT,519.49
3490653,5557216,Reed Specialist Recruitment Ltd,20/09/2018,53102,Agency Staff  Other,Childrens Services,Integrated Commissioning,975.24
3490653,5573436,Reed Specialist Recruitment Ltd,06/09/2018,53102,Agency Staff  Other,Childrens Services,Integrated Commissioning,"1,202.80"
3490653,5567457,Reed Specialist Recruitment Ltd,24/09/2018,53102,Agency Staff  Other,Childrens Services,Referral & Assessment Team,770.78
3490653,5573436,Reed Specialist Recruitment Ltd,24/09/2018,53102,Agency Staff  Other,Childrens Services,Safeguarding Team,897.92
3490653,5567457,Reed Specialist Recruitment Ltd,27/09/2018,53102,Agency Staff  Other,Childrens Services,Safeguarding Team,"1,816.85"
3490653,5557216,Reed Specialist Recruitment Ltd,13/09/2018,53102,Agency Staff  Other,Childrens Services,Safeguarding Team,"2,935.00"
3490653,5557216,Reed Specialist Recruitment Ltd,05/09/2018,53102,Agency Staff  Other,Childrens Services,LAC Team,880.90
3490653,5573436,Reed Specialist Recruitment Ltd,10/09/2018,53102,Agency Staff  Other,Childrens Services,LAC Team,"2,037.08"
3490653,5567457,Reed Specialist Recruitment Ltd,20/09/2018,53102,Agency Staff  Other,Childrens Services,LAC Team,"6,042.40"
3490653,5573436,Reed Specialist Recruitment Ltd,10/09/2018,53102,Agency Staff  Other,Development & Regeneration,Divisional Development,510.27
3490653,5557216,Reed Specialist Recruitment Ltd,20/09/2018,53102,Agency Staff  Other,Development & Regeneration,Divisional Development,510.27
3490653,5557216,Reed Specialist Recruitment Ltd,24/09/2018,53102,Agency Staff  Other,Environmental Services,Waste,"1,508.61"
3490653,5567457,Reed Specialist Recruitment Ltd,17/09/2018,53102,Agency Staff  Other,Environmental Services,Waste,"1,651.29"
3490653,5573436,Reed Specialist Recruitment Ltd,20/09/2018,53102,Agency Staff  Other,Environmental Services,Waste,"9,454.20"
3490653,5573436,Reed Specialist Recruitment Ltd,20/09/2018,53102,Agency Staff  Other,Environmental Services,Trade Waste,657.59
3490653,5557216,Reed Specialist Recruitment Ltd,13/09/2018,53102,Agency Staff  Other,Environmental Services,Trade Waste,657.59
3490653,5557216,Reed Specialist Recruitment Ltd,20/09/2018,53102,Agency Staff  Other,Environmental Services,Regulatory Services,716.62
3490653,5567457,Reed Specialist Recruitment Ltd,17/09/2018,53102,Agency Staff  Other,Environmental Services,Regulatory Services,716.62
3490653,5557216,Reed Specialist Recruitment Ltd,17/09/2018,53102,Agency Staff  Other,Environmental Services,Activities and Operations,"2,440.68"
3490653,5573436,Reed Specialist Recruitment Ltd,17/09/2018,53102,Agency Staff  Other,Environmental Services,Activities and Operations,"5,842.34"
3490653,5567457,Reed Specialist Recruitment Ltd,10/09/2018,53102,Agency Staff  Other,Environmental Services,Activities and Operations,"9,661.08"
3490653,5567457,Reed Specialist Recruitment Ltd,10/09/2018,53102,Agency Staff  Other,Environmental Services,Bereavement Services,"7,066.85"
3490653,5573436,Reed Specialist Recruitment Ltd,24/09/2018,53102,Agency Staff  Other,Environmental Services,Civic Cleaning,577.31
3490653,5557216,Reed Specialist Recruitment Ltd,17/09/2018,53102,Agency Staff  Other,Environmental Services,Civic Cleaning,821.51
3490653,5567457,Reed Specialist Recruitment Ltd,10/09/2018,53102,Agency Staff  Other,Environmental Services,Civic Cleaning,"1,434.72"
3490653,5573436,Reed Specialist Recruitment Ltd,05/09/2018,53102,Agency Staff  Other,Environmental Services,Transport Support Service,"1,312.09"
3490653,5567457,Reed Specialist Recruitment Ltd,13/09/2018,53102,Agency Staff  Other,Environmental Services,Transport Support Service,"1,348.33"
3490653,5557216,Reed Specialist Recruitment Ltd,13/09/2018,53102,Agency Staff  Other,Environmental Services,Markets  Rent Account,567.89
3490653,5567457,Reed Specialist Recruitment Ltd,10/09/2018,53102,Agency Staff  Other,Environmental Services,Markets  Rent Account,"2,156.93"
3490653,5573436,Reed Specialist Recruitment Ltd,10/09/2018,53102,Agency Staff  Other,Environmental Services,Markets  Rent Account,"2,480.87"
3490653,5573436,Reed Specialist Recruitment Ltd,28/09/2018,53102,Agency Staff  Other,Environmental Services,Strategy & Service Development,614.58
3490653,5557216,Reed Specialist Recruitment Ltd,05/09/2018,53102,Agency Staff  Other,Environmental Services,Strategy & Service Development,614.58
3490653,5567457,Reed Specialist Recruitment Ltd,24/09/2018,53102,Agency Staff  Other,Environmental Services,Strategy & Service Development,614.58
3490653,5567457,Reed Specialist Recruitment Ltd,05/09/2018,53102,Agency Staff  Other,Housing GRF,Benjamin Court Accommodation,"1,191.74"
2932132,5589481,Silverback Events Ltd,17/09/2018,53102,Agency Staff  Other,Development & Regeneration,Marketing,818.80
2932132,5589484,Silverback Events Ltd,13/09/2018,53102,Agency Staff  Other,Development & Regeneration,Marketing,"1,639.20"
150827,5558457,URBAN VISION PARTNERSHIP LTD#GMGU,27/09/2018,53102,Agency Staff  Other,Development & Regeneration,Divisional Development,"3,840.00"
150827,5558455,URBAN VISION PARTNERSHIP LTD#GMGU,20/09/2018,53102,Agency Staff  Other,Development & Regeneration,Divisional Development,"5,145.00"
150827,5558456,URBAN VISION PARTNERSHIP LTD#GMGU,24/09/2018,53102,Agency Staff  Other,Development & Regeneration,Divisional Development,"5,473.90"
150827,5558458,URBAN VISION PARTNERSHIP LTD#GMGU,24/09/2018,53102,Agency Staff  Other,Development & Regeneration,Divisional Development,"6,270.00"
150827,5558428,URBAN VISION PARTNERSHIP LTD#GMGU,27/09/2018,53102,Agency Staff  Other,Development & Regeneration,Divisional Development,"7,173.10"
78998,5569637,Venn Group Ltd,05/09/2018,53102,Agency Staff  Other,Chief Executives,Corporate Information Team,762.88
78998,5568739,Venn Group Ltd,05/09/2018,53102,Agency Staff  Other,Chief Executives,Corporate Information Team,917.44
78998,5556906,Venn Group Ltd,17/09/2018,53102,Agency Staff  Other,Chief Executives,Corporate Information Team,989.44
78998,5556905,Venn Group Ltd,06/09/2018,53102,Agency Staff  Other,Chief Executives,Corporate Information Team,"1,547.01"
78998,5569633,Venn Group Ltd,20/09/2018,53102,Agency Staff  Other,Chief Executives,Corporate Information Team,"1,547.56"
78998,5568741,Venn Group Ltd,27/09/2018,53102,Agency Staff  Other,Chief Executives,Corporate Information Team,"1,548.11"
871655,5557795,AGILISYS LIMITED,05/09/2018,45616,Agilisys - Refreshed Assets,Chief Executives,FM Contract,"5,847.20"
51146,5595516,HM Revenue & Customs Only#Was Inland Revenue#2,27/09/2018,19410,Apprenticeship Levy,Financial Services,Miscellaneous Transactions,"75,520.00"
4883746,5592451,GLK Promotions,03/09/2018,48501,Artistes Fees,Environmental Services,Albert Halls  Operations,"3,480.75"
4530959,5558685,Joseph Purdy Productions Ltd,17/09/2018,48501,Artistes Fees,Environmental Services,Albert Halls  Operations,"22,967.97"
1434057,5567241,WIGAN PIER PROMOTIONS,13/09/2018,48501,Artistes Fees,Development & Regeneration,Marketing,550.00
1434057,5567245,WIGAN PIER PROMOTIONS,10/09/2018,48501,Artistes Fees,Development & Regeneration,Marketing,"1,250.00"
2615382,5568413,Askews & Holts Library Services Ltd,05/09/2018,40753,Book Fund Expenditure,Development & Regeneration,Libraries Info. Services,"1,315.78"
2615382,5564236,Askews & Holts Library Services Ltd,20/09/2018,40753,Book Fund Expenditure,Development & Regeneration,Libraries Info. Services,"1,604.64"
2615382,5555546,Askews & Holts Library Services Ltd,20/09/2018,40753,Book Fund Expenditure,Development & Regeneration,Libraries Info. Services,"1,935.80"
2615382,5579443,Askews & Holts Library Services Ltd,05/09/2018,40753,Book Fund Expenditure,Development & Regeneration,Libraries Info. Services,"2,289.86"
10490,5579445,MAGNA LARGE PRINT BOOKS,17/09/2018,40753,Book Fund Expenditure,Development & Regeneration,Libraries Info. Services,738.80
6553,5555545,PETERS LTD,13/09/2018,40753,Book Fund Expenditure,Development & Regeneration,Schools Library Services,"1,053.69"
6553,5579439,PETERS LTD,10/09/2018,40753,Book Fund Expenditure,Development & Regeneration,Libraries Info. Services,"2,474.85"
6553,5567649,PETERS LTD,24/09/2018,40753,Book Fund Expenditure,Development & Regeneration,Libraries Info. Services,"4,469.70"
49692,5555543,THE BOOK CENTRE,10/09/2018,40753,Book Fund Expenditure,Development & Regeneration,Libraries Info. Services,803.42
6742,5579446,ULVERSCROFT LARGE PRINT BOOKS LIMITED,17/09/2018,40753,Book Fund Expenditure,Development & Regeneration,Libraries Info. Services,738.80
6742,5567247,ULVERSCROFT LARGE PRINT BOOKS LIMITED,05/09/2018,40753,Book Fund Expenditure,Development & Regeneration,Libraries Info. Services,"15,061.97"
3275617,5592766,Reliance High-Tech Ltd,05/09/2018,25106,C.C.T.V.,Environmental Services,Security Services,"2,190.00"
2323,5572516,SERCO LEISURE OPERATING LTD#2,05/09/2018,25106,C.C.T.V.,Development & Regeneration,The Leisure Trust,"7,412.00"
9982,5589479,NATIONAL CAR PARKS LTD#NCP,05/09/2018,37100,Car Parking,Chief Executives,Car Parking,591.36
9982,5592467,NATIONAL CAR PARKS LTD#NCP,05/09/2018,37100,Car Parking,Chief Executives,Car Parking,"1,104.58"
6558,5559442,PHS GROUP PLC,05/09/2018,40108,Caretaking/Cleaning Equipment,Environmental Services,Civic Cleaning,945.00
6558,5559443,PHS GROUP PLC,05/09/2018,40108,Caretaking/Cleaning Equipment,Environmental Services,Civic Cleaning,950.00
3433633,5567352,Shorrock Trichem Limited - Powercare,05/09/2018,40108,Caretaking/Cleaning Equipment,Environmental Services,Civic Cleaning,699.00
8407,5570405,APETITO LTD,17/09/2018,41101,Catering ProvisionsFood,Adult Services,OA  Community Meals,723.94
8407,5559432,APETITO LTD,24/09/2018,41101,Catering ProvisionsFood,Adult Services,OA  Community Meals,817.65
8407,5592733,APETITO LTD,27/09/2018,41101,Catering ProvisionsFood,Adult Services,OA  Community Meals,843.52
8407,5557150,APETITO LTD,05/09/2018,41101,Catering ProvisionsFood,Adult Services,OA  Community Meals,847.11
8407,5556477,APETITO LTD,06/09/2018,41101,Catering ProvisionsFood,Adult Services,OA  Community Meals,959.14
8407,5569520,APETITO LTD,20/09/2018,41101,Catering ProvisionsFood,Adult Services,OA  Community Meals,982.51
8407,5556493,APETITO LTD,27/09/2018,41101,Catering ProvisionsFood,Adult Services,OA  Community Meals,"1,019.99"
8407,5567351,APETITO LTD,10/09/2018,41101,Catering ProvisionsFood,Adult Services,OA  Community Meals,"1,109.02"
8407,5592779,APETITO LTD,17/09/2018,41101,Catering ProvisionsFood,Adult Services,OA  Community Meals,"1,122.28"
8407,5559436,APETITO LTD,27/09/2018,41101,Catering ProvisionsFood,Adult Services,OA  Community Meals,"1,298.90"
8407,5568369,APETITO LTD,24/09/2018,41101,Catering ProvisionsFood,Adult Services,OA  Community Meals,"1,318.59"
8407,5556732,APETITO LTD,17/09/2018,41101,Catering ProvisionsFood,Adult Services,OA  Community Meals,"1,404.91"
228711,5595447,PRECIOUS METALS,05/09/2018,46203,Civic Hospitality,Chief Executives,Mayoralty,781.00
125827,5566712,ALLIANCE DISPOSABLES,05/09/2018,26000,Cleaning Materials,Environmental Services,Building Cleaning,815.00
125827,5563533,ALLIANCE DISPOSABLES,05/09/2018,26000,Cleaning Materials,Environmental Services,Building Cleaning,815.00
125827,5563543,ALLIANCE DISPOSABLES,27/09/2018,26000,Cleaning Materials,Environmental Services,Building Cleaning,815.00
1509,5592874,ROBERT SCOTT & SONS LTD,17/09/2018,26000,Cleaning Materials,Environmental Services,Building Cleaning,"1,472.00"
2457290,5559430,AXCIS EDUCATION RECRUITMENT,20/09/2018,52300,Client Support Costs,Childrens Services,Early Intervention Team,675.00
4805084,5563940,Companion Support Services Limited,17/09/2018,52300,Client Support Costs,Childrens Services,Child Prot Leaving Care Team,752.70
8783,5557254,CO-OP FUNERAL SERVICES#THE CO-OPERATIVE FUNERALCARE,17/09/2018,52300,Client Support Costs,Adult Services,AD Overhead,"1,400.00"
2056310,5569644,MOSS HALL FARM CATTERY,10/09/2018,52300,Client Support Costs,Adult Services,PD Purchaser Residential Care,"1,045.50"
2056310,5592485,MOSS HALL FARM CATTERY,13/09/2018,52300,Client Support Costs,Adult Services,MH Residential External Provision,705.50
7864,5563836,RELPHS FUNERAL SERVICE,27/09/2018,52300,Client Support Costs,Adult Services,AD Overhead,"1,400.00"
4841747,5564254,Skolak Properties Limited,20/09/2018,52300,Client Support Costs,Adult Services,MH Residential External Provision,600.00
1548572,5588475,TRANSPORT FOR GREATER MANCHESTER,20/09/2018,34403,Clients  Bus Passes,Childrens Services,School Transport to Bus Passes,"8,596.80"
6960,5567129,AIDAPT BATHROOMS LTD,17/09/2018,44051,Clients Aids & Adaptations,Adult Services,ICES,585.00
3558671,5589517,Bolton at Home Ltd#RENTS,13/09/2018,44051,Clients Aids & Adaptations,Adult Services,Telecare,548.80
47524,5556719,CEFNDY HEALTHCARE#CEFNDY ENTERPRISES,17/09/2018,44051,Clients Aids & Adaptations,Adult Services,ICES,"1,841.80"
3327627,5570413,Drive Devilbiss Healthcare Limited,05/09/2018,44051,Clients Aids & Adaptations,Adult Services,ICES,784.60
3327627,5567346,Drive Devilbiss Healthcare Limited,27/09/2018,44051,Clients Aids & Adaptations,Adult Services,ICES,"1,320.00"
3327627,5566983,Drive Devilbiss Healthcare Limited,27/09/2018,44051,Clients Aids & Adaptations,Adult Services,ICES,"1,564.00"
3327627,5595464,Drive Devilbiss Healthcare Limited,17/09/2018,44051,Clients Aids & Adaptations,Adult Services,ICES,"2,396.00"
2515326,5589519,FRONTIER THERAPEUTICS,13/09/2018,44051,Clients Aids & Adaptations,Adult Services,ICES,"3,398.50"
3507651,5564027,Harvest Healthcare Ltd,27/09/2018,44051,Clients Aids & Adaptations,Adult Services,ICES,880.00
3507651,5568590,Harvest Healthcare Ltd,27/09/2018,44051,Clients Aids & Adaptations,Adult Services,ICES,"1,450.00"
4070,5567183,JAMES LECKEY DESIGN LTD,13/09/2018,44051,Clients Aids & Adaptations,Adult Services,ICES,"3,177.00"
14831,5567356,JENX LIMITED,17/09/2018,44051,Clients Aids & Adaptations,Adult Services,ICES,633.20
14831,5570249,JENX LIMITED,27/09/2018,44051,Clients Aids & Adaptations,Adult Services,ICES,"1,767.90"
18212,5569516,KAROMED LIMITED,13/09/2018,44051,Clients Aids & Adaptations,Adult Services,ICES,"1,000.00"
4586,5564188,LISCLARE LIMITED,06/09/2018,44051,Clients Aids & Adaptations,Adult Services,ICES,506.11
25103,5569822,NEATER SOLUTIONS LTD,05/09/2018,44051,Clients Aids & Adaptations,Adult Services,ICES,"10,224.00"
2610298,5595494,NRS Healthcare#Nottingham Rehab Limited,13/09/2018,44051,Clients Aids & Adaptations,Adult Services,ICES,"2,733.78"
739608,5592612,PRISM MEDICAL UK,24/09/2018,44051,Clients Aids & Adaptations,Adult Services,ICES,608.30
739608,5572657,PRISM MEDICAL UK,24/09/2018,44051,Clients Aids & Adaptations,Adult Services,ICES,619.87
739608,5592610,PRISM MEDICAL UK,24/09/2018,44051,Clients Aids & Adaptations,Adult Services,ICES,675.00
739608,5567287,PRISM MEDICAL UK,20/09/2018,44051,Clients Aids & Adaptations,Adult Services,ICES,713.40
739608,5592615,PRISM MEDICAL UK,03/09/2018,44051,Clients Aids & Adaptations,Adult Services,ICES,767.81
739608,5566952,PRISM MEDICAL UK,03/09/2018,44051,Clients Aids & Adaptations,Adult Services,ICES,812.47
739608,5566970,PRISM MEDICAL UK,03/09/2018,44051,Clients Aids & Adaptations,Adult Services,ICES,"1,192.87"
739608,5557155,PRISM MEDICAL UK,17/09/2018,44051,Clients Aids & Adaptations,Adult Services,ICES,"1,310.40"
739608,5592619,PRISM MEDICAL UK,27/09/2018,44051,Clients Aids & Adaptations,Adult Services,ICES,"1,368.43"
739608,5556725,PRISM MEDICAL UK,27/09/2018,44051,Clients Aids & Adaptations,Adult Services,ICES,"1,491.04"
739608,5559449,PRISM MEDICAL UK,24/09/2018,44051,Clients Aids & Adaptations,Adult Services,ICES,"1,598.00"
739608,5556711,PRISM MEDICAL UK,10/09/2018,44051,Clients Aids & Adaptations,Adult Services,ICES,"2,227.34"
739608,5572608,PRISM MEDICAL UK,17/09/2018,44051,Clients Aids & Adaptations,Adult Services,ICES,"3,478.66"
4378954,5555574,Schuchmann LLP,24/09/2018,44051,Clients Aids & Adaptations,Adult Services,ICES,580.00
4378954,5567254,Schuchmann LLP,06/09/2018,44051,Clients Aids & Adaptations,Adult Services,ICES,580.00
1097786,5570330,SIMPLYMED LTD,24/09/2018,44051,Clients Aids & Adaptations,Adult Services,ICES,525.00
1097786,5556925,SIMPLYMED LTD,10/09/2018,44051,Clients Aids & Adaptations,Adult Services,ICES,775.00
1097786,5570335,SIMPLYMED LTD,17/09/2018,44051,Clients Aids & Adaptations,Adult Services,ICES,775.00
1097786,5592763,SIMPLYMED LTD,13/09/2018,44051,Clients Aids & Adaptations,Adult Services,ICES,"1,580.00"
1857,5556496,SMITCARE LIMITED,27/09/2018,44051,Clients Aids & Adaptations,Adult Services,ICES,"2,312.60"
2225293,5570425,SU-MED INTERNATIONAL (UK) LTD,27/09/2018,44051,Clients Aids & Adaptations,Adult Services,ICES,"1,234.20"
2225293,5595438,SU-MED INTERNATIONAL (UK) LTD,27/09/2018,44051,Clients Aids & Adaptations,Adult Services,ICES,"1,600.00"
2225293,5556736,SU-MED INTERNATIONAL (UK) LTD,27/09/2018,44051,Clients Aids & Adaptations,Adult Services,ICES,"2,195.90"
6732,5567298,TOM GALLAGHER LTD,17/09/2018,44051,Clients Aids & Adaptations,Adult Services,ICES,622.23
6732,5574077,TOM GALLAGHER LTD,24/09/2018,44051,Clients Aids & Adaptations,Adult Services,ICES,986.00
6732,5567296,TOM GALLAGHER LTD,03/09/2018,44051,Clients Aids & Adaptations,Childrens Services,Business Support - Provider Services,585.50
194355,5572439,GLENDALE GUEST HOUSE,20/09/2018,44061,Clients Temporary Accommodation,Housing GRF,Benjamin Court Accommodation,630.00
125827,5562743,HOLIDAY INN BOLTON,27/09/2018,44061,Clients Temporary Accommodation,Housing GRF,Benjamin Court Accommodation,762.60
3083467,5557144,Tramways Hotel,17/09/2018,44061,Clients Temporary Accommodation,Housing GRF,Benjamin Court Accommodation,793.33
3083467,5564796,Tramways Hotel,05/09/2018,44061,Clients Temporary Accommodation,Housing GRF,Benjamin Court Accommodation,793.33
3083467,5564797,Tramways Hotel,05/09/2018,44061,Clients Temporary Accommodation,Housing GRF,Benjamin Court Accommodation,793.33
4850744,5564725,Department Of Business Energy And Industrial Strategy,17/09/2018,56103,Climate Change Levy,Chief Executives,CRC - Carbon Trading,"148,449.90"
125827,5566297,OLIVER HARVEY LTD,05/09/2018,42000,Clothing,Chief Executives,Marketing - Holding Code,527.70
2427294,5572502,ASTRAL PS LTD,27/09/2018,45401,Computer Maintenance,Development & Regeneration,Home Solutions,"11,275.81"
3909,5574318,INFORMATION & DATA NETWORK SUPPLIES LTD#IDN,27/09/2018,45401,Computer Maintenance,Childrens Services,Admin IT (Schools),"1,661.04"
1550618,5559453,STOPFORD INFORMATION SYSTEMS LIMITED,05/09/2018,45401,Computer Maintenance,Chief Executives,Registrars/Civil Funerals,"1,640.00"
6259,5558542,DELL CORPORATION LTD,24/09/2018,45400,Computer Purchase,Childrens Services,Admin IT (Schools),"13,500.00"
6259,5574311,DELL CORPORATION LTD,13/09/2018,45400,Computer Purchase,Childrens Services,Admin IT (Schools),"13,500.00"
3909,5558571,INFORMATION & DATA NETWORK SUPPLIES LTD#IDN,05/09/2018,45400,Computer Purchase,Childrens Services,Admin IT (Schools),"1,163.65"
3909,5558570,INFORMATION & DATA NETWORK SUPPLIES LTD#IDN,17/09/2018,45400,Computer Purchase,Childrens Services,Admin IT (Schools),"1,169.20"
3909,5558565,INFORMATION & DATA NETWORK SUPPLIES LTD#IDN,24/09/2018,45400,Computer Purchase,Childrens Services,Admin IT (Schools),"2,800.00"
3909,5558566,INFORMATION & DATA NETWORK SUPPLIES LTD#IDN,05/09/2018,45400,Computer Purchase,Childrens Services,Admin IT (Schools),"4,956.38"
3909,5574317,INFORMATION & DATA NETWORK SUPPLIES LTD#IDN,10/09/2018,45400,Computer Purchase,Childrens Services,Admin IT (Schools),"6,573.99"
3909,5558567,INFORMATION & DATA NETWORK SUPPLIES LTD#IDN,05/09/2018,45400,Computer Purchase,Childrens Services,Admin IT (Schools),"7,644.10"
3909,5574316,INFORMATION & DATA NETWORK SUPPLIES LTD#IDN,10/09/2018,45400,Computer Purchase,Childrens Services,Admin IT (Schools),"9,788.00"
3909,5574313,INFORMATION & DATA NETWORK SUPPLIES LTD#IDN,27/09/2018,45400,Computer Purchase,Childrens Services,Admin IT (Schools),"14,757.68"
2691319,5567748,Stone Computers Ltd,24/09/2018,45400,Computer Purchase,Childrens Services,Admin IT (Schools),"29,613.75"
2691319,5567747,Stone Computers Ltd,20/09/2018,45400,Computer Purchase,Childrens Services,Admin IT (Schools),"42,248.95"
871655,5567461,AGILISYS LIMITED,05/09/2018,45430,Computer Software,Chief Executives,Corporate IT Investment,705.25
871655,5570366,AGILISYS LIMITED,05/09/2018,45430,Computer Software,Chief Executives,Corporate IT Investment,"1,259.59"
871655,5567492,AGILISYS LIMITED,05/09/2018,45430,Computer Software,Chief Executives,Corporate IT Investment,"4,047.56"
3949953,5569957,Spacecraft Creative Limited,05/09/2018,45430,Computer Software,Chief Executives,Web Team,"14,400.00"
125827,5566637,THERE BUT NOT THERE (Remembered),13/09/2018,45430,Computer Software,Environmental Services,DMT,"1,940.76"
125827,5566638,THERE BUT NOT THERE (Remembered),27/09/2018,45430,Computer Software,Environmental Services,DMT,"1,940.76"
224927,5572611,CAUSEWAY TECHNOLOGIES LTD,17/09/2018,45431,Computer Software Licences,Environmental Services,Highway Management,"1,492.52"
1573321,5588447,LIQUIDLOGIC LIMITED,27/09/2018,45431,Computer Software Licences,Childrens Services,Admin Info Mgemnt Unit,"12,000.00"
1573321,5588446,LIQUIDLOGIC LIMITED,24/09/2018,45431,Computer Software Licences,Childrens Services,Adults ICT,"8,000.00"
254718,5569837,WEBASPX LIMITED,13/09/2018,45431,Computer Software Licences,Environmental Services,Waste,"4,996.00"
3041441,5592747,JL Property Solutions#Jane Lathwood Property Solutions Limited,05/09/2018,48510,Consultancy Fees,Chief Executives,Land and Property Portfolios,"2,383.33"
3235619,5556799,Associated Cleaning Contractors#Champion Cleaning Services Group,27/09/2018,26101,Contract Cleaning,Adult Services,OA  Carers Grant,930.00
86129,5558692,Ladybridge High School,24/09/2018,26101,Contract Cleaning,Childrens Services,Music ServMusic Service general,"2,791.00"
266933,5567799,NSL LIMITED#NSL SERVICES GROUP,20/09/2018,44202,Contract UnitNonLEA,Environmental Services,Parking Services  On Street,"46,961.37"
156135,5564778,ACCESS TO CARE LTD,17/09/2018,52200,Contracted Services,Adult Services,LD Purchaser Supported Housing,"22,400.00"
156135,5564779,ACCESS TO CARE LTD,17/09/2018,52200,Contracted Services,Adult Services,LD Purchaser Supported Housing,"22,400.00"
2694360,5555473,Achieve Training,17/09/2018,52200,Contracted Services,Childrens Services,Behaviour Support,960.00
2694360,5555472,Achieve Training,24/09/2018,52200,Contracted Services,Childrens Services,CH80100 - Behaviour Support,"1,728.00"
2694360,5555471,Achieve Training,06/09/2018,52200,Contracted Services,Childrens Services,CH80100 - Behaviour Support,"8,608.00"
6079,5563939,ANIMAL WARDENS,13/09/2018,52200,Contracted Services,Environmental Services,Activities and Operations,960.00
4782025,5557837,Ashwood Home Care Limited T/A Ashwood Care Formally Red Line Business Services Group Limited T/A Ash,24/09/2018,52200,Contracted Services,Adult Services,OA  Home Care Services external provision,667.89
4642993,5569623,Aspire Behaviour Management Limited,27/09/2018,52200,Contracted Services,Childrens Services,LACEST,"1,500.00"
4642993,5569626,Aspire Behaviour Management Limited,13/09/2018,52200,Contracted Services,Childrens Services,LACEST,"1,612.50"
38557,5567538,BOLTON & DISTRICT CITIZENS ADVICE BUREAU LTD,05/09/2018,52200,Contracted Services,Chief Executives,Anti Poverty Measures,"16,200.00"
53579,5588455,BOLTON CHILDRENS OPPORTUNITY GROUP#COG,05/09/2018,52200,Contracted Services,Childrens Services,Integrated Commissioning,"5,000.00"
7436,5595474,Bolton College#Was Community College,17/09/2018,52200,Contracted Services,Development & Regeneration,Adult Education,"163,862.00"
43551,5595555,BOLTON COMMUNITY LEISURE LTD,24/09/2018,52200,Contracted Services,Development & Regeneration,The Leisure Trust,"177,321.88"
3326627,5573964,Bolton New Care Ltd T/A Home Instead Senior Care,27/09/2018,52200,Contracted Services,Adult Services,OA  Home Care Services external provision,"1,298.00"
3326627,5586539,Bolton New Care Ltd T/A Home Instead Senior Care,27/09/2018,52200,Contracted Services,Adult Services,OA  Home Care Services external provision,"1,688.50"
2681385,5567575,Bolton Together,27/09/2018,52200,Contracted Services,Childrens Services,Integrated Commissioning,"50,000.00"
4248954,5556830,Bridgewater Home Care,27/09/2018,52200,Contracted Services,Adult Services,OA  Home Care Services external provision,568.50
4248954,5556831,Bridgewater Home Care,17/09/2018,52200,Contracted Services,Adult Services,OA  Home Care Services external provision,658.50
400011,5569952,CDP SOFT LIMITED,20/09/2018,52200,Contracted Services,Adult Services,Supporting People  Capital Financing,"13,285.00"
3380631,5569661,Challenger Site Services LLP,05/09/2018,52200,Contracted Services,Environmental Services,Assets,"1,810.00"
6131,5570180,CHILD ACTION NORTHWEST,17/09/2018,52200,Contracted Services,Childrens Services,Youth Offending Team,"1,562.70"
125827,5564870,CICELEY COMMERCIALS,05/09/2018,52200,Contracted Services,Environmental Services,Transport Support Service,"1,617.11"
125827,5559576,CICELEY COMMERCIALS,05/09/2018,52200,Contracted Services,Environmental Services,Transport Support Service,"1,711.38"
125827,5559573,CICELEY COMMERCIALS,17/09/2018,52200,Contracted Services,Environmental Services,Transport Support Service,"2,863.88"
125827,5564866,CICELEY COMMERCIALS,10/09/2018,52200,Contracted Services,Environmental Services,Transport Support Service,"3,035.06"
125827,5564865,CICELEY COMMERCIALS,20/09/2018,52200,Contracted Services,Environmental Services,Transport Support Service,"3,300.22"
125827,5559570,CICELEY COMMERCIALS ,27/09/2018,52200,Contracted Services,Environmental Services,Transport Support Service,690.88
125827,5559569,CICELEY COMMERCIALS ,03/09/2018,52200,Contracted Services,Environmental Services,Transport Support Service,"1,387.33"
113956,5569882,Cleveland Sitesafe Ltd,05/09/2018,52200,Contracted Services,Environmental Services,Assets,"22,584.99"
6233,5564772,CREATIVE SUPPORT LTD#3,20/09/2018,52200,Contracted Services,Adult Services,LD Provider  Supported Housing,"18,370.38"
6233,5573999,CREATIVE SUPPORT LTD#3,24/09/2018,52200,Contracted Services,Adult Services,LD Provider  Supported Housing,"22,176.36"
6233,5564775,CREATIVE SUPPORT LTD#3,10/09/2018,52200,Contracted Services,Adult Services,LD Provider  Supported Housing,"28,805.91"
6233,5564774,CREATIVE SUPPORT LTD#3,06/09/2018,52200,Contracted Services,Adult Services,LD Purchaser Supported Housing,"2,265.76"
6233,5564773,CREATIVE SUPPORT LTD#3,10/09/2018,52200,Contracted Services,Adult Services,LD Purchaser Supported Housing,"2,265.76"
6233,5573998,CREATIVE SUPPORT LTD#3,06/09/2018,52200,Contracted Services,Adult Services,LD Purchaser Supported Housing,"2,265.76"
6233,5564772,CREATIVE SUPPORT LTD#3,20/09/2018,52200,Contracted Services,Adult Services,LD Purchaser Supported Housing,"3,847.20"
6233,5573999,CREATIVE SUPPORT LTD#3,17/09/2018,52200,Contracted Services,Adult Services,LD Purchaser Supported Housing,"3,847.20"
6233,5564775,CREATIVE SUPPORT LTD#3,06/09/2018,52200,Contracted Services,Adult Services,LD Purchaser Supported Housing,"7,694.40"
6233,5588452,CREATIVE SUPPORT LTD#3,05/09/2018,52200,Contracted Services,Adult Services,Supporting People  Capital Financing,"9,956.00"
2511617,5567859,CRG Limited#Homecare,17/09/2018,52200,Contracted Services,Adult Services,OA  Home Care Services external provision,927.49
2511617,5557847,CRG Limited#Homecare,17/09/2018,52200,Contracted Services,Adult Services,OA  Home Care Services external provision,"1,332.85"
2511617,5567860,CRG Limited#Homecare,24/09/2018,52200,Contracted Services,Adult Services,OA  Home Care Services external provision,"2,358.33"
2511617,5557849,CRG Limited#Homecare,17/09/2018,52200,Contracted Services,Adult Services,OA  Home Care Services external provision,"2,630.11"
2511617,5557848,CRG Limited#Homecare,03/09/2018,52200,Contracted Services,Adult Services,OA  Home Care Services external provision,"19,565.30"
2511617,5567861,CRG Limited#Homecare,05/09/2018,52200,Contracted Services,Adult Services,OA  Home Care Services external provision,"20,065.51"
2511617,5567859,CRG Limited#Homecare,17/09/2018,52200,Contracted Services,Adult Services,PD Purcahser Domiciliary Care,728.89
2511617,5557849,CRG Limited#Homecare,05/09/2018,52200,Contracted Services,Adult Services,PD Purcahser Domiciliary Care,745.27
2511617,5567861,CRG Limited#Homecare,10/09/2018,52200,Contracted Services,Adult Services,PD Purcahser Domiciliary Care,"12,612.95"
2511617,5557848,CRG Limited#Homecare,24/09/2018,52200,Contracted Services,Adult Services,PD Purcahser Domiciliary Care,"14,139.39"
2511617,5557848,CRG Limited#Homecare,17/09/2018,52200,Contracted Services,Adult Services,MH Homecare,"1,613.49"
2511617,5567861,CRG Limited#Homecare,17/09/2018,52200,Contracted Services,Adult Services,MH Homecare,"2,673.26"
4673992,5569449,Das-Automotive,20/09/2018,52200,Contracted Services,Environmental Services,Transport Support Service,"1,196.89"
3860973,5586572,Diamond Care Services Ltd,17/09/2018,52200,Contracted Services,Adult Services,OA  Home Care Services external provision,561.70
3425630,5567822,Dignity in Life Ltd#DIL Foundation,13/09/2018,52200,Contracted Services,Adult Services,OA  Home Care Services external provision,530.60
3425630,5573976,Dignity in Life Ltd#DIL Foundation,06/09/2018,52200,Contracted Services,Adult Services,OA  Home Care Services external provision,530.60
3425630,5556821,Dignity in Life Ltd#DIL Foundation,24/09/2018,52200,Contracted Services,Adult Services,OA  Home Care Services external provision,636.72
3425630,5586542,Dignity in Life Ltd#DIL Foundation,24/09/2018,52200,Contracted Services,Adult Services,OA  Home Care Services external provision,636.72
3425630,5567827,Dignity in Life Ltd#DIL Foundation,27/09/2018,52200,Contracted Services,Adult Services,OA  Home Care Services external provision,643.37
3425630,5573968,Dignity in Life Ltd#DIL Foundation,17/09/2018,52200,Contracted Services,Adult Services,OA  Home Care Services external provision,664.01
3425630,5586544,Dignity in Life Ltd#DIL Foundation,24/09/2018,52200,Contracted Services,Adult Services,OA  Home Care Services external provision,736.78
3425630,5567828,Dignity in Life Ltd#DIL Foundation,03/09/2018,52200,Contracted Services,Adult Services,OA  Home Care Services external provision,811.23
3425630,5573982,Dignity in Life Ltd#DIL Foundation,05/09/2018,52200,Contracted Services,Adult Services,OA  Home Care Services external provision,848.96
3425630,5586545,Dignity in Life Ltd#DIL Foundation,17/09/2018,52200,Contracted Services,Adult Services,OA  Home Care Services external provision,883.07
3425630,5573966,Dignity in Life Ltd#DIL Foundation,17/09/2018,52200,Contracted Services,Adult Services,OA  Home Care Services external provision,929.61
3425630,5567825,Dignity in Life Ltd#DIL Foundation,17/09/2018,52200,Contracted Services,Adult Services,OA  Home Care Services external provision,996.77
3425630,5567826,Dignity in Life Ltd#DIL Foundation,17/09/2018,52200,Contracted Services,Adult Services,OA  Home Care Services external provision,"1,030.88"
3425630,5573986,Dignity in Life Ltd#DIL Foundation,24/09/2018,52200,Contracted Services,Adult Services,OA  Home Care Services external provision,"1,061.20"
3425630,5586540,Dignity in Life Ltd#DIL Foundation,12/09/2018,52200,Contracted Services,Adult Services,OA  Home Care Services external provision,"1,302.62"
3425630,5556825,Dignity in Life Ltd#DIL Foundation,20/09/2018,52200,Contracted Services,Adult Services,OA  Home Care Services external provision,"1,478.10"
3425630,5573970,Dignity in Life Ltd#DIL Foundation,20/09/2018,52200,Contracted Services,Adult Services,OA  Home Care Services external provision,"2,122.40"
3425630,5556823,Dignity in Life Ltd#DIL Foundation,24/09/2018,52200,Contracted Services,Adult Services,OA  Home Care Services external provision,"3,471.64"
3425630,5573967,Dignity in Life Ltd#DIL Foundation,24/09/2018,52200,Contracted Services,Adult Services,PD Purcahser Domiciliary Care,636.72
3425630,5573974,Dignity in Life Ltd#DIL Foundation,13/09/2018,52200,Contracted Services,Adult Services,PD Purcahser Domiciliary Care,636.72
3425630,5573965,Dignity in Life Ltd#DIL Foundation,06/09/2018,52200,Contracted Services,Adult Services,PD Purcahser Domiciliary Care,990.25
3425630,5573973,Dignity in Life Ltd#DIL Foundation,17/09/2018,52200,Contracted Services,Adult Services,PD Purcahser Domiciliary Care,"1,546.32"
3425630,5567824,Dignity in Life Ltd#DIL Foundation,27/09/2018,52200,Contracted Services,Adult Services,PD Purcahser Domiciliary Care,"1,576.72"
3425630,5573979,Dignity in Life Ltd#DIL Foundation,27/09/2018,52200,Contracted Services,Adult Services,PD Purcahser Domiciliary Care,"1,910.16"
3425630,5573983,Dignity in Life Ltd#DIL Foundation,20/09/2018,52200,Contracted Services,Adult Services,PD Purcahser Domiciliary Care,"2,290.52"
3425630,5567834,Dignity in Life Ltd#DIL Foundation,12/09/2018,52200,Contracted Services,Adult Services,PD Purcahser Domiciliary Care,"2,402.86"
3425630,5573985,Dignity in Life Ltd#DIL Foundation,24/09/2018,52200,Contracted Services,Adult Services,PD Purcahser Domiciliary Care,"2,592.36"
3425630,5567821,Dignity in Life Ltd#DIL Foundation,17/09/2018,52200,Contracted Services,Adult Services,PD Purcahser Domiciliary Care,"2,759.12"
3425630,5567831,Dignity in Life Ltd#DIL Foundation,17/09/2018,52200,Contracted Services,Adult Services,MH Homecare,864.12
3425630,5567830,Dignity in Life Ltd#DIL Foundation,17/09/2018,52200,Contracted Services,Adult Services,MH Homecare,902.02
1147813,5568361,ECM EDUCATION CONSULTANTS LTD,24/09/2018,52200,Contracted Services,Childrens Services,CH84324 - SIP’s,"4,800.00"
1555984,5572748,FAUN ZOELLER (UK) LTD,17/09/2018,52200,Contracted Services,Environmental Services,Transport Support Service,"2,743.05"
4827043,5555451,FCNA Homecare (First Call Nursing Agency),20/09/2018,52200,Contracted Services,Adult Services,OA  Home Care Services external provision,607.60
4827043,5555456,FCNA Homecare (First Call Nursing Agency),20/09/2018,52200,Contracted Services,Adult Services,OA  Home Care Services external provision,607.60
4827043,5555455,FCNA Homecare (First Call Nursing Agency),17/09/2018,52200,Contracted Services,Adult Services,OA  Home Care Services external provision,638.60
4827043,5555450,FCNA Homecare (First Call Nursing Agency),17/09/2018,52200,Contracted Services,Adult Services,PD Purcahser Domiciliary Care,607.60
3025364,5567468,Fostering Ltd,17/09/2018,52200,Contracted Services,Childrens Services,Res Serv Agency Placements,799.00
220061,5567526,GATENBYSANDERSON,05/09/2018,52200,Contracted Services,Childrens Services,Admin Directorate,"21,402.00"
178961,5570400,GREAT PLACES HOUSING ASSOCIATION,13/09/2018,52200,Contracted Services,Adult Services,Supporting People  Capital Financing,"44,044.25"
3974954,5592446,Greenwood Tree Services Ltd,17/09/2018,52200,Contracted Services,Environmental Services,Assets,750.00
3974954,5571458,Greenwood Tree Services Ltd,10/09/2018,52200,Contracted Services,Environmental Services,Assets,"2,500.00"
3974954,5571452,Greenwood Tree Services Ltd,05/09/2018,52200,Contracted Services,Environmental Services,Assets,"2,550.00"
3974954,5569823,Greenwood Tree Services Ltd,24/09/2018,52200,Contracted Services,Environmental Services,Assets,"13,500.00"
128732,5557841,HOMECARE FOR YOU LTD#BLACKBURN,06/09/2018,52200,Contracted Services,Adult Services,OA  Home Care Services external provision,545.76
128732,5557840,HOMECARE FOR YOU LTD#BLACKBURN,24/09/2018,52200,Contracted Services,Adult Services,PD Purcahser Domiciliary Care,545.76
128732,5557843,HOMECARE FOR YOU LTD#BLACKBURN,17/09/2018,52200,Contracted Services,Adult Services,MH Homecare,"1,516.00"
1617292,5564786,HOMECARE SUPPORT,06/09/2018,52200,Contracted Services,Adult Services,OA  External Provision Residential,"1,622.31"
1617292,5564785,HOMECARE SUPPORT,10/09/2018,52200,Contracted Services,Adult Services,OA  Home Care Services external provision,729.05
1617292,5564788,HOMECARE SUPPORT,13/09/2018,52200,Contracted Services,Adult Services,OA  Home Care Services external provision,"1,446.56"
1617292,5574003,HOMECARE SUPPORT,10/09/2018,52200,Contracted Services,Adult Services,OA  Home Care Services external provision,"4,140.84"
1617292,5564787,HOMECARE SUPPORT,24/09/2018,52200,Contracted Services,Adult Services,OA  Home Care Services external provision,"4,428.36"
1617292,5564786,HOMECARE SUPPORT,24/09/2018,52200,Contracted Services,Adult Services,OA  Home Care Services external provision,"18,784.64"
1617292,5564785,HOMECARE SUPPORT,13/09/2018,52200,Contracted Services,Adult Services,PD Purcahser Domiciliary Care,753.75
1617292,5564788,HOMECARE SUPPORT,24/09/2018,52200,Contracted Services,Adult Services,PD Purcahser Domiciliary Care,769.96
1617292,5564786,HOMECARE SUPPORT,27/09/2018,52200,Contracted Services,Adult Services,PD Purcahser Domiciliary Care,"10,237.08"
1617292,5564785,HOMECARE SUPPORT,13/09/2018,52200,Contracted Services,Adult Services,LD Purchaser Domiciliary Care,721.91
1617292,5564786,HOMECARE SUPPORT,13/09/2018,52200,Contracted Services,Adult Services,LD Purchaser Domiciliary Care,"1,696.55"
1617292,5564788,HOMECARE SUPPORT,24/09/2018,52200,Contracted Services,Adult Services,LD Purchaser Domiciliary Care,"2,234.88"
1617292,5564785,HOMECARE SUPPORT,17/09/2018,52200,Contracted Services,Adult Services,MH Homecare,"1,472.04"
1617292,5564786,HOMECARE SUPPORT,17/09/2018,52200,Contracted Services,Adult Services,MH Homecare,"7,317.94"
1617292,5564788,HOMECARE SUPPORT,17/09/2018,52200,Contracted Services,Adult Services,MH Homecare,"54,451.15"
3271615,5573947,ICRIT Healthcare,24/09/2018,52200,Contracted Services,Adult Services,OA  Home Care Services external provision,525.00
3271615,5586525,ICRIT Healthcare,20/09/2018,52200,Contracted Services,Adult Services,OA  Home Care Services external provision,525.00
3271615,5567820,ICRIT Healthcare,24/09/2018,52200,Contracted Services,Adult Services,OA  Home Care Services external provision,577.50
3271615,5573957,ICRIT Healthcare,10/09/2018,52200,Contracted Services,Adult Services,OA  Home Care Services external provision,577.50
3271615,5586532,ICRIT Healthcare,06/09/2018,52200,Contracted Services,Adult Services,OA  Home Care Services external provision,577.50
3271615,5573953,ICRIT Healthcare,27/09/2018,52200,Contracted Services,Adult Services,OA  Home Care Services external provision,682.50
3271615,5573962,ICRIT Healthcare,10/09/2018,52200,Contracted Services,Adult Services,OA  Home Care Services external provision,682.50
3271615,5586526,ICRIT Healthcare,20/09/2018,52200,Contracted Services,Adult Services,OA  Home Care Services external provision,682.50
3271615,5573958,ICRIT Healthcare,13/09/2018,52200,Contracted Services,Adult Services,PD Purcahser Domiciliary Care,753.15
3271615,5586533,ICRIT Healthcare,06/09/2018,52200,Contracted Services,Adult Services,PD Purcahser Domiciliary Care,753.15
3121532,5564759,Jewel Home Support Ltd,20/09/2018,52200,Contracted Services,Adult Services,OA  External Provision Residential,"2,356.47"
3121532,5557810,Jewel Home Support Ltd,27/09/2018,52200,Contracted Services,Adult Services,OA  Home Care Services external provision,"1,743.40"
3121532,5564759,Jewel Home Support Ltd,24/09/2018,52200,Contracted Services,Adult Services,OA  Home Care Services external provision,"63,703.40"
3121532,5564759,Jewel Home Support Ltd,06/09/2018,52200,Contracted Services,Adult Services,PD Purcahser Domiciliary Care,"31,489.17"
3121532,5564759,Jewel Home Support Ltd,24/09/2018,52200,Contracted Services,Adult Services,LD Purchaser Domiciliary Care,"1,066.04"
3121532,5564759,Jewel Home Support Ltd,17/09/2018,52200,Contracted Services,Adult Services,MH Homecare,"1,130.25"
115484,5567800,KAYS TRAFFIC MANAGEMENT SYSTEMS LTD,05/09/2018,52200,Contracted Services,Environmental Services,Activities and Operations,"5,045.32"
101173,5567848,KEYMEN ASSOCIATES LTD#MAYDAY,17/09/2018,52200,Contracted Services,Adult Services,OA  External Provision Residential,569.45
101173,5574000,KEYMEN ASSOCIATES LTD#MAYDAY,20/09/2018,52200,Contracted Services,Adult Services,OA  Home Care Services external provision,898.11
101173,5567849,KEYMEN ASSOCIATES LTD#MAYDAY,17/09/2018,52200,Contracted Services,Adult Services,OA  Home Care Services external provision,"2,010.52"
101173,5567853,KEYMEN ASSOCIATES LTD#MAYDAY,17/09/2018,52200,Contracted Services,Adult Services,OA  Home Care Services external provision,"4,892.14"
101173,5557839,KEYMEN ASSOCIATES LTD#MAYDAY,06/09/2018,52200,Contracted Services,Adult Services,OA  Home Care Services external provision,"4,979.22"
101173,5567851,KEYMEN ASSOCIATES LTD#MAYDAY,13/09/2018,52200,Contracted Services,Adult Services,OA  Home Care Services external provision,"5,856.82"
101173,5567852,KEYMEN ASSOCIATES LTD#MAYDAY,13/09/2018,52200,Contracted Services,Adult Services,OA  Home Care Services external provision,"17,325.58"
101173,5567848,KEYMEN ASSOCIATES LTD#MAYDAY,20/09/2018,52200,Contracted Services,Adult Services,OA  Home Care Services external provision,"91,631.93"
101173,5567848,KEYMEN ASSOCIATES LTD#MAYDAY,10/09/2018,52200,Contracted Services,Adult Services,PD Purcahser Domiciliary Care,"44,452.68"
101173,5567848,KEYMEN ASSOCIATES LTD#MAYDAY,24/09/2018,52200,Contracted Services,Adult Services,LD Purchaser Domiciliary Care,994.05
101173,5567848,KEYMEN ASSOCIATES LTD#MAYDAY,17/09/2018,52200,Contracted Services,Adult Services,MH Homecare,"7,428.53"
257679,5572597,Leigh Dogs and Cats Home Ltd,05/09/2018,52200,Contracted Services,Environmental Services,Activities and Operations,"22,840.00"
3469653,5586546,Lifeways Community Care#Albion Mews,17/09/2018,52200,Contracted Services,Adult Services,LD Provider  Supported Housing,"4,111.44"
3469653,5586547,Lifeways Community Care#Albion Mews,10/09/2018,52200,Contracted Services,Adult Services,LD Purchaser Supported Housing,608.00
3469653,5586546,Lifeways Community Care#Albion Mews,27/09/2018,52200,Contracted Services,Adult Services,LD Purchaser Supported Housing,"9,956.35"
3773689,5555444,Linden Walk,17/09/2018,52200,Contracted Services,Adult Services,LD Provider  Supported Housing,631.68
3773689,5555443,Linden Walk,13/09/2018,52200,Contracted Services,Adult Services,LD Provider  Supported Housing,"5,310.80"
4349954,5586574,Mary Seacole House,13/09/2018,52200,Contracted Services,Adult Services,LD Provider  Supported Housing,"5,006.50"
4349954,5586574,Mary Seacole House,06/09/2018,52200,Contracted Services,Adult Services,MH Residential Network,"4,193.38"
267311,5558472,MERITEC LIMITED,13/09/2018,52200,Contracted Services,Chief Executives,Anti Poverty Measures,"7,674.48"
267311,5558471,MERITEC LIMITED,05/09/2018,52200,Contracted Services,Chief Executives,Anti Poverty Measures,"8,369.09"
267311,5567137,MERITEC LIMITED,05/09/2018,52200,Contracted Services,Chief Executives,Housing Benefits,"4,660.44"
267311,5558475,MERITEC LIMITED,05/09/2018,52200,Contracted Services,Chief Executives,Housing Benefits,"8,211.25"
3597706,5586567,Midshires Care Limited#t/a Helping Hands Home Care,27/09/2018,52200,Contracted Services,Adult Services,OA  Home Care Services external provision,890.05
3597706,5586566,Midshires Care Limited#t/a Helping Hands Home Care,27/09/2018,52200,Contracted Services,Adult Services,OA  Home Care Services external provision,"1,764.10"
3597706,5556828,Midshires Care Limited#t/a Helping Hands Home Care,20/09/2018,52200,Contracted Services,Adult Services,OA  Home Care Services external provision,"1,781.55"
4336954,5567843,Orchid Home Care Support,24/09/2018,52200,Contracted Services,Adult Services,OA  Home Care Services external provision,636.72
4336954,5573996,Orchid Home Care Support,10/09/2018,52200,Contracted Services,Adult Services,OA  Home Care Services external provision,636.72
4336954,5573997,Orchid Home Care Support,13/09/2018,52200,Contracted Services,Adult Services,OA  Home Care Services external provision,848.96
4336954,5567839,Orchid Home Care Support,17/09/2018,52200,Contracted Services,Adult Services,OA  Home Care Services external provision,"1,075.08"
4336954,5567838,Orchid Home Care Support,06/09/2018,52200,Contracted Services,Adult Services,OA  Home Care Services external provision,"1,910.33"
4336954,5586573,Orchid Home Care Support,03/09/2018,52200,Contracted Services,Adult Services,OA  Home Care Services external provision,"2,152.72"
4336954,5567840,Orchid Home Care Support,13/09/2018,52200,Contracted Services,Adult Services,OA  Home Care Services external provision,"3,638.40"
4336954,5567844,Orchid Home Care Support,17/09/2018,52200,Contracted Services,Adult Services,PD Purcahser Domiciliary Care,"1,061.20"
6538,5592462,P J CARNEY & CO LTD,10/09/2018,52200,Contracted Services,Environmental Services,Activities and Operations,"2,520.00"
6538,5570375,P J CARNEY & CO LTD,17/09/2018,52200,Contracted Services,Environmental Services,Activities and Operations,"8,150.00"
40476,5595487,PAWS FOR KIDS,05/09/2018,52200,Contracted Services,Chief Executives,Anti Poverty Measures,"1,000.00"
35473,5556833,PREMIER CARE LTD#BOLTON CARE SERVICES,24/09/2018,52200,Contracted Services,Adult Services,OA  External Provision Residential,531.49
35473,5586575,PREMIER CARE LTD#BOLTON CARE SERVICES,17/09/2018,52200,Contracted Services,Adult Services,OA  Home Care Services external provision,"1,473.45"
35473,5556834,PREMIER CARE LTD#BOLTON CARE SERVICES,17/09/2018,52200,Contracted Services,Adult Services,OA  Home Care Services external provision,"2,398.62"
35473,5556833,PREMIER CARE LTD#BOLTON CARE SERVICES,27/09/2018,52200,Contracted Services,Adult Services,OA  Home Care Services external provision,"8,768.85"
35473,5586576,PREMIER CARE LTD#BOLTON CARE SERVICES,03/09/2018,52200,Contracted Services,Adult Services,OA  Home Care Services external provision,"11,816.37"
35473,5556833,PREMIER CARE LTD#BOLTON CARE SERVICES,10/09/2018,52200,Contracted Services,Adult Services,PD Purcahser Domiciliary Care,"10,580.75"
35473,5586576,PREMIER CARE LTD#BOLTON CARE SERVICES,13/09/2018,52200,Contracted Services,Adult Services,PD Purcahser Domiciliary Care,"10,899.60"
35473,5586576,PREMIER CARE LTD#BOLTON CARE SERVICES,17/09/2018,52200,Contracted Services,Adult Services,MH Homecare,581.83
35473,5556833,PREMIER CARE LTD#BOLTON CARE SERVICES,17/09/2018,52200,Contracted Services,Adult Services,MH Homecare,613.91
2935539,5564757,Putting You First Ltd#Your Life Your Way,13/09/2018,52200,Contracted Services,Adult Services,LD Provider  Supported Housing,"2,158.40"
2935539,5564756,Putting You First Ltd#Your Life Your Way,24/09/2018,52200,Contracted Services,Adult Services,LD Purchaser Supported Housing,"1,864.80"
2935539,5564757,Putting You First Ltd#Your Life Your Way,17/09/2018,52200,Contracted Services,Adult Services,LD Purchaser Supported Housing,"6,361.60"
3602683,5557832,Recovery Support Ltd,17/09/2018,52200,Contracted Services,Adult Services,MH Homecare,545.76
3602683,5557820,Recovery Support Ltd,13/09/2018,52200,Contracted Services,Adult Services,MH Homecare,576.08
3602683,5557834,Recovery Support Ltd,17/09/2018,52200,Contracted Services,Adult Services,MH Homecare,688.57
3602683,5557819,Recovery Support Ltd,13/09/2018,52200,Contracted Services,Adult Services,MH Homecare,795.90
3602683,5557833,Recovery Support Ltd,17/09/2018,52200,Contracted Services,Adult Services,MH Homecare,886.86
3602683,5586571,Recovery Support Ltd,13/09/2018,52200,Contracted Services,Adult Services,MH Homecare,"4,032.56"
3602683,5586568,Recovery Support Ltd,17/09/2018,52200,Contracted Services,Adult Services,MH Homecare,"4,320.60"
3602683,5586569,Recovery Support Ltd,13/09/2018,52200,Contracted Services,Adult Services,MH Homecare,"4,464.62"
3602683,5586570,Recovery Support Ltd,17/09/2018,52200,Contracted Services,Adult Services,MH Homecare,"4,896.68"
3533646,5586559,Redacted - Personal Data,17/09/2018,52200,Contracted Services,Adult Services,LD Provider  Supported Housing,"1,014.16"
3533646,5586561,Redacted - Personal Data,10/09/2018,52200,Contracted Services,Adult Services,LD Provider  Supported Housing,"2,028.32"
3533646,5555439,Redacted - Personal Data,20/09/2018,52200,Contracted Services,Adult Services,LD Provider  Supported Housing,"2,535.40"
3533646,5586558,Redacted - Personal Data,13/09/2018,52200,Contracted Services,Adult Services,LD Provider  Supported Housing,"6,212.52"
3533646,5555441,Redacted - Personal Data,20/09/2018,52200,Contracted Services,Adult Services,LD Provider  Supported Housing,"7,765.65"
3533646,5586560,Redacted - Personal Data,27/09/2018,52200,Contracted Services,Adult Services,LD Provider  Supported Housing,"14,413.00"
3533646,5555438,Redacted - Personal Data,24/09/2018,52200,Contracted Services,Adult Services,LD Provider  Supported Housing,"18,016.25"
3533646,5555440,Redacted - Personal Data,20/09/2018,52200,Contracted Services,Adult Services,LD Purchaser Supported Housing,"1,267.70"
3540651,5557248,Redacted - Personal Data,12/09/2018,52200,Contracted Services,Childrens Services,Music ServInstru & Vocal Teach,"1,458.26"
3438638,5564011,Redacted - Personal Data,05/09/2018,52200,Contracted Services,Childrens Services,Music ServInstru & Vocal Teach,787.55
768,5590435,Ribblesdale Auto Electrics 1992 Ltd,27/09/2018,52200,Contracted Services,Environmental Services,Transport Support Service,625.82
2205290,5555468,SAFEHANDS CARE LTD#SAFEHANDS GROUP,13/09/2018,52200,Contracted Services,Adult Services,OA  Home Care Services external provision,805.30
2205290,5574015,SAFEHANDS CARE LTD#SAFEHANDS GROUP,13/09/2018,52200,Contracted Services,Adult Services,OA  Home Care Services external provision,812.27
2205290,5555467,SAFEHANDS CARE LTD#SAFEHANDS GROUP,27/09/2018,52200,Contracted Services,Adult Services,OA  Home Care Services external provision,"1,294.51"
2205290,5556838,SAFEHANDS CARE LTD#SAFEHANDS GROUP,24/09/2018,52200,Contracted Services,Adult Services,OA  Home Care Services external provision,"2,221.02"
2205290,5556839,SAFEHANDS CARE LTD#SAFEHANDS GROUP,10/09/2018,52200,Contracted Services,Adult Services,OA  Home Care Services external provision,"2,348.85"
2205290,5586592,SAFEHANDS CARE LTD#SAFEHANDS GROUP,24/09/2018,52200,Contracted Services,Adult Services,OA  Home Care Services external provision,"2,517.76"
2205290,5574016,SAFEHANDS CARE LTD#SAFEHANDS GROUP,13/09/2018,52200,Contracted Services,Adult Services,OA  Home Care Services external provision,"4,081.37"
2205290,5555487,SAFEHANDS CARE LTD#SAFEHANDS GROUP,24/09/2018,52200,Contracted Services,Adult Services,OA  Home Care Services external provision,"14,637.76"
2205290,5574017,SAFEHANDS CARE LTD#SAFEHANDS GROUP,24/09/2018,52200,Contracted Services,Adult Services,OA  Home Care Services external provision,"43,133.56"
2205290,5555469,SAFEHANDS CARE LTD#SAFEHANDS GROUP,10/09/2018,52200,Contracted Services,Adult Services,OA  Home Care Services external provision,"52,000.00"
2205290,5574015,SAFEHANDS CARE LTD#SAFEHANDS GROUP,17/09/2018,52200,Contracted Services,Adult Services,PD Purcahser Domiciliary Care,670.84
2205290,5555468,SAFEHANDS CARE LTD#SAFEHANDS GROUP,27/09/2018,52200,Contracted Services,Adult Services,PD Purcahser Domiciliary Care,"1,165.50"
2205290,5574017,SAFEHANDS CARE LTD#SAFEHANDS GROUP,12/09/2018,52200,Contracted Services,Adult Services,PD Purcahser Domiciliary Care,"24,391.21"
2205290,5574015,SAFEHANDS CARE LTD#SAFEHANDS GROUP,10/09/2018,52200,Contracted Services,Adult Services,MH Homecare,"1,225.08"
2205290,5555468,SAFEHANDS CARE LTD#SAFEHANDS GROUP,10/09/2018,52200,Contracted Services,Adult Services,MH Homecare,"1,314.22"
2205290,5574017,SAFEHANDS CARE LTD#SAFEHANDS GROUP,10/09/2018,52200,Contracted Services,Adult Services,MH Homecare,"1,476.37"
3823770,5556829,Sakinas Healthcare Limited T/A SureCare Bolton,17/09/2018,52200,Contracted Services,Adult Services,OA  Home Care Services external provision,"2,477.11"
10259,5589441,Salford City Council,13/09/2018,52200,Contracted Services,Public Health,Substance Misuse,"780,000.00"
2943312,5557521,Salvere Social Enterprise CIC,20/09/2018,52200,Contracted Services,Adult Services,Districts & Neighbourhoods - HoS,"12,362.27"
2943312,5557523,Salvere Social Enterprise CIC,20/09/2018,52200,Contracted Services,Adult Services,Districts & Neighbourhoods - HoS,"15,792.47"
1569311,5586587,SANCTUARY CARR-GOMM#THE SANCTUARY GROUP,13/09/2018,52200,Contracted Services,Adult Services,MH Residential External Provision,553.20
1569311,5586588,SANCTUARY CARR-GOMM#THE SANCTUARY GROUP,13/09/2018,52200,Contracted Services,Adult Services,MH Residential External Provision,553.20
1569311,5586589,SANCTUARY CARR-GOMM#THE SANCTUARY GROUP,13/09/2018,52200,Contracted Services,Adult Services,MH Residential External Provision,553.20
1569311,5586580,SANCTUARY CARR-GOMM#THE SANCTUARY GROUP,10/09/2018,52200,Contracted Services,Adult Services,MH Residential External Provision,663.84
1569311,5586582,SANCTUARY CARR-GOMM#THE SANCTUARY GROUP,17/09/2018,52200,Contracted Services,Adult Services,MH Residential External Provision,885.12
1569311,5586578,SANCTUARY CARR-GOMM#THE SANCTUARY GROUP,17/09/2018,52200,Contracted Services,Adult Services,MH Residential External Provision,"1,106.40"
1569311,5586579,SANCTUARY CARR-GOMM#THE SANCTUARY GROUP,17/09/2018,52200,Contracted Services,Adult Services,MH Residential External Provision,"1,244.70"
1569311,5586581,SANCTUARY CARR-GOMM#THE SANCTUARY GROUP,17/09/2018,52200,Contracted Services,Adult Services,MH Residential External Provision,"1,327.67"
1569311,5586586,SANCTUARY CARR-GOMM#THE SANCTUARY GROUP,17/09/2018,52200,Contracted Services,Adult Services,MH Residential External Provision,"2,435.52"
527536,5556835,SEA RECRUITMENT SERVICES LTD,12/09/2018,52200,Contracted Services,Adult Services,LD Provider  Supported Housing,"1,540.00"
527536,5564781,SEA RECRUITMENT SERVICES LTD,24/09/2018,52200,Contracted Services,Adult Services,LD Provider  Supported Housing,"1,820.00"
527536,5574001,SEA RECRUITMENT SERVICES LTD,24/09/2018,52200,Contracted Services,Adult Services,LD Provider  Supported Housing,"1,820.00"
527536,5556836,SEA RECRUITMENT SERVICES LTD,24/09/2018,52200,Contracted Services,Adult Services,LD Provider  Supported Housing,"5,880.00"
527536,5564782,SEA RECRUITMENT SERVICES LTD,27/09/2018,52200,Contracted Services,Adult Services,LD Provider  Supported Housing,"6,300.00"
527536,5574002,SEA RECRUITMENT SERVICES LTD,27/09/2018,52200,Contracted Services,Adult Services,LD Provider  Supported Housing,"6,300.00"
6656,5567846,SEVA LINE,12/09/2018,52200,Contracted Services,Adult Services,OA  External Provision Residential,"1,752.71"
6656,5567847,SEVA LINE,17/09/2018,52200,Contracted Services,Adult Services,OA  Home Care Services external provision,518.35
6656,5556832,SEVA LINE,24/09/2018,52200,Contracted Services,Adult Services,OA  Home Care Services external provision,621.82
6656,5567846,SEVA LINE,13/09/2018,52200,Contracted Services,Adult Services,OA  Home Care Services external provision,"14,683.11"
6656,5567846,SEVA LINE,24/09/2018,52200,Contracted Services,Adult Services,PD Purcahser Domiciliary Care,"2,958.02"
3433633,5573928,Shorrock Trichem Limited - Powercare,05/09/2018,52200,Contracted Services,Environmental Services,Transport Support Service,830.40
3556670,5586564,Synergy Homecare,17/09/2018,52200,Contracted Services,Adult Services,OA  External Provision Residential,"1,939.37"
3556670,5586562,Synergy Homecare,17/09/2018,52200,Contracted Services,Adult Services,OA  Home Care Services external provision,"2,066.77"
3556670,5586564,Synergy Homecare,20/09/2018,52200,Contracted Services,Adult Services,OA  Home Care Services external provision,"11,872.67"
3556670,5586564,Synergy Homecare,20/09/2018,52200,Contracted Services,Adult Services,PD Purcahser Domiciliary Care,"7,869.15"
3556670,5586564,Synergy Homecare,10/09/2018,52200,Contracted Services,Adult Services,MH Homecare,"3,784.88"
3054467,5555428,Take a Break with Choices,17/09/2018,52200,Contracted Services,Adult Services,OA  Home Care Services external provision,952.00
3054467,5555429,Take a Break with Choices,24/09/2018,52200,Contracted Services,Adult Services,OA  Home Care Services external provision,952.00
3054467,5555430,Take a Break with Choices,17/09/2018,52200,Contracted Services,Adult Services,OA  Home Care Services external provision,952.00
3054467,5555431,Take a Break with Choices,17/09/2018,52200,Contracted Services,Adult Services,OA  Home Care Services external provision,"1,092.00"
3054467,5555432,Take a Break with Choices,13/09/2018,52200,Contracted Services,Adult Services,PD Purcahser Domiciliary Care,"1,092.00"
945,5573634,TERBERG MATEC UK,05/09/2018,52200,Contracted Services,Environmental Services,Transport Support Service,"1,694.40"
945,5573636,TERBERG MATEC UK,05/09/2018,52200,Contracted Services,Environmental Services,Transport Support Service,"2,307.48"
945,5573546,TERBERG MATEC UK,06/09/2018,52200,Contracted Services,Environmental Services,Transport Support Service,"2,748.04"
945,5569805,TERBERG MATEC UK,17/09/2018,52200,Contracted Services,Environmental Services,Transport Support Service,"5,027.52"
3879955,5569638,The Classroom Partnership#Bluestones Group,17/09/2018,52200,Contracted Services,Childrens Services,LACEST,505.00
3879955,5569629,The Classroom Partnership#Bluestones Group,27/09/2018,52200,Contracted Services,Childrens Services,LACEST,550.00
3879955,5569630,The Classroom Partnership#Bluestones Group,27/09/2018,52200,Contracted Services,Childrens Services,LACEST,550.00
3879955,5569636,The Classroom Partnership#Bluestones Group,17/09/2018,52200,Contracted Services,Childrens Services,LACEST,550.00
3879955,5569635,The Classroom Partnership#Bluestones Group,13/09/2018,52200,Contracted Services,Childrens Services,LACEST,550.00
3879955,5569632,The Classroom Partnership#Bluestones Group,10/09/2018,52200,Contracted Services,Childrens Services,LACEST,550.00
3879955,5569640,The Classroom Partnership#Bluestones Group,13/09/2018,52200,Contracted Services,Childrens Services,LACEST,550.00
207974,5555464,THE LOCAL CARE COMPANY (BOLTON) LTD,13/09/2018,52200,Contracted Services,Adult Services,OA  External Provision Residential,706.63
207974,5567856,THE LOCAL CARE COMPANY (BOLTON) LTD,17/09/2018,52200,Contracted Services,Adult Services,OA  External Provision Residential,751.09
207974,5557846,THE LOCAL CARE COMPANY (BOLTON) LTD,17/09/2018,52200,Contracted Services,Adult Services,OA  Home Care Services external provision,"1,199.83"
207974,5567855,THE LOCAL CARE COMPANY (BOLTON) LTD,10/09/2018,52200,Contracted Services,Adult Services,OA  Home Care Services external provision,"1,900.62"
207974,5555463,THE LOCAL CARE COMPANY (BOLTON) LTD,10/09/2018,52200,Contracted Services,Adult Services,OA  Home Care Services external provision,"2,651.51"
207974,5567856,THE LOCAL CARE COMPANY (BOLTON) LTD,10/09/2018,52200,Contracted Services,Adult Services,OA  Home Care Services external provision,"18,949.61"
207974,5555464,THE LOCAL CARE COMPANY (BOLTON) LTD,10/09/2018,52200,Contracted Services,Adult Services,OA  Home Care Services external provision,"19,332.96"
207974,5555466,THE LOCAL CARE COMPANY (BOLTON) LTD,24/09/2018,52200,Contracted Services,Adult Services,PD Purcahser Domiciliary Care,703.87
207974,5567857,THE LOCAL CARE COMPANY (BOLTON) LTD,13/09/2018,52200,Contracted Services,Adult Services,PD Purcahser Domiciliary Care,927.65
207974,5555464,THE LOCAL CARE COMPANY (BOLTON) LTD,27/09/2018,52200,Contracted Services,Adult Services,PD Purcahser Domiciliary Care,"11,069.04"
207974,5567856,THE LOCAL CARE COMPANY (BOLTON) LTD,13/09/2018,52200,Contracted Services,Adult Services,PD Purcahser Domiciliary Care,"12,855.42"
207974,5555464,THE LOCAL CARE COMPANY (BOLTON) LTD,27/09/2018,52200,Contracted Services,Adult Services,LD Purchaser Domiciliary Care,"1,024.91"
207974,5567856,THE LOCAL CARE COMPANY (BOLTON) LTD,24/09/2018,52200,Contracted Services,Adult Services,LD Purchaser Domiciliary Care,"2,168.01"
207974,5555464,THE LOCAL CARE COMPANY (BOLTON) LTD,13/09/2018,52200,Contracted Services,Adult Services,MH Homecare,860.44
207974,5567856,THE LOCAL CARE COMPANY (BOLTON) LTD,17/09/2018,52200,Contracted Services,Adult Services,MH Homecare,"1,516.27"
109359,5556964,The Midcounties Co-operative,06/09/2018,52200,Contracted Services,Chief Executives,Childcare Vouchers Admin,"2,845.52"
39704,5555459,THE TOGETHER TRUST,17/09/2018,52200,Contracted Services,Adult Services,LD Provider  Supported Housing,"1,298.08"
39704,5555460,THE TOGETHER TRUST,17/09/2018,52200,Contracted Services,Adult Services,LD Provider  Supported Housing,"29,649.54"
39704,5555462,THE TOGETHER TRUST,24/09/2018,52200,Contracted Services,Adult Services,LD Provider  Supported Housing,"60,273.92"
39704,5555461,THE TOGETHER TRUST,27/09/2018,52200,Contracted Services,Adult Services,LD Purchaser Supported Housing,"1,946.84"
39704,5555462,THE TOGETHER TRUST,20/09/2018,52200,Contracted Services,Adult Services,LD Purchaser Supported Housing,"5,381.60"
6151,5556911,URBAN OUTREACH (BOLTON),05/09/2018,52200,Contracted Services,Chief Executives,Anti Poverty Measures,"1,114.00"
3140602,5555599,Virgin Care Services Ltd,27/09/2018,52200,Contracted Services,Public Health,PH Commissioning,"1,282.00"
7915,5573648,W & S C JOBSON,10/09/2018,52200,Contracted Services,Environmental Services,Transport Support Service,572.95
7915,5572753,W & S C JOBSON,13/09/2018,52200,Contracted Services,Environmental Services,Transport Support Service,623.73
7915,5573651,W & S C JOBSON,17/09/2018,52200,Contracted Services,Environmental Services,Transport Support Service,"2,823.16"
3483728,5555434,Yasnad Ltd t/a Bluebird Care Bury,17/09/2018,52200,Contracted Services,Adult Services,OA  Home Care Services external provision,897.34
3483728,5555433,Yasnad Ltd t/a Bluebird Care Bury,17/09/2018,52200,Contracted Services,Adult Services,OA  Home Care Services external provision,"1,043.08"
3483728,5573987,Yasnad Ltd t/a Bluebird Care Bury,20/09/2018,52200,Contracted Services,Adult Services,OA  Home Care Services external provision,"1,072.89"
3483728,5555434,Yasnad Ltd t/a Bluebird Care Bury,20/09/2018,52200,Contracted Services,Adult Services,MH Homecare,539.14
3479681,5569812,Bolton Cares,17/09/2018,52215,Contracted Services - Bolton Care and Support Ltd,Adult Services,LD Provider  Outreach,"17,459.05"
6859,5568800,A M EDWARDS,27/09/2018,20100,Day To Day Maintenance,Childrens Services,Harwood Youth Centre (Yth Srv),"2,538.00"
4843755,5567363,Abstract Scaffold Limited,10/09/2018,20100,Day To Day Maintenance,Chief Executives,Land and Property Portfolios,"1,676.00"
4843755,5567359,Abstract Scaffold Limited,13/09/2018,20100,Day To Day Maintenance,Chief Executives,Admin Buildings Portfolio,896.80
189315,5568599,ANTHONY LOVE SEATING INSTALLATIONS LTD,05/09/2018,20100,Day To Day Maintenance,Environmental Services,Albert Halls  Operations,505.00
6277,5589437,ECCLES CONSTRUCTION,05/09/2018,20100,Day To Day Maintenance,Environmental Services,Assets,596.00
6277,5570255,ECCLES CONSTRUCTION,17/09/2018,20100,Day To Day Maintenance,Environmental Services,Assets,"3,997.00"
3536674,5556874,ESCO Electrical Contractors Limited,17/09/2018,20100,Day To Day Maintenance,Chief Executives,Admin Buildings Portfolio,"1,394.00"
267953,5567365,Grantfen Fire & Security,13/09/2018,20100,Day To Day Maintenance,Chief Executives,Admin Buildings Portfolio,"4,230.00"
267953,5567121,Grantfen Fire & Security,13/09/2018,20100,Day To Day Maintenance,Chief Executives,Admin Buildings Portfolio,"5,040.00"
6401,5568370,J HOPKINS (CONTRACTORS) LTD,17/09/2018,20100,Day To Day Maintenance,Housing GRF,Mediation,"2,950.00"
24498,5563977,Lost Art Ltd,13/09/2018,20100,Day To Day Maintenance,Environmental Services,Assets,"1,344.30"
4832803,5567622,PPL PRS Limited,17/09/2018,20100,Day To Day Maintenance,Chief Executives,Admin Buildings Portfolio,"1,147.36"
1538113,5558680,Redacted - Personal Data,13/09/2018,20100,Day To Day Maintenance,Development & Regeneration,Dilapidations Revenue Spend,835.00
4824055,5574144,Revinson Fire Limited,20/09/2018,20100,Day To Day Maintenance,Chief Executives,Admin Buildings Portfolio,792.00
4824055,5574141,Revinson Fire Limited,20/09/2018,20100,Day To Day Maintenance,Chief Executives,Admin Buildings Portfolio,792.50
4824055,5574145,Revinson Fire Limited,27/09/2018,20100,Day To Day Maintenance,Chief Executives,Admin Buildings Portfolio,792.50
4824055,5574138,Revinson Fire Limited,13/09/2018,20100,Day To Day Maintenance,Chief Executives,Admin Buildings Portfolio,920.00
4824055,5592713,Revinson Fire Limited,20/09/2018,20100,Day To Day Maintenance,Chief Executives,Admin Buildings Portfolio,792.50
6672,5563932,SOUTHERNS OFFICE INTERIORS LTD,20/09/2018,20100,Day To Day Maintenance,Childrens Services,Childrens Centre  General,"3,373.76"
251543,5589448,T LOWE & SON LIMITED,10/09/2018,20100,Day To Day Maintenance,Environmental Services,Assets,527.50
2103305,5574154,Sound Reduction Systems Ltd#2,06/09/2018,20103,Day To Day Maintenance Structural,Childrens Services,Waggon Road YP Centre,"2,422.60"
4843755,5555518,Abstract Scaffold Limited,06/09/2018,40610,Direct Materials,Chief Executives,Business Support,"1,676.00"
245759,5569798,ADVANCED BUILDING (NW) LTD,06/09/2018,40610,Direct Materials,Chief Executives,Business Support,"5,233.00"
2052291,5567527,AGGREGATE INDUSTRIES UK LIMITED,17/09/2018,40610,Direct Materials,Environmental Services,Highways Maintenance Billable Costs,848.30
2052291,5557204,AGGREGATE INDUSTRIES UK LIMITED,17/09/2018,40610,Direct Materials,Environmental Services,Highways Maintenance Billable Costs,850.00
2052291,5592661,AGGREGATE INDUSTRIES UK LIMITED,17/09/2018,40610,Direct Materials,Environmental Services,Highways Maintenance Billable Costs,850.00
2052291,5557206,AGGREGATE INDUSTRIES UK LIMITED,24/09/2018,40610,Direct Materials,Environmental Services,Highways Maintenance Billable Costs,853.40
2052291,5557202,AGGREGATE INDUSTRIES UK LIMITED,10/09/2018,40610,Direct Materials,Environmental Services,Highways Maintenance Billable Costs,950.00
2052291,5568798,AGGREGATE INDUSTRIES UK LIMITED,05/09/2018,40610,Direct Materials,Environmental Services,Highways Maintenance Billable Costs,"1,693.20"
2052291,5592665,AGGREGATE INDUSTRIES UK LIMITED,17/09/2018,40610,Direct Materials,Environmental Services,Highways Maintenance Billable Costs,"1,700.00"
2052291,5557208,AGGREGATE INDUSTRIES UK LIMITED,13/09/2018,40610,Direct Materials,Environmental Services,Highways Maintenance Billable Costs,"1,898.10"
2052291,5568799,AGGREGATE INDUSTRIES UK LIMITED,24/09/2018,40610,Direct Materials,Environmental Services,Highways Maintenance Billable Costs,"2,044.30"
2338339,5555496,DIXON SKIPS LTD,05/09/2018,40610,Direct Materials,Environmental Services,Highways Maintenance Billable Costs,"1,120.00"
2338339,5555495,DIXON SKIPS LTD,05/09/2018,40610,Direct Materials,Environmental Services,Highways Maintenance Billable Costs,"1,710.00"
3674,5557192,H & C (Plant Hire) Ltd,24/09/2018,40610,Direct Materials,Environmental Services,Highways Maintenance Billable Costs,814.00
3674,5557189,H & C (Plant Hire) Ltd,17/09/2018,40610,Direct Materials,Environmental Services,Highways Maintenance Billable Costs,"1,144.00"
6399,5557182,J DICKINSON & SONS (HORWICH) LTD#2,13/09/2018,40610,Direct Materials,Environmental Services,Highway Services,753.77
6399,5557178,J DICKINSON & SONS (HORWICH) LTD#2,13/09/2018,40610,Direct Materials,Environmental Services,Highway Services,896.27
6399,5557175,J DICKINSON & SONS (HORWICH) LTD#2,17/09/2018,40610,Direct Materials,Environmental Services,Highway Services,"1,146.96"
7896,5567797,J G REDFORD LTD,27/09/2018,40610,Direct Materials,Housing GRF,Access & Advice Caravan Sites,"4,760.00"
6472,5556726,MARWOOD ELECTRICAL COMPANY LTD,17/09/2018,40610,Direct Materials,Environmental Services,Engineering Projects,"1,020.46"
2993464,5555573,Pelican Road Services Ltd,17/09/2018,40610,Direct Materials,Environmental Services,Highway Services,994.00
2646318,5557194,Richard Burton Haulage Ltd,17/09/2018,40610,Direct Materials,Environmental Services,Highways Maintenance Billable Costs,"1,200.00"
2646318,5557195,Richard Burton Haulage Ltd,27/09/2018,40610,Direct Materials,Environmental Services,Highways Maintenance Billable Costs,"1,200.00"
2646318,5592726,Richard Burton Haulage Ltd,27/09/2018,40610,Direct Materials,Environmental Services,Highways Maintenance Billable Costs,"1,200.00"
88184,5570101,THE COLUMBARIA COMPANY,05/09/2018,40610,Direct Materials,Environmental Services,Bereavement Services,532.00
88184,5570098,THE COLUMBARIA COMPANY,13/09/2018,40610,Direct Materials,Environmental Services,Bereavement Services,735.50
88184,5569817,THE COLUMBARIA COMPANY,10/09/2018,40610,Direct Materials,Environmental Services,Bereavement Services,941.00
2643324,5564738,Complete Background Screening Ltd#CBS,27/09/2018,19400,Disclosure Monitoring,Chief Executives,HR - Corporate,547.50
2218304,5567550,DISCLOSURE AND BARRING SERVICE,06/09/2018,19400,Disclosure Monitoring,Chief Executives,HR - Corporate,"13,952.00"
3391631,5557530,Lead-IT,27/09/2018,45433,ECDL Courseware Hosting,Childrens Services,Admin IT (Schools),"3,850.00"
3391631,5557529,Lead-IT,24/09/2018,45433,ECDL Courseware Hosting,Childrens Services,Admin IT (Schools),"4,480.00"
10182,5569432,NPOWER LIMITED,17/09/2018,21100,Electricity  General,Chief Executives,Land and Property Portfolios,"1,685.20"
10182,5569432,NPOWER LIMITED,17/09/2018,21100,Electricity  General,Chief Executives,Admin Buildings Portfolio,"72,265.07"
10182,5569432,NPOWER LIMITED,05/09/2018,21100,Electricity  General,Chief Executives,Adult Social Care Portfolio,"14,395.12"
10182,5569432,NPOWER LIMITED,05/09/2018,21100,Electricity  General,Chief Executives,Castle Hill,"8,952.45"
10182,5569432,NPOWER LIMITED,24/09/2018,21100,Electricity  General,Childrens Services,Technical Innovation Centre,"2,255.18"
10182,5569432,NPOWER LIMITED,05/09/2018,21100,Electricity  General,Development & Regeneration,The Leverhulme Centre,"1,076.57"
10182,5569432,NPOWER LIMITED,17/09/2018,21100,Electricity  General,Environmental Services,Assets,"2,260.84"
10182,5569432,NPOWER LIMITED,10/09/2018,21100,Electricity  General,Environmental Services,Bereavement Services,"5,411.67"
10182,5569432,NPOWER LIMITED,20/09/2018,21100,Electricity  General,Environmental Services,Markets  Rent Account,"14,802.07"
10182,5569432,NPOWER LIMITED,13/09/2018,21100,Electricity  General,Environmental Services,Depots,"4,243.47"
10182,5569432,NPOWER LIMITED,05/09/2018,21100,Electricity  General,Housing GRF,Access & Advice Caravan Sites,"1,317.97"
10182,5569432,NPOWER LIMITED,17/09/2018,21100,Electricity  General,Housing GRF,Benjamin Court Accommodation,"2,401.01"
46513,5569437,SCOTTISH & SOUTHERN ENERGY PLC,24/09/2018,21100,Electricity  General,Chief Executives,Land and Property Portfolios,"1,189.07"
46513,5569437,SCOTTISH & SOUTHERN ENERGY PLC,05/09/2018,21100,Electricity  General,Chief Executives,Admin Buildings Portfolio,"2,181.61"
46513,5569437,SCOTTISH & SOUTHERN ENERGY PLC,05/09/2018,21100,Electricity  General,Chief Executives,Adult Social Care Portfolio,"1,477.07"
46513,5569437,SCOTTISH & SOUTHERN ENERGY PLC,27/09/2018,21100,Electricity  General,Childrens Services,Oxford Grove CC,"1,525.83"
46513,5569437,SCOTTISH & SOUTHERN ENERGY PLC,10/09/2018,21100,Electricity  General,Childrens Services,Harvey CC,996.80
46513,5569437,SCOTTISH & SOUTHERN ENERGY PLC,24/09/2018,21100,Electricity  General,Childrens Services,Kearsley CC,867.76
46513,5569437,SCOTTISH & SOUTHERN ENERGY PLC,24/09/2018,21100,Electricity  General,Childrens Services,Heywood YP Centre,843.81
46513,5569437,SCOTTISH & SOUTHERN ENERGY PLC,13/09/2018,21100,Electricity  General,Development & Regeneration,Departmental Contingency,"1,224.08"
46513,5569437,SCOTTISH & SOUTHERN ENERGY PLC,13/09/2018,21100,Electricity  General,Environmental Services,Engineering Projects,502.34
46513,5569431,SCOTTISH & SOUTHERN ENERGY PLC,05/09/2018,21100,Electricity  General,Environmental Services,Engineering Projects,"98,502.18"
46513,5579442,SCOTTISH & SOUTHERN ENERGY PLC,17/09/2018,21100,Electricity  General,Environmental Services,Parking Services  On Street,562.75
46513,5569437,SCOTTISH & SOUTHERN ENERGY PLC,17/09/2018,21100,Electricity  General,Environmental Services,Assets,"3,377.25"
46513,5569437,SCOTTISH & SOUTHERN ENERGY PLC,13/09/2018,21100,Electricity  General,Environmental Services,Depots,783.54
6126,5557539,BETHELL CONSTRUCTION LTD,10/09/2018,20501,Engineering Work,Environmental Services,Highway Services,"22,091.08"
6126,5557539,BETHELL CONSTRUCTION LTD,17/09/2018,20501,Engineering Work,Environmental Services,Highways Maintenance Billable Costs,"5,070.28"
2417,5570320,ELECTRICITY NORTH WEST LIMITED#UNITED UTILITIES ELECTRICITY SERVICES LTD,10/09/2018,20501,Engineering Work,Environmental Services,Highway Services,649.63
2775304,5566971,Eric Wright Civil Engineering Ltd,10/09/2018,20501,Engineering Work,Environmental Services,Highway Management,"57,834.72"
2941298,5571521,GreenBlue Urban Ltd,10/09/2018,20501,Engineering Work,Environmental Services,Highway Management,533.28
2941298,5564231,GreenBlue Urban Ltd,05/09/2018,20501,Engineering Work,Environmental Services,Highway Management,"1,763.80"
6399,5592714,J DICKINSON & SONS (HORWICH) LTD#2,05/09/2018,20501,Engineering Work,Environmental Services,Highway Services,"1,143.52"
6399,5592666,J DICKINSON & SONS (HORWICH) LTD#2,05/09/2018,20501,Engineering Work,Environmental Services,Highway Services,"1,325.52"
6399,5570221,J DICKINSON & SONS (HORWICH) LTD#2,06/09/2018,20501,Engineering Work,Environmental Services,Highway Services,"1,859.51"
6401,5567600,J HOPKINS (CONTRACTORS) LTD,20/09/2018,20501,Engineering Work,Environmental Services,Highway Services,"6,048.00"
6401,5567577,J HOPKINS (CONTRACTORS) LTD,05/09/2018,20501,Engineering Work,Environmental Services,Highway Services,"6,048.00"
6401,5572558,J HOPKINS (CONTRACTORS) LTD,13/09/2018,20501,Engineering Work,Environmental Services,Highway Services,"6,048.00"
6401,5567597,J HOPKINS (CONTRACTORS) LTD,24/09/2018,20501,Engineering Work,Environmental Services,Highway Services,"7,056.00"
6401,5572558,J HOPKINS (CONTRACTORS) LTD,10/09/2018,20501,Engineering Work,Environmental Services,Highways Maintenance Billable Costs,504.00
6401,5567427,J HOPKINS (CONTRACTORS) LTD,24/09/2018,20501,Engineering Work,Environmental Services,Highways Maintenance Billable Costs,"2,016.00"
6401,5567425,J HOPKINS (CONTRACTORS) LTD,27/09/2018,20501,Engineering Work,Environmental Services,Highways Maintenance Billable Costs,"2,520.00"
6401,5592722,J HOPKINS (CONTRACTORS) LTD,17/09/2018,20501,Engineering Work,Environmental Services,Highways Maintenance Billable Costs,"2,760.00"
6401,5567422,J HOPKINS (CONTRACTORS) LTD,27/09/2018,20501,Engineering Work,Environmental Services,Highways Maintenance Billable Costs,"5,848.00"
1122809,5568620,JONES LIGHTING LTD,20/09/2018,20501,Engineering Work,Environmental Services,Lighting / Stores Works Budget,539.83
1122809,5568616,JONES LIGHTING LTD,17/09/2018,20501,Engineering Work,Environmental Services,Lighting / Stores Works Budget,539.83
2910352,5578533,Martins Countryside Contracting Ltd,27/09/2018,20501,Engineering Work,Environmental Services,Engineering Drainage,"8,665.99"
1820,5556730,SIBCAS LTD,17/09/2018,20501,Engineering Work,Environmental Services,Highways Maintenance Billable Costs,658.67
37884,5569625,Framearound Limited,10/09/2018,48601,Exhibits Maint & Restoration,Development & Regeneration,Collections  Access  Learning,648.00
4682,5557153,M&G TRANSPORT & TECHNICAL SERVICES LTD,05/09/2018,48601,Exhibits Maint & Restoration,Development & Regeneration,LMA External Funded Projects,783.60
4682,5557152,M&G TRANSPORT & TECHNICAL SERVICES LTD,27/09/2018,48601,Exhibits Maint & Restoration,Development & Regeneration,LMA External Funded Projects,"3,280.99"
4682,5557537,M&G TRANSPORT & TECHNICAL SERVICES LTD,03/09/2018,48601,Exhibits Maint & Restoration,Development & Regeneration,LMA External Funded Projects,"5,776.84"
2360312,5564790,Seddon Construction Ltd,05/09/2018,Z6008,Expense AP Accrual,Bolton MBC Balance Sheet,Bolton MBC Balance Sheet,"10,227.00"
45196,5556717,WATERFLO LTD,05/09/2018,Z6008,Expense AP Accrual,Bolton MBC Balance Sheet,Bolton MBC Balance Sheet,838.00
125827,5562933,FRIDGESMART,24/09/2018,48517,Fees/Expenses Schools,Childrens Services,Youth Service,737.64
303,5569660,OCTAGON FLOWERS,03/09/2018,48626,Floral Decorations,Environmental Services,Bereavement Services,"2,036.00"
3315627,5570277,FTS Event Power Ltd,24/09/2018,21203,Fuel Oil  General,Development & Regeneration,Marketing,"1,685.00"
8963,5557524,Wigan Council,17/09/2018,45613,Fujitsu  Managed Service,Chief Executives,Corporate IT Investment,"2,729.00"
69148,5559457,ASHDOWN SUPPLIES,05/09/2018,40601,General Materials,Environmental Services,Bereavement Services,"1,693.44"
7530,5558696,BROXAP LIMITED,24/09/2018,40601,General Materials,Environmental Services,Activities and Operations,"14,904.00"
125827,5564825,BUTTONS,03/09/2018,40601,General Materials,Development & Regeneration,LMA Promotions,750.60
6216,5556489,COLAS LTD,27/09/2018,40601,General Materials,Environmental Services,Highway Services,"3,186.00"
2788,5567115,CROMWELL POLYTHENE LTD,05/09/2018,40601,General Materials,Environmental Services,Activities and Operations,"3,649.80"
2207290,5557757,NOTTS SPORT LTD,19/09/2018,40601,General Materials,Environmental Services,Activities and Operations,"7,660.00"
20594,5567318,RS COMPONENTS LTD,17/09/2018,40601,General Materials,Environmental Services,Lighting / Stores Works Budget,597.20
426469,5595492,YESHILI REFLECTIVES T/A VIZWEAR,17/09/2018,40601,General Materials,Environmental Services,Activities and Operations,"2,600.00"
337129,5592583,CIPFA BUSINESS LTD,05/09/2018,47200,General Subscriptions,Chief Executives,Internal Audit,"3,545.00"
2794307,5558622,Ulysses (2000) Limited,24/09/2018,47200,General Subscriptions,Childrens Services,Quality Assurance and Improvement Team,"1,231.88"
245548,5572613,DURABLE LTD,27/09/2018,20106,Glazing,Chief Executives,Annual Charge Holding Account,575.00
4728993,5564719,Lumenata Lighting Limited,24/09/2018,40613,Goods for Resale,Development & Regeneration,LMA External Funded Projects,926.11
4842744,5564714,Rhodawn Limited T/A Bookspeed,17/09/2018,40613,Goods for Resale,Development & Regeneration,LMA Retail,"1,059.71"
40476,5557766,PAWS FOR KIDS,24/09/2018,55700,Grant Funded Expenditure,Environmental Services,Community Safety,"10,000.00"
288626,5570390,Premier Pest Services,24/09/2018,20102,Health & Safety,Environmental Services,Markets  Rent Account,530.00
125827,5567204,BARLOWS UK LTD,24/09/2018,20300,Heating & Electrical Work,Housing GRF,Homeless Bed & Breakfast Accommodation,"3,112.80"
125827,5567205,BARLOWS UK LTD,05/09/2018,20300,Heating & Electrical Work,Housing GRF,Homeless Bed & Breakfast Accommodation,"4,645.20"
4850748,5574147,Crest Garden Limited,24/09/2018,40609,Horticultural Materials,Environmental Services,Heaton Fold,976.34
394,5564043,PARK LANE PLANTS LTD,24/09/2018,40609,Horticultural Materials,Environmental Services,Heaton Fold,536.80
6694,5568543,SUTTONS NURSERIES,24/09/2018,40609,Horticultural Materials,Environmental Services,Heaton Fold,522.84
3572671,5579450,Tillage Nurseries,24/09/2018,40609,Horticultural Materials,Environmental Services,Heaton Fold,686.60
3572671,5567242,Tillage Nurseries,05/09/2018,40609,Horticultural Materials,Environmental Services,Heaton Fold,730.00
3572671,5555504,Tillage Nurseries,27/09/2018,40609,Horticultural Materials,Environmental Services,Heaton Fold,994.60
10221,5564046,Vatre Terracotta Limited#apta,05/09/2018,40609,Horticultural Materials,Environmental Services,Heaton Fold,522.20
125827,5565061,CARRS PASTIES LIMITED ,10/09/2018,48207,Hospitality,Environmental Services,Catering,644.36
3949953,5567623,Spacecraft Creative Limited,05/09/2018,45257,ICT Mobile Device Management,Chief Executives,Web Team,"8,400.00"
4366962,5571519,Capacitygrid#Liberata UK Ltd,05/09/2018,45409,Information and Communication Technology,Chief Executives,Non-Domestic Rating,765.00
3545680,5558676,CM2000 Care Management#HAS Technology Limited,12/09/2018,45409,Information and Communication Technology,Adult Services,Reablement,"1,643.42"
3545680,5557209,CM2000 Care Management#HAS Technology Limited,17/09/2018,45409,Information and Communication Technology,Adult Services,Reablement,"3,715.60"
205158,5567344,D A LANGUAGES LTD,05/09/2018,44062,Interpretation and Translation Services,Chief Executives,C.R.M. Operations,564.72
596,5573435,PSI (RESOURCES) LTD,13/09/2018,Z5608,Inv Invoice Price Variance,Property Services,EAM Holding,965.00
532537,5558617,BENCHMARK BUILDING SUPPLIES LTD,13/09/2018,Z5601,Inv Val Materials,Highways,Stores,937.04
532537,5558619,BENCHMARK BUILDING SUPPLIES LTD,17/09/2018,Z5601,Inv Val Materials,Highways,Stores,944.00
2052291,5557162,AGGREGATE INDUSTRIES UK LIMITED,20/09/2018,Z6007,Inventory AP Accrual,Highways,Stores,532.90
2052291,5568411,AGGREGATE INDUSTRIES UK LIMITED,05/09/2018,Z6007,Inventory AP Accrual,Highways,Stores,596.12
2052291,5568412,AGGREGATE INDUSTRIES UK LIMITED,24/09/2018,Z6007,Inventory AP Accrual,Highways,Stores,665.59
2052291,5569971,AGGREGATE INDUSTRIES UK LIMITED,05/09/2018,Z6007,Inventory AP Accrual,Highways,Stores,667.04
2052291,5568409,AGGREGATE INDUSTRIES UK LIMITED,13/09/2018,Z6007,Inventory AP Accrual,Highways,Stores,983.83
2052291,5557164,AGGREGATE INDUSTRIES UK LIMITED,13/09/2018,Z6007,Inventory AP Accrual,Highways,Stores,"1,067.50"
2052291,5568410,AGGREGATE INDUSTRIES UK LIMITED,13/09/2018,Z6007,Inventory AP Accrual,Highways,Stores,"1,191.07"
2658351,5592804,Compass Minerals UK Ltd,05/09/2018,Z6007,Inventory AP Accrual,Highways,Stores,"1,287.26"
2658351,5592803,Compass Minerals UK Ltd,27/09/2018,Z6007,Inventory AP Accrual,Highways,Stores,"1,360.40"
2658351,5592809,Compass Minerals UK Ltd,10/09/2018,Z6007,Inventory AP Accrual,Highways,Stores,"1,387.96"
2658351,5592819,Compass Minerals UK Ltd,05/09/2018,Z6007,Inventory AP Accrual,Highways,Stores,"1,389.86"
2658351,5592815,Compass Minerals UK Ltd,24/09/2018,Z6007,Inventory AP Accrual,Highways,Stores,"2,739.80"
2658351,5592818,Compass Minerals UK Ltd,20/09/2018,Z6007,Inventory AP Accrual,Highways,Stores,"2,775.90"
2658351,5572536,Compass Minerals UK Ltd,05/09/2018,Z6007,Inventory AP Accrual,Highways,Stores,"5,454.90"
2658351,5572527,Compass Minerals UK Ltd,10/09/2018,Z6007,Inventory AP Accrual,Highways,Stores,"5,472.96"
2658351,5572535,Compass Minerals UK Ltd,05/09/2018,Z6007,Inventory AP Accrual,Highways,Stores,"5,546.11"
8412,5567075,EMO OIL LTD#WAS SHELL OIL,13/09/2018,Z6007,Inventory AP Accrual,Highways,Stores,"1,800.00"
6391,5570243,INSTARMAC GROUP PLC,24/09/2018,Z6007,Inventory AP Accrual,Highways,Stores,"1,874.88"
8990,5559492,BOLTON CARPET WAREHOUSE,10/09/2018,40107,Kitchen Equipment,Housing GRF,Benjamin Court Accommodation,729.16
8990,5568376,BOLTON CARPET WAREHOUSE,05/09/2018,40107,Kitchen Equipment,Housing GRF,Furnished Tenancies,877.68
3436,5569816,FISHERS TEXTILES,24/09/2018,40107,Kitchen Equipment,Housing GRF,Benjamin Court Accommodation,605.00
55590,5572591,PAUL DAVIES KITCHEN APPLIANCE CENTRE T/A P&S DOMESTICS,19/09/2018,40107,Kitchen Equipment,Housing GRF,Furnished Tenancies,"1,215.20"
2941298,5572683,GreenBlue Urban Ltd,17/09/2018,20401,Landscape Work,Development & Regeneration,Strategic Development,789.43
3076467,5556919,Redacted - Personal Data,17/09/2018,48529,Late Payment Fees,Childrens Services,Contact & Direct Work,899.09
38538,5556931,18 St Johns Street Chambers,17/09/2018,48502,Legal Fees,Childrens Services,Management Team,950.00
38538,5556930,18 St Johns Street Chambers,13/09/2018,48502,Legal Fees,Childrens Services,Management Team,"1,250.00"
199746,5556932,18 St Johns Street Chambers,17/09/2018,48502,Legal Fees,Childrens Services,Management Team,650.00
4850745,5564728,Centre For Effective Dispute Resolution,20/09/2018,48502,Legal Fees,Development & Regeneration,LMA External Funded Projects,"2,150.00"
3134566,5559502,DAC Beachcroft LLP,05/09/2018,48502,Legal Fees,Chief Executives,Land and Property Portfolios,"1,006.60"
3134566,5576496,DAC Beachcroft LLP,27/09/2018,48502,Legal Fees,Development & Regeneration,Adult Education,"1,680.00"
2910355,5558615,Deans Court Chambers,17/09/2018,48502,Legal Fees,Childrens Services,Management Team,550.00
3599717,5568673,Deans Court Chambers,27/09/2018,48502,Legal Fees,Environmental Services,Regulatory Services Licensing,"1,650.00"
2731305,5556902,Deans Court Chambers,05/09/2018,48502,Legal Fees,Environmental Services,Regulatory Services Licensing,750.00
4828080,5569649,Deans Court Chambers,05/09/2018,48502,Legal Fees,Environmental Services,Regulatory Services Licensing,750.00
4828080,5569646,Deans Court Chambers,27/09/2018,48502,Legal Fees,Environmental Services,Regulatory Services Licensing,"1,750.00"
240279,5569767,Emery PLanning Partnership Limited,10/09/2018,48502,Legal Fees,Development & Regeneration,Development Management,"8,564.17"
187793,5568734,Exchange Chambers,17/09/2018,48502,Legal Fees,Childrens Services,Management Team,550.00
187793,5568735,Exchange Chambers,06/09/2018,48502,Legal Fees,Childrens Services,Management Team,550.00
187793,5568675,Exchange Chambers,24/09/2018,48502,Legal Fees,Childrens Services,Management Team,600.00
4847835,5555476,Nine St John Street Chambers,24/09/2018,48502,Legal Fees,Childrens Services,Management Team,650.00
4852743,5564225,Redacted - Personal Data,17/09/2018,48502,Legal Fees,Development & Regeneration,Development Management,902.50
4852743,5569653,Redacted - Personal Data,05/09/2018,48502,Legal Fees,Development & Regeneration,Development Management,"2,102.50"
89825,5568674,St Johns Building Barristers Chamber,13/09/2018,48502,Legal Fees,Childrens Services,Management Team,500.00
77600,5569673,WEIGHTMANS LLP,17/09/2018,48502,Legal Fees,Development & Regeneration,Dilapidations Revenue Spend,"3,350.00"
1854290,5589438,GREENHALGH KERR,13/09/2018,Z5171,Legal Fees re Business Rates Arrears,Financial Services,Collection Fund Balance Sheet,"5,605.00"
7446,5588479,BOLTON LOCK COMPANY LTD,05/09/2018,25104,Locks,Environmental Services,Assets,687.46
9175,5558477,CH Bolton Limited,20/09/2018,22002,Management Fee,Chief Executives,Castle Hill,"1,236,874.53"
4806032,5557755,CW Property Repairs,27/09/2018,22002,Management Fee,Housing GRF,HMO Licence Fees,910.00
86129,5558692,Ladybridge High School,24/09/2018,22002,Management Fee,Childrens Services,Music ServMusic Service general,"3,545.00"
9175,5572577,CH Bolton Limited,24/09/2018,48511,Management Fees,Chief Executives,Castle Hill,"9,816.51"
46647,5559435,DOTTED EYES LTD,05/09/2018,40607,Maps Plans & Models,Environmental Services,Highway Management,575.00
2878301,5568637,AK Artist Management,20/09/2018,48203,Marketing,Chief Executives,Marketing - Holding Code,750.00
2878301,5568639,AK Artist Management,20/09/2018,48203,Marketing,Chief Executives,Marketing - Holding Code,800.00
2878301,5568358,AK Artist Management,05/09/2018,48203,Marketing,Chief Executives,Marketing - Holding Code,"6,580.00"
2639300,5558688,Communicorp UK,06/09/2018,48203,Marketing,Chief Executives,Marketing - Holding Code,"9,000.00"
62794,5557157,Direct Communications Radio Services Ltd,13/09/2018,48203,Marketing,Chief Executives,Marketing - Holding Code,"1,281.00"
2939322,5568740,Event Services NW Limited,20/09/2018,48203,Marketing,Chief Executives,Marketing - Holding Code,"1,754.40"
2939322,5568742,Event Services NW Limited,05/09/2018,48203,Marketing,Chief Executives,Marketing - Holding Code,"3,306.60"
3029364,5568592,Event Solutions North West Ltd,05/09/2018,48203,Marketing,Chief Executives,Marketing - Holding Code,610.00
3029364,5555605,Event Solutions North West Ltd,27/09/2018,48203,Marketing,Chief Executives,Marketing - Holding Code,"1,570.00"
3029364,5555602,Event Solutions North West Ltd,20/09/2018,48203,Marketing,Chief Executives,Marketing - Holding Code,"3,271.00"
2694323,5567125,Event Technical Support Limited,17/09/2018,48203,Marketing,Chief Executives,Marketing - Holding Code,"7,164.00"
3275616,5556793,FOM Ltd#Fork Off Management Ltd,05/09/2018,48203,Marketing,Chief Executives,Marketing - Holding Code,"1,800.00"
3771723,5558616,H2O Hire Limited,13/09/2018,48203,Marketing,Chief Executives,Marketing - Holding Code,"2,640.00"
4845774,5564709,Harrisons Worsley Limited T/A Chef To Go,24/09/2018,48203,Marketing,Chief Executives,Marketing - Holding Code,500.00
1194842,5572590,IMPRESSION (BOLTON) LIMITED#1,06/09/2018,48203,Marketing,Chief Executives,Marketing Agency,524.00
1194842,5568380,IMPRESSION (BOLTON) LIMITED#1,13/09/2018,48203,Marketing,Chief Executives,Marketing - Holding Code,"1,232.00"
1194842,5557531,IMPRESSION (BOLTON) LIMITED#1,10/09/2018,48203,Marketing,Chief Executives,Marketing - Holding Code,"4,300.00"
2691386,5558678,John Good Ltd,05/09/2018,48203,Marketing,Chief Executives,Marketing - Holding Code,650.00
2930298,5568363,Jonny Cocktail Events Ltd,05/09/2018,48203,Marketing,Chief Executives,Marketing - Holding Code,"4,287.00"
2549294,5564036,Julie Lomax Photography Ltd,24/09/2018,48203,Marketing,Chief Executives,Marketing - Holding Code,850.00
2511619,5567008,Location One Ltd#Light Fantastic,24/09/2018,48203,Marketing,Chief Executives,Marketing - Holding Code,"1,300.00"
4849753,5556967,Mad Edgar Productions Limited,24/09/2018,48203,Marketing,Chief Executives,Marketing - Holding Code,950.00
2032302,5574040,MAHOOD MARQUEES,13/09/2018,48203,Marketing,Chief Executives,Marketing - Holding Code,"1,726.00"
2032302,5569800,MAHOOD MARQUEES,27/09/2018,48203,Marketing,Chief Executives,Marketing - Holding Code,"25,106.00"
139821,5569491,MOONSCAPE MEDIA LTD#PRIMARY TIMES,10/09/2018,48203,Marketing,Environmental Services,Albert Halls  Operations,625.00
2246441,5592732,NB COLOUR PRINT LIMITED,17/09/2018,48203,Marketing,Chief Executives,Marketing - Holding Code,"1,000.00"
2246441,5592755,NB COLOUR PRINT LIMITED,13/09/2018,48203,Marketing,Chief Executives,Marketing - Holding Code,"1,505.54"
2246441,5589458,NB COLOUR PRINT LIMITED,05/09/2018,48203,Marketing,Chief Executives,Marketing - Holding Code,"1,884.00"
2246441,5592744,NB COLOUR PRINT LIMITED,17/09/2018,48203,Marketing,Chief Executives,Marketing - Holding Code,"2,915.74"
23679,5569825,NEWSCO INSIDER LTD,20/09/2018,48203,Marketing,Chief Executives,Marketing - Holding Code,"5,100.00"
2613325,5557193,Newsquest Media Group,13/09/2018,48203,Marketing,Chief Executives,Marketing - Holding Code,"1,213.00"
3622684,5557232,On-Site Kitchen Rentals Ltd,05/09/2018,48203,Marketing,Chief Executives,Marketing - Holding Code,"10,854.46"
2370294,5568603,PAUL CRONE SOUND & VISION LTD,05/09/2018,48203,Marketing,Chief Executives,Marketing - Holding Code,"1,200.00"
117351,5564230,PAUL HEYES PHOTOGRAPHER,05/09/2018,48203,Marketing,Chief Executives,Marketing - Holding Code,600.00
1968323,5564178,PHOTOGRAPHY BY DOMINIC HOLDEN,05/09/2018,48203,Marketing,Chief Executives,Marketing - Holding Code,750.00
2501345,5566973,Primesight Ltd#1,05/09/2018,48203,Marketing,Chief Executives,Marketing - Holding Code,"4,921.37"
246872,5595456,Redacted - Personal Data,27/09/2018,48203,Marketing,Chief Executives,Marketing - Holding Code,"1,750.00"
3616770,5557759,Redacted - Personal Data,05/09/2018,48203,Marketing,Chief Executives,Marketing - Holding Code,"4,500.00"
125827,5566289,REVO,05/09/2018,48203,Marketing,Chief Executives,Marketing - Holding Code,525.00
125827,5566285,RHINO RUGBY LEAGUE,05/09/2018,48203,Marketing,Chief Executives,Marketing - Holding Code,750.00
84680,5568390,ROAD SAFETY SERVICES LTD,05/09/2018,48203,Marketing,Chief Executives,Marketing - Holding Code,700.00
22797,5574034,SHANLEYS LTD,17/09/2018,48203,Marketing,Chief Executives,Marketing - Holding Code,"1,156.10"
10408,5557190,SHORROCK TRICHEM,05/09/2018,48203,Marketing,Chief Executives,Marketing - Holding Code,507.08
25525,5558700,SHOWMED,05/09/2018,48203,Marketing,Chief Executives,Marketing - Holding Code,"8,923.63"
2932132,5558690,Silverback Events Ltd,05/09/2018,48203,Marketing,Chief Executives,Marketing - Holding Code,"6,147.80"
2938308,5568598,Simon Wood Cooks Limited,17/09/2018,48203,Marketing,Chief Executives,Marketing - Holding Code,"1,750.00"
132304,5557212,Slattery Patissier & Chocolatier Ltd,27/09/2018,48203,Marketing,Chief Executives,Marketing - Holding Code,"3,221.30"
1108806,5567341,SONGSMITH RECORDS LTD,06/09/2018,48203,Marketing,Chief Executives,Marketing - Holding Code,"1,800.00"
3639684,5573441,Space Stage Ltd,05/09/2018,48203,Marketing,Chief Executives,Marketing - Holding Code,"3,000.00"
125827,5566294,SUNBRELLA HIRE SHOP,05/09/2018,48203,Marketing,Chief Executives,Marketing - Holding Code,"4,039.62"
1548572,5570424,TRANSPORT FOR GREATER MANCHESTER,12/09/2018,48203,Marketing,Chief Executives,Marketing - Holding Code,"3,900.00"
4614995,5569927,Universal Tanker Solutions Limited,13/09/2018,48203,Marketing,Chief Executives,Marketing - Holding Code,"6,610.00"
4614132,5559454,Redacted - Personal Data,17/09/2018,55711,Medical Referees Fees,Environmental Services,Bereavement Services,"1,820.00"
33429,5569867,TREVOR ROBERTS ASSOCIATES LTD,24/09/2018,46110,Members Training,Chief Executives,Members,800.00
2048428,5569674,CONTOUR HOMES#73,27/09/2018,48629,Miscellaneous Expenses,Property Services,Property Manager Default,"4,455.00"
3425636,5567304,JBL Education Ltd,20/09/2018,48629,Miscellaneous Expenses,Childrens Services,CH84900 - Bolton Learning Alliance,"1,500.00"
3130561,5569690,Last Drop Hotel Limited,13/09/2018,48629,Miscellaneous Expenses,Childrens Services,In School Coaching,"1,462.50"
3130561,5569691,Last Drop Hotel Limited,13/09/2018,48629,Miscellaneous Expenses,Childrens Services,In School Coaching,"1,890.00"
6624,5557079,ROSEWALKS LTD,13/09/2018,48629,Miscellaneous Expenses,Property Services,Property Manager Default,"29,720.10"
213906,5568578,BOLTON COMMUNITY RADIO CIC#BOLTON FM CIC,20/09/2018,47103,Miscellaneous Grants,Chief Executives,Community Empowerment Fund,"3,500.00"
4025955,5571494,Bolton Green Umbrella,20/09/2018,47103,Miscellaneous Grants,Chief Executives,Community Empowerment Fund,827.00
2681385,5557865,Bolton Together,06/09/2018,47103,Miscellaneous Grants,Chief Executives,Community Empowerment Fund,"5,000.00"
7465,5572582,BOLTON YOUNG PERSONS HOUSING SCHEME#BYPHS,24/09/2018,47103,Miscellaneous Grants,Chief Executives,Community Empowerment Fund,"5,000.00"
3554671,5563853,Whistle UK Ltd,24/09/2018,47103,Miscellaneous Grants,Development & Regeneration,REDD Divisional CPRI,"212,560.80"
1293,5567224,VODAFONE LIMITED#1,10/09/2018,45250,Mobile Telephone Purchase,Chief Executives,ICT Operational Billing,788.00
1293,5567229,VODAFONE LIMITED#1,06/09/2018,45250,Mobile Telephone Purchase,Chief Executives,ICT Operational Billing,"1,970.00"
1293,5557528,VODAFONE LIMITED#1,13/09/2018,45250,Mobile Telephone Purchase,Chief Executives,ICT Operational Billing,"5,122.00"
1293,5557527,VODAFONE LIMITED#1,17/09/2018,45250,Mobile Telephone Purchase,Chief Executives,ICT Operational Billing,"5,319.00"
1293,5557525,VODAFONE LIMITED#1,05/09/2018,45250,Mobile Telephone Purchase,Chief Executives,ICT Operational Billing,"5,880.00"
1293,5558459,VODAFONE LIMITED#1,17/09/2018,45250,Mobile Telephone Purchase,Chief Executives,ICT Operational Billing,"10,441.00"
3126625,5557786,EE Limited#2,17/09/2018,45252,Mobile Telephone Rental,Chief Executives,ICT Operational Billing,"2,796.10"
125827,5564861,CICELEY COMMERCIALS,05/09/2018,31306,MOT Test Certificate,Environmental Services,Transport Support Service,"2,446.05"
2613325,5556885,Newsquest Media Group,24/09/2018,40700,Newspapers,Development & Regeneration,Divisional Development,726.72
2613325,5567119,Newsquest Media Group,10/09/2018,40700,Newspapers,Development & Regeneration,Divisional Development,726.72
6126,5567601,BETHELL CONSTRUCTION LTD,17/09/2018,20405,NonScheduled Work,Environmental Services,Assets,"5,551.43"
2348298,5556676,ABBEY HEALTHCARE (FARNWORTH) LIMITED,27/09/2018,54302,Nursing Provision,Adult Services,OA  External Provision Residential,"39,972.00"
2348298,5556676,ABBEY HEALTHCARE (FARNWORTH) LIMITED,13/09/2018,54302,Nursing Provision,Adult Services,PD Purchaser Residential Care,"7,840.00"
2348298,5556676,ABBEY HEALTHCARE (FARNWORTH) LIMITED,13/09/2018,54302,Nursing Provision,Adult Services,MH Residential External Provision,"3,920.00"
2221292,5556669,ADLINGTON MANOR,05/09/2018,54302,Nursing Provision,Adult Services,OA  External Provision Residential,"1,959.44"
6064,5556612,AINSWORTH NURSING HOME,24/09/2018,54302,Nursing Provision,Adult Services,OA  External Provision Residential,"1,700.32"
6064,5556612,AINSWORTH NURSING HOME,24/09/2018,54302,Nursing Provision,Adult Services,MH Residential External Provision,"1,904.36"
2515336,5556710,ASTLEY GRANGE HOMES LIMITED,24/09/2018,54302,Nursing Provision,Adult Services,OA  External Provision Residential,"3,501.44"
2515336,5556682,ASTLEY GRANGE HOMES LIMITED,27/09/2018,54302,Nursing Provision,Adult Services,PD Purchaser Residential Care,"1,960.00"
2515336,5556682,ASTLEY GRANGE HOMES LIMITED,27/09/2018,54302,Nursing Provision,Adult Services,MH Residential External Provision,"2,180.00"
39733,5556642,BEDFORD RESIDENTIAL NURSING CARE HOME,24/09/2018,54302,Nursing Provision,Adult Services,OA  External Provision Residential,"4,024.00"
39733,5556642,BEDFORD RESIDENTIAL NURSING CARE HOME,06/09/2018,54302,Nursing Provision,Adult Services,PD Purchaser Residential Care,"2,012.00"
1552722,5556660,BELONG ATHERTON#EPH,24/09/2018,54302,Nursing Provision,Adult Services,OA  External Provision Residential,"3,887.36"
1552722,5556660,BELONG ATHERTON#EPH,06/09/2018,54302,Nursing Provision,Adult Services,MH Residential External Provision,"2,012.00"
4845867,5556579,Belong Warrington,24/09/2018,54302,Nursing Provision,Adult Services,OA  External Provision Residential,971.84
2387309,5556679,BERKELEY HOUSE,17/09/2018,54302,Nursing Provision,Adult Services,LD Purchaser Residential Care,"14,539.80"
6169,5556627,BROTHERS OF CHARITY SERVICES,17/09/2018,54302,Nursing Provision,Adult Services,LD Purchaser Residential Care,"3,764.44"
1270916,5556656,BURRSWOOD HOUSE,24/09/2018,54302,Nursing Provision,Adult Services,OA  External Provision Residential,"3,808.72"
3076771,5556527,Cheshire House,24/09/2018,54302,Nursing Provision,Adult Services,LD Purchaser Residential Care,"12,142.72"
3456728,5556542,Crystal Hall Care Home,13/09/2018,54302,Nursing Provision,Adult Services,MH Residential External Provision,"3,300.00"
4364957,5556563,Dundoran Nursing Home,24/09/2018,54302,Nursing Provision,Adult Services,OA  External Provision Residential,"2,132.00"
6320,5556582,FOUR SEASONS NURSING HOME,24/09/2018,54302,Nursing Provision,Adult Services,OA  External Provision Residential,"22,887.86"
6320,5556582,FOUR SEASONS NURSING HOME,10/09/2018,54302,Nursing Provision,Adult Services,PD Purchaser Residential Care,"8,500.00"
6320,5556582,FOUR SEASONS NURSING HOME,24/09/2018,54302,Nursing Provision,Adult Services,MH Residential External Provision,"6,520.00"
6342,5556585,GORSEY CLOUGH NURSING HOME LTD,24/09/2018,54302,Nursing Provision,Adult Services,OA  External Provision Residential,"7,617.44"
6342,5556585,GORSEY CLOUGH NURSING HOME LTD,10/09/2018,54302,Nursing Provision,Adult Services,PD Purchaser Residential Care,"1,904.36"
6342,5556585,GORSEY CLOUGH NURSING HOME LTD,10/09/2018,54302,Nursing Provision,Adult Services,MH Residential External Provision,"3,808.72"
6367,5556615,HAZELBROOK CHRISTIAN NURSING HOME,24/09/2018,54302,Nursing Provision,Adult Services,OA  External Provision Residential,"4,180.00"
6367,5556615,HAZELBROOK CHRISTIAN NURSING HOME,17/09/2018,54302,Nursing Provision,Adult Services,PD Purchaser Residential Care,"1,960.00"
6454,5556591,HOLLANDS NURSING HOME,24/09/2018,54302,Nursing Provision,Adult Services,OA  External Provision Residential,"4,360.00"
6454,5556591,HOLLANDS NURSING HOME,20/09/2018,54302,Nursing Provision,Adult Services,PD Purchaser Residential Care,"8,720.00"
6454,5556695,HOLLANDS NURSING HOME,24/09/2018,54302,Nursing Provision,Adult Services,LD Purchaser Residential Care,"2,180.00"
6454,5556591,HOLLANDS NURSING HOME,20/09/2018,54302,Nursing Provision,Adult Services,MH Residential External Provision,"6,540.00"
3229615,5556536,Larkhall Springs,24/09/2018,54302,Nursing Provision,Adult Services,PD Purchaser Residential Care,"1,808.00"
38107,5556638,MEADOW BANK NURSING HOME,24/09/2018,54302,Nursing Provision,Adult Services,OA  External Provision Residential,"7,124.36"
4856,5556625,MEADOWBANK HOUSE,24/09/2018,54302,Nursing Provision,Adult Services,OA  External Provision Residential,"15,680.00"
4856,5556625,MEADOWBANK HOUSE,06/09/2018,54302,Nursing Provision,Adult Services,PD Purchaser Residential Care,"7,840.00"
4856,5556625,MEADOWBANK HOUSE,20/09/2018,54302,Nursing Provision,Adult Services,MH Residential External Provision,"1,960.00"
3274635,5556537,Mewsbrook House,03/09/2018,54302,Nursing Provision,Adult Services,MH Residential External Provision,"2,167.80"
10133,5556635,MILLVIEW NURSING HOME,24/09/2018,54302,Nursing Provision,Adult Services,OA  External Provision Residential,"72,975.00"
10133,5556635,MILLVIEW NURSING HOME,13/09/2018,54302,Nursing Provision,Adult Services,PD Purchaser Residential Care,"10,460.00"
10133,5556635,MILLVIEW NURSING HOME,24/09/2018,54302,Nursing Provision,Adult Services,MH Residential External Provision,"19,620.00"
2938324,5556520,Morden Grange,17/09/2018,54302,Nursing Provision,Adult Services,MH Residential External Provision,"5,180.00"
2147302,5556667,MOSTON GRANGE NURSING HOME,06/09/2018,54302,Nursing Provision,Adult Services,OA  External Provision Residential,"3,700.00"
2845300,5556514,Radcliffe Meadows Nursing Home,17/09/2018,54302,Nursing Provision,Adult Services,LD Purchaser Residential Care,"6,116.80"
6595,5556595,RANDOMLIGHT LTD#HEIGHTSIDE HOUSE,13/09/2018,54302,Nursing Provision,Adult Services,MH Residential External Provision,"9,623.04"
2996362,5556522,Richmond Care,17/09/2018,54302,Nursing Provision,Adult Services,MH Residential External Provision,"3,790.40"
4627041,5556567,Riverside,03/09/2018,54302,Nursing Provision,Adult Services,OA  External Provision Residential,"2,059.80"
6617,5556596,RIVINGTON VIEW NURSING HOME,17/09/2018,54302,Nursing Provision,Adult Services,OA  External Provision Residential,"8,330.00"
6617,5556596,RIVINGTON VIEW NURSING HOME,17/09/2018,54302,Nursing Provision,Adult Services,PD Purchaser Residential Care,"1,960.00"
6617,5556596,RIVINGTON VIEW NURSING HOME,10/09/2018,54302,Nursing Provision,Adult Services,MH Residential External Provision,"1,960.00"
6623,5556599,ROSE COURT NURSING HOME,17/09/2018,54302,Nursing Provision,Adult Services,OA  External Provision Residential,"5,753.08"
6623,5556599,ROSE COURT NURSING HOME,17/09/2018,54302,Nursing Provision,Adult Services,MH Residential External Provision,"3,808.72"
35,5556610,ROSEBRIDGE COURT,24/09/2018,54302,Nursing Provision,Adult Services,OA  External Provision Residential,"2,012.00"
35,5556610,ROSEBRIDGE COURT,17/09/2018,54302,Nursing Provision,Adult Services,PD Purchaser Residential Care,"3,820.00"
35,5556610,ROSEBRIDGE COURT,13/09/2018,54302,Nursing Provision,Adult Services,MH Residential External Provision,"5,692.00"
4661010,5556569,Shannon Court Care Home Limited,13/09/2018,54302,Nursing Provision,Adult Services,OA  External Provision Residential,"31,572.14"
4661010,5556569,Shannon Court Care Home Limited,27/09/2018,54302,Nursing Provision,Adult Services,PD Purchaser Residential Care,"6,100.00"
4661010,5556569,Shannon Court Care Home Limited,10/09/2018,54302,Nursing Provision,Adult Services,MH Residential External Provision,"8,500.00"
6679,5556600,ST CATHERINES CARE HOME,06/09/2018,54302,Nursing Provision,Adult Services,OA  External Provision Residential,"43,858.77"
6679,5556600,ST CATHERINES CARE HOME,17/09/2018,54302,Nursing Provision,Adult Services,PD Purchaser Residential Care,"5,880.00"
6679,5556600,ST CATHERINES CARE HOME,10/09/2018,54302,Nursing Provision,Adult Services,LD Purchaser Residential Care,"2,180.00"
6679,5556600,ST CATHERINES CARE HOME,17/09/2018,54302,Nursing Provision,Adult Services,MH Residential External Provision,"13,391.43"
3936953,5556554,St Georges Care Home (Wigan) Ltd,24/09/2018,54302,Nursing Provision,Adult Services,OA  External Provision Residential,"2,012.00"
3936953,5556554,St Georges Care Home (Wigan) Ltd,20/09/2018,54302,Nursing Provision,Adult Services,PD Purchaser Residential Care,"3,278.57"
3936953,5556554,St Georges Care Home (Wigan) Ltd,27/09/2018,54302,Nursing Provision,Adult Services,MH Residential External Provision,"2,452.00"
3912953,5556553,Stocks Hall Care Homes Ltd#St Helens,24/09/2018,54302,Nursing Provision,Adult Services,MH Residential External Provision,"3,164.24"
3767689,5556550,Strathmore Nursing And Residential Home,12/09/2018,54302,Nursing Provision,Adult Services,OA  External Provision Residential,"4,200.00"
3767689,5556550,Strathmore Nursing And Residential Home,06/09/2018,54302,Nursing Provision,Adult Services,PD Purchaser Residential Care,"6,080.00"
3364632,5556541,The Conifers Nursing Home,12/09/2018,54302,Nursing Provision,Adult Services,OA  External Provision Residential,"2,427.12"
3076773,5556528,Vale House,27/09/2018,54302,Nursing Provision,Adult Services,LD Purchaser Residential Care,"71,595.80"
3909,5574319,INFORMATION & DATA NETWORK SUPPLIES LTD#IDN,20/09/2018,40140,Office Equipment Purchase,Childrens Services,Admin IT (Schools),"4,121.84"
256454,5564737,ONLINE ERGONOMICS LTD,17/09/2018,40140,Office Equipment Purchase,Chief Executives,HB Overpayments Team,525.22
547,5560194,PREFS LTD,06/09/2018,40140,Office Equipment Purchase,Childrens Services,Business Support  Children Social Care,"2,465.00"
248,5570223,NORMANS MUSICAL INSTRUMENTS#NORMANS (BURTON UPON TRENT) LTD,06/09/2018,40150,Office Furniture Purchase,Childrens Services,Music ServInstru & Vocal Teach,"2,636.70"
156398,5558687,THE MUSIC CELLAR,24/09/2018,40150,Office Furniture Purchase,Childrens Services,Music ServInstru & Vocal Teach,"1,446.50"
3291629,5571497,Banner Group Ltd,17/09/2018,43032,Office Stationery,Chief Executives,ICT MFD,"1,066.80"
4761099,5572612,Customworks Limited,17/09/2018,43032,Office Stationery,Development & Regeneration,Customer Services,580.50
4761099,5563986,Customworks Limited,24/09/2018,43032,Office Stationery,Development & Regeneration,Customer Services,"2,221.50"
2908299,5567110,Northgate Public Services (UK) Ltd,13/09/2018,43032,Office Stationery,Chief Executives,C.R.M. Operations,"3,072.80"
814638,5557197,BIRKDALE DESIGN LTD,13/09/2018,40110,Op Equip Furniture Purchase,Housing GRF,Furnished Tenancies,687.00
814638,5557188,BIRKDALE DESIGN LTD,24/09/2018,40110,Op Equip Furniture Purchase,Housing GRF,Furnished Tenancies,760.00
814638,5557221,BIRKDALE DESIGN LTD,24/09/2018,40110,Op Equip Furniture Purchase,Housing GRF,Furnished Tenancies,760.00
814638,5557191,BIRKDALE DESIGN LTD,05/09/2018,40110,Op Equip Furniture Purchase,Housing GRF,Furnished Tenancies,780.00
814638,5557191,BIRKDALE DESIGN LTD,13/09/2018,40110,Op Equip Furniture Purchase,Housing GRF,Furnished Tenancies,780.00
814638,5557228,BIRKDALE DESIGN LTD,20/09/2018,40110,Op Equip Furniture Purchase,Housing GRF,Furnished Tenancies,"1,060.00"
814638,5557207,BIRKDALE DESIGN LTD,03/09/2018,40110,Op Equip Furniture Purchase,Housing GRF,Furnished Tenancies,"1,277.00"
3909,5574312,INFORMATION & DATA NETWORK SUPPLIES LTD#IDN,13/09/2018,40101,Operational Equipment Maint,Childrens Services,Admin IT (Schools),"1,141.95"
3909,5558564,INFORMATION & DATA NETWORK SUPPLIES LTD#IDN,06/09/2018,40101,Operational Equipment Maint,Childrens Services,Admin IT (Schools),"4,325.00"
3909,5558568,INFORMATION & DATA NETWORK SUPPLIES LTD#IDN,24/09/2018,40101,Operational Equipment Maint,Childrens Services,Admin IT (Schools),"4,848.50"
3909,5568936,INFORMATION & DATA NETWORK SUPPLIES LTD#IDN,27/09/2018,40101,Operational Equipment Maint,Childrens Services,Admin IT (Schools),"36,663.15"
1637,5573912,SAFETY KLEEN UK  LTD,24/09/2018,40101,Operational Equipment Maint,Environmental Services,Transport Support Service,532.21
4519997,5567746,Sam Labs Ltd,24/09/2018,40101,Operational Equipment Maint,Childrens Services,Admin IT (Schools),"1,102.40"
8990,5556779,BOLTON CARPET WAREHOUSE,27/09/2018,40100,Operational Equipment Purchase,Housing GRF,Furnished Tenancies,508.89
8990,5559469,BOLTON CARPET WAREHOUSE,13/09/2018,40100,Operational Equipment Purchase,Housing GRF,Furnished Tenancies,625.50
8990,5574062,BOLTON CARPET WAREHOUSE,13/09/2018,40100,Operational Equipment Purchase,Housing GRF,Furnished Tenancies,625.50
8990,5556786,BOLTON CARPET WAREHOUSE,13/09/2018,40100,Operational Equipment Purchase,Housing GRF,Furnished Tenancies,773.73
8990,5559486,BOLTON CARPET WAREHOUSE,05/09/2018,40100,Operational Equipment Purchase,Housing GRF,Local Welfare Provision Pilot,508.89
8990,5559478,BOLTON CARPET WAREHOUSE,17/09/2018,40100,Operational Equipment Purchase,Housing GRF,Local Welfare Provision Pilot,508.89
8990,5568372,BOLTON CARPET WAREHOUSE,05/09/2018,40100,Operational Equipment Purchase,Housing GRF,Local Welfare Provision Pilot,625.50
8990,5595550,BOLTON CARPET WAREHOUSE,05/09/2018,40100,Operational Equipment Purchase,Housing GRF,Local Welfare Provision Pilot,625.50
8990,5595538,BOLTON CARPET WAREHOUSE,17/09/2018,40100,Operational Equipment Purchase,Housing GRF,Local Welfare Provision Pilot,625.50
8990,5559490,BOLTON CARPET WAREHOUSE,27/09/2018,40100,Operational Equipment Purchase,Housing GRF,Local Welfare Provision Pilot,707.93
8990,5574061,BOLTON CARPET WAREHOUSE,27/09/2018,40100,Operational Equipment Purchase,Housing GRF,Local Welfare Provision Pilot,751.59
125827,5563672,C JACKSON SONS LTD,17/09/2018,40100,Operational Equipment Purchase,Environmental Services,Heaton Fold,800.00
125827,5566679,CPC,05/09/2018,40100,Operational Equipment Purchase,Environmental Services,Albert Halls  Operations,762.70
2788,5557761,CROMWELL POLYTHENE LTD,17/09/2018,40100,Operational Equipment Purchase,Environmental Services,Waste,"5,449.60"
2788,5569836,CROMWELL POLYTHENE LTD,27/09/2018,40100,Operational Equipment Purchase,Environmental Services,Waste,"14,952.34"
6336,5570432,GLASDON UK LTD,27/09/2018,40100,Operational Equipment Purchase,Development & Regeneration,Libraries - Crescent,548.40
125827,5566150,LOVE2SHOP,05/09/2018,40100,Operational Equipment Purchase,Childrens Services,Business Support    West District,996.25
561,5555507,PRESTIGE BLINDS LTD,24/09/2018,40100,Operational Equipment Purchase,Development & Regeneration,LMA Library Mgmt,"1,032.00"
1509,5563852,ROBERT SCOTT & SONS LTD,17/09/2018,40100,Operational Equipment Purchase,Environmental Services,Building Cleaning,"1,443.75"
125827,5563318,SAFETYTEC,24/09/2018,40100,Operational Equipment Purchase,Environmental Services,Depots,750.18
125827,5562932,SKATEHUT,20/09/2018,40100,Operational Equipment Purchase,Childrens Services,Youth Service,645.52
125827,5564822,STAR EDITIONS,24/09/2018,40100,Operational Equipment Purchase,Development & Regeneration,LMA Promotions,863.13
125827,5564845,TOTAL MERCHANDISE,24/09/2018,40100,Operational Equipment Purchase,Development & Regeneration,LMA Promotions,"2,592.00"
176718,5558545,VIRGIN MEDIA PAYMENTS LTD#VIRGIN MEDIA BUSINESS,05/09/2018,40100,Operational Equipment Purchase,Childrens Services,Admin IT (Schools),"9,691.68"
125827,5562913,WATERWALKER,20/09/2018,40100,Operational Equipment Purchase,Childrens Services,Youth Service,"6,009.60"
3376,5588458,F R SHARROCK LTD#SHARROCKS,17/09/2018,40102,Operational Equipment Rental,Environmental Services,Activities and Operations,"4,997.49"
3376,5588458,F R SHARROCK LTD#SHARROCKS,20/09/2018,40102,Operational Equipment Rental,Environmental Services,Bereavement Services,510.00
4177954,5595507,Kennet Equipment Leasing Ltd,05/09/2018,40102,Operational Equipment Rental,Environmental Services,Albert Halls  Operations,783.78
127996,5568595,MDM ENTERTAINMENTS,05/09/2018,40102,Operational Equipment Rental,Environmental Services,Albert Halls  Operations,848.00
842656,5567102,S & S MARQUEES#S & S MARQUEES LTD,05/09/2018,40102,Operational Equipment Rental,Development & Regeneration,Marketing,"2,615.00"
3950953,5595526,The Christmas Decorators,24/09/2018,40102,Operational Equipment Rental,Environmental Services,Albert Halls  Operations,"1,514.50"
4614995,5567791,Universal Tanker Solutions Limited,17/09/2018,40102,Operational Equipment Rental,Development & Regeneration,Marketing,"4,330.00"
2515336,5573906,ASTLEY GRANGE HOMES LIMITED,27/09/2018,50002,Other Agency/Contracted Services,Adult Services,Management Team,"4,490.85"
2515336,5573905,ASTLEY GRANGE HOMES LIMITED,10/09/2018,50002,Other Agency/Contracted Services,Adult Services,Management Team,"4,790.24"
2906298,5556910,Blackrod House#1,27/09/2018,50002,Other Agency/Contracted Services,Adult Services,Management Team,"4,490.85"
87584,5557790,COULSON & COLLINS CARE HOME LTD,24/09/2018,50002,Other Agency/Contracted Services,Adult Services,Management Team,"5,239.33"
105919,5569831,MACDONALD CARE LIMITED,06/09/2018,50002,Other Agency/Contracted Services,Adult Services,Management Team,"6,137.50"
3271616,5560897,Morgan Care Limited#Bakewells Care Home,13/09/2018,50002,Other Agency/Contracted Services,Adult Services,Management Team,"5,089.63"
4091963,5558623,Parkview Residential Home,03/09/2018,50002,Other Agency/Contracted Services,Adult Services,Management Team,"4,790.24"
3767689,5573903,Strathmore Nursing And Residential Home,24/09/2018,50002,Other Agency/Contracted Services,Adult Services,Management Team,"4,790.24"
125827,5566702,BARGAIN DEALS ,05/09/2018,44054,Other Clients Services,Childrens Services,Child Prot Leaving Care Team,718.00
124443,5568736,ADVANCED CHILDCARE ASSESSMENTS LTD,06/09/2018,48509,Other Fees,Childrens Services,Management Team,"1,598.90"
124443,5556936,ADVANCED CHILDCARE ASSESSMENTS LTD,05/09/2018,48509,Other Fees,Childrens Services,Management Team,"1,966.00"
124443,5556934,ADVANCED CHILDCARE ASSESSMENTS LTD,24/09/2018,48509,Other Fees,Childrens Services,Management Team,"2,040.05"
110901,5567174,ALLPAY.NET LTD,24/09/2018,48509,Other Fees,Chief Executives,CSD Cashiers,765.65
110901,5567166,ALLPAY.NET LTD,06/09/2018,48509,Other Fees,Chief Executives,CSD Cashiers,"2,178.13"
110901,5559787,ALLPAY.NET LTD,20/09/2018,48509,Other Fees,Chief Executives,CSD Cashiers,"2,658.95"
110901,5559508,ALLPAY.NET LTD,20/09/2018,48509,Other Fees,Chief Executives,CSD Cashiers,"2,993.30"
110901,5559515,ALLPAY.NET LTD,13/09/2018,48509,Other Fees,Chief Executives,CSD Cashiers,"4,864.85"
110901,5567172,ALLPAY.NET LTD,10/09/2018,48509,Other Fees,Chief Executives,CSD Cashiers,"7,295.30"
110901,5559512,ALLPAY.NET LTD,10/09/2018,48509,Other Fees,Chief Executives,CSD Cashiers,"7,644.30"
110901,5559514,ALLPAY.NET LTD,05/09/2018,48509,Other Fees,Chief Executives,CSD Cashiers,"22,074.60"
110901,5559516,ALLPAY.NET LTD,06/09/2018,48509,Other Fees,Chief Executives,CSD Cashiers,"119,209.60"
110901,5559505,ALLPAY.NET LTD,13/09/2018,48509,Other Fees,Chief Executives,CSD Cashiers,"130,599.15"
1544379,5555541,BEECHFIELD LODGE#ANCHOR TRUST,24/09/2018,48509,Other Fees,Development & Regeneration,LMA External Funded Projects,500.00
43551,5569530,BOLTON COMMUNITY LEISURE LTD,10/09/2018,48509,Other Fees,Development & Regeneration,The Leisure Trust,"11,393.69"
4852744,5564223,Cosmecare,13/09/2018,48509,Other Fees,Environmental Services,Regulatory Services,"2,210.00"
3134566,5569848,DAC Beachcroft LLP,27/09/2018,48509,Other Fees,Chief Executives,Land and Property Portfolios,"17,515.00"
3134566,5576495,DAC Beachcroft LLP,24/09/2018,48509,Other Fees,Chief Executives,Estates & Property Management,"1,000.00"
14143,5578532,EQUITA LIMITED,27/09/2018,48509,Other Fees,Chief Executives,Non-Domestic Rating,658.54
14143,5568584,EQUITA LIMITED,17/09/2018,48509,Other Fees,Chief Executives,Non-Domestic Rating,"2,110.47"
14143,5592442,EQUITA LIMITED,17/09/2018,48509,Other Fees,Environmental Services,Parking Services  On Street,"1,037.02"
14143,5568630,EQUITA LIMITED,05/09/2018,48509,Other Fees,Environmental Services,Parking Services  On Street,"1,080.17"
14143,5555506,EQUITA LIMITED,17/09/2018,48509,Other Fees,Environmental Services,Parking Services  On Street,"1,437.17"
125827,5566201,EYE-VET,05/09/2018,48509,Other Fees,Childrens Services,Financial Admin,"1,350.00"
2535348,5569656,Forensic Testing Service Ltd,10/09/2018,48509,Other Fees,Childrens Services,Management Team,846.30
220061,5570379,GATENBYSANDERSON,27/09/2018,48509,Other Fees,Childrens Services,Admin DMT,"2,177.50"
63440,5567184,Interpreting & Translating Services,24/09/2018,48509,Other Fees,Adult Services,Community Learning Disability Team,"1,764.00"
63440,5567185,Interpreting & Translating Services,10/09/2018,48509,Other Fees,Adult Services,Community Learning Disability Team,"2,088.00"
4816031,5589436,IRG Advisors LLP T/A Odgers Interim,27/09/2018,48509,Other Fees,Childrens Services,Admin DMT,"5,200.00"
6399,5558646,J DICKINSON & SONS (HORWICH) LTD#2,20/09/2018,48509,Other Fees,Environmental Services,Activities and Operations,574.55
6399,5558651,J DICKINSON & SONS (HORWICH) LTD#2,27/09/2018,48509,Other Fees,Environmental Services,Activities and Operations,960.00
16022,5578576,JACOBS CERTIFICATED BAILIFFS#4,05/09/2018,48509,Other Fees,Chief Executives,Council Tax,"5,260.01"
16022,5564020,JACOBS CERTIFICATED BAILIFFS#4,27/09/2018,48509,Other Fees,Chief Executives,Council Tax,"5,948.84"
16022,5556480,JACOBS CERTIFICATED BAILIFFS#4,24/09/2018,48509,Other Fees,Chief Executives,Council Tax,"6,969.81"
16022,5567161,JACOBS CERTIFICATED BAILIFFS#4,05/09/2018,48509,Other Fees,Chief Executives,Council Tax,"8,288.96"
16022,5595556,JACOBS CERTIFICATED BAILIFFS#4,10/09/2018,48509,Other Fees,Environmental Services,Parking Services  On Street,"2,930.00"
16022,5567342,JACOBS CERTIFICATED BAILIFFS#4,13/09/2018,48509,Other Fees,Environmental Services,Parking Services  On Street,"4,855.09"
4847836,5555474,Kantar Media#Precise Media Monitoring Limited,05/09/2018,48509,Other Fees,Chief Executives,Marketing Agency,"2,750.00"
3106490,5568548,Ladybirds Nursery Bolton Limited,27/09/2018,48509,Other Fees,Childrens Services,LAC Team,"1,066.00"
6467,5558648,Manchester City Council,17/09/2018,48509,Other Fees,Development & Regeneration,LMA Library Mgmt,"2,000.00"
232085,5569839,Northgate Arinso UK Ltd,24/09/2018,48509,Other Fees,Chief Executives,HR - Corporate,"10,714.26"
93470,5564016,Phoenix Commercial Collections#2,05/09/2018,48509,Other Fees,Chief Executives,Council Tax,515.75
93470,5559511,Phoenix Commercial Collections#2,13/09/2018,48509,Other Fees,Environmental Services,Parking Services  On Street,764.50
93470,5591443,Phoenix Commercial Collections#2,13/09/2018,48509,Other Fees,Environmental Services,Parking Services  On Street,"2,294.99"
4578955,5555609,Psychology People,13/09/2018,48509,Other Fees,Childrens Services,Education Psychology Service,"1,872.00"
4578955,5555613,Psychology People,05/09/2018,48509,Other Fees,Childrens Services,Education Psychology Service,"1,872.00"
4578955,5555611,Psychology People,17/09/2018,48509,Other Fees,Childrens Services,Education Psychology Service,"1,872.00"
3886956,5567628,Redacted - Personal Data,13/09/2018,48509,Other Fees,Chief Executives,Members,"1,237.50"
2910325,5571516,Redacted - Personal Data,28/09/2018,48509,Other Fees,Chief Executives,Financial Management,"2,738.00"
590560,5557125,Redacted - Personal Data,13/09/2018,48509,Other Fees,Childrens Services,"Sport, Health & Inclusion General",524.02
3212639,5589520,Redacted - Personal Data,13/09/2018,48509,Other Fees,Childrens Services,Disability Serv Trackside Approach,979.59
124408,5556944,Redacted - Personal Data,24/09/2018,48509,Other Fees,Childrens Services,Management Team,"1,014.40"
3249620,5577436,Redacted - Personal Data,13/09/2018,48509,Other Fees,Childrens Services,Management Team,850.00
3623684,5555477,Redacted - Personal Data,05/09/2018,48509,Other Fees,Development & Regeneration,Development Management,"1,462.50"
10259,5589469,Salford City Council,10/09/2018,48509,Other Fees,Development & Regeneration,D&R Building Control (Trading),"1,872.45"
10259,5589471,Salford City Council,13/09/2018,48509,Other Fees,Development & Regeneration,D&R Building Control (Trading),"2,280.00"
10259,5572518,Salford City Council,17/09/2018,48509,Other Fees,Environmental Services,Regulatory Services,"5,000.00"
3570671,5592441,Shannon Educational Psychology Ltd,27/09/2018,48509,Other Fees,Childrens Services,Education Psychology Service,800.00
36512,5592582,Sharples High School,24/09/2018,48509,Other Fees,Childrens Services,CH84900 - Bolton Learning Alliance,952.95
1550618,5558487,STOPFORD INFORMATION SYSTEMS LIMITED,05/09/2018,48509,Other Fees,Chief Executives,Web Team,650.00
125827,5566794,STUDIOUK LTD,05/09/2018,48509,Other Fees,Environmental Services,Heaton Fold,714.00
125827,5566793,STUDIOUK LTD,24/09/2018,48509,Other Fees,Environmental Services,Heaton Fold,738.00
125827,5566795,STUDIOUK LTD,17/09/2018,48509,Other Fees,Environmental Services,Heaton Fold,738.00
2532340,5567451,Tusker,05/09/2018,48509,Other Fees,Chief Executives,Car Salary Sacrifice Scheme,640.91
204318,5592622,WILDE CONSULTANTS LTD,13/09/2018,48509,Other Fees,Environmental Services,Parking Services  On Street,"1,955.25"
4870745,5589526,Wilmington Shared Services Limited,17/09/2018,48509,Other Fees,Development & Regeneration,The Work Programme,595.00
1579359,5567130,EXCLUSEC SECURITY SOLUTIONS LTD,17/09/2018,25105,Other Security,Development & Regeneration,Marketing,"18,500.00"
6013,5566986,NATIONAL SECURITY INSPECTORATE,13/09/2018,25105,Other Security,Environmental Services,Security Services,705.00
25274,5568581,ALSECURE GROUP LTD,05/09/2018,44401,Other Security Expenses,Housing GRF,Benjamin Court Accommodation,939.96
25274,5558513,ALSECURE GROUP LTD,24/09/2018,44401,Other Security Expenses,Housing GRF,Benjamin Court Accommodation,939.96
25274,5595500,ALSECURE GROUP LTD,05/09/2018,44401,Other Security Expenses,Housing GRF,Benjamin Court Accommodation,939.96
25274,5595504,ALSECURE GROUP LTD,13/09/2018,44401,Other Security Expenses,Housing GRF,Benjamin Court Accommodation,939.96
25274,5558514,ALSECURE GROUP LTD,17/09/2018,44401,Other Security Expenses,Housing GRF,Benjamin Court Accommodation,973.53
25274,5564706,ALSECURE GROUP LTD,17/09/2018,44401,Other Security Expenses,Housing GRF,Benjamin Court Accommodation,"1,107.81"
6518,5556486,NORTHERN MUNICIPAL SPARES LTD,05/09/2018,31308,Other Vehicle Running Costs,Environmental Services,Activities and Operations,"3,726.90"
7896,5559500,J G REDFORD LTD,17/09/2018,20105,Painting & Decorating,Housing GRF,Benjamin Court Accommodation,"1,945.00"
871655,5557522,AGILISYS LIMITED,17/09/2018,43030,Photocopying Lease/Maintenance,Chief Executives,ICT MFD,"3,518.77"
3674,5570216,H & C (Plant Hire) Ltd,13/09/2018,33202,Plant Hire,Environmental Services,Highways Maintenance Billable Costs,"1,309.00"
3674,5568782,H & C (Plant Hire) Ltd,03/09/2018,33202,Plant Hire,Environmental Services,Highways Maintenance Billable Costs,"1,474.00"
3674,5568784,H & C (Plant Hire) Ltd,05/09/2018,33202,Plant Hire,Environmental Services,Highways Maintenance Billable Costs,"2,240.00"
3674,5568786,H & C (Plant Hire) Ltd,17/09/2018,33202,Plant Hire,Environmental Services,Highways Maintenance Billable Costs,"3,456.00"
3674,5563922,H & C (Plant Hire) Ltd,13/09/2018,33202,Plant Hire,Environmental Services,Depots,"1,426.00"
3305634,5570069,J C Davies Plant Hire,20/09/2018,33202,Plant Hire,Environmental Services,Bereavement Services,"2,637.50"
3305634,5570071,J C Davies Plant Hire,13/09/2018,33202,Plant Hire,Environmental Services,Bereavement Services,"3,372.50"
2646318,5568575,Richard Burton Haulage Ltd,10/09/2018,33202,Plant Hire,Environmental Services,Highways Maintenance Billable Costs,960.00
2646318,5569765,Richard Burton Haulage Ltd,27/09/2018,33202,Plant Hire,Environmental Services,Highways Maintenance Billable Costs,960.00
6619,5557256,ROBINSON PLANT HIRE,24/09/2018,33202,Plant Hire,Environmental Services,Activities and Operations,529.75
6619,5592826,ROBINSON PLANT HIRE,05/09/2018,33202,Plant Hire,Environmental Services,Activities and Operations,529.75
6619,5569478,ROBINSON PLANT HIRE,17/09/2018,33202,Plant Hire,Environmental Services,Activities and Operations,581.78
164104,5564182,SMITHS EQUIPMENT HIRE LTD#2,13/09/2018,33202,Plant Hire,Environmental Services,Activities and Operations,665.32
6629,5556800,ROYAL MAIL GROUP LTD,05/09/2018,45002,Postage Charge,Childrens Services,FIAT,916.77
6629,5557255,ROYAL MAIL GROUP LTD,05/09/2018,45000,Postages Direct Costs,Chief Executives,Housing Benefits,584.97
6629,5573649,ROYAL MAIL GROUP LTD,05/09/2018,45000,Postages Direct Costs,Chief Executives,Housing Benefits,603.97
6629,5567369,ROYAL MAIL GROUP LTD,27/09/2018,45000,Postages Direct Costs,Chief Executives,Council Tax,"1,171.74"
6629,5557255,ROYAL MAIL GROUP LTD,27/09/2018,45000,Postages Direct Costs,Chief Executives,Council Tax,"1,770.61"
6629,5573649,ROYAL MAIL GROUP LTD,06/09/2018,45000,Postages Direct Costs,Chief Executives,Council Tax,"2,545.44"
2441353,5574320,OSMIS EDUCATION LIMITED,24/09/2018,53000,Private Contracted Services,Childrens Services,Admin IT (Schools),"4,435.00"
6629,5588471,ROYAL MAIL GROUP LTD,10/09/2018,53000,Private Contracted Services,Environmental Services,Couriers,"1,792.00"
337129,5591437,CIPFA BUSINESS LTD,24/09/2018,19406,Professional Fees,Chief Executives,Business Support,975.00
6399,5557171,J DICKINSON & SONS (HORWICH) LTD#2,05/09/2018,20101,Programmed Maint. Work,Environmental Services,Highways Managers,554.52
2923309,5560480,Schneider Electric Ltd#2,13/09/2018,20101,Programmed Maint. Work,Chief Executives,Admin Buildings Portfolio,"10,807.17"
2212324,5570201,Redacted - Personal Data,10/09/2018,48205,Promoting Bolton,Development & Regeneration,Marketing,955.00
1184,5572671,TURNER & WRIGHTS LIMITED,17/09/2018,48205,Promoting Bolton,Development & Regeneration,LMA Promotions,"2,223.69"
2071291,5572678,WHITEHOUSE EVENT CROCKERY,17/09/2018,48205,Promoting Bolton,Development & Regeneration,LMA Promotions,"1,060.00"
248317,5557746,CITY B GROUP,10/09/2018,48204,Promoting Events,Development & Regeneration,Marketing,"3,939.00"
63617,5592745,INSTITUTE OF LICENSING,05/09/2018,48204,Promoting Events,Environmental Services,Regulatory Services Licensing,"1,008.00"
10232,5569651,ECE CONSULTANCY LTD,17/09/2018,20500,R & M Cremators,Environmental Services,Bereavement Services,944.90
10232,5556840,ECE CONSULTANCY LTD,10/09/2018,20500,R & M Cremators,Environmental Services,Bereavement Services,"1,095.80"
10232,5572450,ECE CONSULTANCY LTD,05/09/2018,20500,R & M Cremators,Environmental Services,Bereavement Services,"1,140.00"
10232,5569826,ECE CONSULTANCY LTD,17/09/2018,20500,R & M Cremators,Environmental Services,Bereavement Services,"20,928.00"
302830,5568766,DATASPACE,13/09/2018,48506,Records Storage,Chief Executives,Legal Services Trading Account,741.02
302830,5569729,DATASPACE,17/09/2018,48506,Records Storage,Childrens Services,Business Support  Children Social Care,854.44
78998,5577439,Venn Group Ltd,17/09/2018,48506,Records Storage,Chief Executives,Corporate Information Team,922.56
78998,5577438,Venn Group Ltd,17/09/2018,48506,Records Storage,Chief Executives,Corporate Information Team,"1,548.11"
4090954,5589524,Lasa#Lasa Charity UK Ltd#Rightsnet,24/09/2018,19000,Recruitment Advertising,Chief Executives,Welfare Rights,500.00
313,5588463,Oldham Council,24/09/2018,19000,Recruitment Advertising,Chief Executives,HR - Childrens Services(Non Schools),"3,496.00"
313,5588463,Oldham Council,24/09/2018,19000,Recruitment Advertising,Chief Executives,HR Pay Modelling Project,"3,496.00"
6399,5570093,J DICKINSON & SONS (HORWICH) LTD#2,05/09/2018,26106,Refuse Collection,Environmental Services,Bereavement Services,657.52
230664,5569827,VIRIDOR WASTE MANAGEMENT LIMITED,05/09/2018,26106,Refuse Collection,Environmental Services,Markets  Rent Account,"6,580.94"
6055,5556688,ABAFIELDS RESIDENTIAL HOME,24/09/2018,54301,Residential Provision,Adult Services,OA  External Provision Residential,"2,800.00"
6055,5556580,ABAFIELDS RESIDENTIAL HOME,06/09/2018,54301,Residential Provision,Adult Services,OA  External Provision Residential,"28,129.00"
6055,5556688,ABAFIELDS RESIDENTIAL HOME,06/09/2018,54301,Residential Provision,Adult Services,PD Purchaser Residential Care,"1,960.00"
6055,5556580,ABAFIELDS RESIDENTIAL HOME,20/09/2018,54301,Residential Provision,Adult Services,PD Purchaser Residential Care,"6,120.00"
6055,5556580,ABAFIELDS RESIDENTIAL HOME,13/09/2018,54301,Residential Provision,Adult Services,LD Purchaser Residential Care,"2,306.48"
6055,5556688,ABAFIELDS RESIDENTIAL HOME,17/09/2018,54301,Residential Provision,Adult Services,MH Residential External Provision,"5,880.00"
6055,5556580,ABAFIELDS RESIDENTIAL HOME,20/09/2018,54301,Residential Provision,Adult Services,MH Residential External Provision,"9,163.78"
2348298,5556677,ABBEY HEALTHCARE (FARNWORTH) LIMITED,13/09/2018,54301,Residential Provision,Adult Services,OA  External Provision Residential,"45,150.00"
2348298,5556677,ABBEY HEALTHCARE (FARNWORTH) LIMITED,17/09/2018,54301,Residential Provision,Adult Services,PD Purchaser Residential Care,"5,250.00"
2348298,5556677,ABBEY HEALTHCARE (FARNWORTH) LIMITED,10/09/2018,54301,Residential Provision,Adult Services,MH Residential External Provision,"3,920.00"
2341303,5556674,ABBEYCLIFFE RESIDENTIAL CARE HOME,06/09/2018,54301,Residential Provision,Adult Services,OA  External Provision Residential,"7,617.44"
6894,5556621,ABBEYDALE RESIDENTIAL CARE HOME,17/09/2018,54301,Residential Provision,Adult Services,OA  External Provision Residential,"3,808.72"
6064,5556611,AINSWORTH NURSING HOME,06/09/2018,54301,Residential Provision,Adult Services,MH Residential External Provision,"1,904.36"
3944953,5556556,Alma Green Residential Care Home,13/09/2018,54301,Residential Provision,Adult Services,OA  External Provision Residential,"2,181.84"
2564295,5556505,Almond Villas Ltd,27/09/2018,54301,Residential Provision,Adult Services,MH Residential External Provision,"2,685.68"
2564295,5556504,Almond Villas Ltd,27/09/2018,54301,Residential Provision,Adult Services,MH Residential External Provision,"5,246.64"
2246414,5556671,ANSAR PROJECTS,05/09/2018,54301,Residential Provision,Adult Services,MH Residential External Provision,"4,536.00"
2338498,5556673,ASHTREE HOUSE,24/09/2018,54301,Residential Provision,Adult Services,PD Purchaser Residential Care,"1,700.00"
2515336,5556683,ASTLEY GRANGE HOMES LIMITED,24/09/2018,54301,Residential Provision,Adult Services,OA  External Provision Residential,"6,980.00"
3124571,5556531,Bank House Care Home#1,10/09/2018,54301,Residential Provision,Adult Services,OA  External Provision Residential,"4,084.72"
4590014,5556565,Bankfield Care Home,24/09/2018,54301,Residential Provision,Adult Services,OA  External Provision Residential,"1,904.36"
2709325,5556511,Bannister Farm Cottage,05/09/2018,54301,Residential Provision,Adult Services,LD Purchaser Residential Care,"24,382.56"
4823093,5556572,Bascombe Court,05/09/2018,54301,Residential Provision,Adult Services,PD Purchaser Residential Care,"1,716.00"
39733,5556641,BEDFORD RESIDENTIAL NURSING CARE HOME,06/09/2018,54301,Residential Provision,Adult Services,OA  External Provision Residential,"1,700.00"
39733,5556641,BEDFORD RESIDENTIAL NURSING CARE HOME,20/09/2018,54301,Residential Provision,Adult Services,PD Purchaser Residential Care,"1,980.00"
1544379,5556657,BEECHFIELD LODGE#ANCHOR TRUST,17/09/2018,54301,Residential Provision,Adult Services,OA  External Provision Residential,"1,814.08"
247279,5556649,BEECHVILLE CARE HOME,17/09/2018,54301,Residential Provision,Adult Services,OA  External Provision Residential,"20,051.24"
247279,5556649,BEECHVILLE CARE HOME,13/09/2018,54301,Residential Provision,Adult Services,PD Purchaser Residential Care,"2,869.32"
1552722,5556659,BELONG ATHERTON#EPH,24/09/2018,54301,Residential Provision,Adult Services,OA  External Provision Residential,"11,327.14"
2906298,5556516,Blackrod House#1,24/09/2018,54301,Residential Provision,Adult Services,OA  External Provision Residential,"44,752.20"
2906298,5556684,Blackrod House#1,13/09/2018,54301,Residential Provision,Adult Services,PD Purchaser Residential Care,"1,050.00"
2906298,5556516,Blackrod House#1,17/09/2018,54301,Residential Provision,Adult Services,PD Purchaser Residential Care,"1,960.00"
2906298,5556516,Blackrod House#1,05/09/2018,54301,Residential Provision,Adult Services,MH Residential External Provision,"6,320.00"
1548543,5556658,BRIDEOAKE CARE HOME,24/09/2018,54301,Residential Provision,Adult Services,OA  External Provision Residential,"1,980.00"
264233,5556652,BROOKFIELD RESIDENTIAL CARE HOME LTD,05/09/2018,54301,Residential Provision,Adult Services,MH Residential External Provision,"2,200.00"
7524,5556630,BROOKVALE,27/09/2018,54301,Residential Provision,Adult Services,LD Purchaser Residential Care,"13,637.48"
7528,5556604,BROUGHTON HOUSE#EPH,24/09/2018,54301,Residential Provision,Adult Services,OA  External Provision Residential,"1,814.08"
7529,5556605,BROWFIELD RESIDENTIAL CARE HOME,05/09/2018,54301,Residential Provision,Adult Services,MH Residential External Provision,"3,863.96"
2794563,5556512,Burger Court,13/09/2018,54301,Residential Provision,Adult Services,MH Residential External Provision,"3,334.40"
1270916,5556655,BURRSWOOD HOUSE,06/09/2018,54301,Residential Provision,Adult Services,OA  External Provision Residential,"3,928.72"
2267458,5570209,CAIS LTD,27/09/2018,54301,Residential Provision,Public Health,Substance Misuse,"3,500.00"
7612,5556622,CAMERON HOUSE CARE HOME,13/09/2018,54301,Residential Provision,Adult Services,OA  External Provision Residential,"3,808.72"
7612,5556622,CAMERON HOUSE CARE HOME,27/09/2018,54301,Residential Provision,Adult Services,PD Purchaser Residential Care,"3,808.72"
252578,5556650,CARR BANK HOUSE,13/09/2018,54301,Residential Provision,Adult Services,MH Residential External Provision,"1,819.40"
4826047,5556576,Chorley Lodge Residential Care Home,17/09/2018,54301,Residential Provision,Adult Services,OA  External Provision Residential,"2,181.84"
3574685,5556547,Church View,06/09/2018,54301,Residential Provision,Adult Services,MH Residential External Provision,"5,421.28"
2566295,5556506,Claremont Lodge,17/09/2018,54301,Residential Provision,Adult Services,OA  External Provision Residential,"1,814.08"
1862301,5556663,CONISTON HOUSE CARE HOME,24/09/2018,54301,Residential Provision,Adult Services,OA  External Provision Residential,"2,032.56"
6227,5556628,CORNERSTONE TRUST,05/09/2018,54301,Residential Provision,Adult Services,LD Purchaser Residential Care,"20,412.80"
3460650,5556543,Cotleigh Residential Home,06/09/2018,54301,Residential Provision,Adult Services,OA  External Provision Residential,"1,752.00"
4094960,5556558,Crispin Court,24/09/2018,54301,Residential Provision,Adult Services,OA  External Provision Residential,"3,580.00"
4823038,5556571,Denstone Crescent,05/09/2018,54301,Residential Provision,Adult Services,LD Purchaser Residential Care,"9,980.00"
4845743,5556577,Dove Court Care Home,27/09/2018,54301,Residential Provision,Adult Services,OA  External Provision Residential,"2,032.56"
9564,5556634,ECCLESHOLME,17/09/2018,54301,Residential Provision,Adult Services,OA  External Provision Residential,"3,628.16"
3544670,5556546,Eden Mansions,13/09/2018,54301,Residential Provision,Adult Services,OA  External Provision Residential,"3,800.00"
6635,5556618,ELLERSHAW HOUSE LTD,03/09/2018,54301,Residential Provision,Adult Services,LD Purchaser Residential Care,"11,593.34"
3023367,5556523,Fernbank Lodge,20/09/2018,54301,Residential Provision,Adult Services,MH Residential External Provision,"3,200.00"
2278295,5556672,FOSSE BANK HOUSE,05/09/2018,54301,Residential Provision,Adult Services,MH Residential External Provision,"4,659.52"
6320,5556583,FOUR SEASONS NURSING HOME,17/09/2018,54301,Residential Provision,Adult Services,OA  External Provision Residential,"81,965.71"
6320,5556689,FOUR SEASONS NURSING HOME,27/09/2018,54301,Residential Provision,Adult Services,PD Purchaser Residential Care,"2,380.00"
6320,5556583,FOUR SEASONS NURSING HOME,13/09/2018,54301,Residential Provision,Adult Services,PD Purchaser Residential Care,"10,020.00"
6320,5556583,FOUR SEASONS NURSING HOME,20/09/2018,54301,Residential Provision,Adult Services,MH Residential External Provision,"4,360.00"
1779291,5556662,GHS BROOKDALE,13/09/2018,54301,Residential Provision,Adult Services,OA  External Provision Residential,"2,424.36"
3583,5556632,Gillibrand Hall Nursing Home,12/09/2018,54301,Residential Provision,Adult Services,LD Purchaser Residential Care,"2,032.56"
6338,5556584,GLENBANK CARE HOME LTD,27/09/2018,54301,Residential Provision,Adult Services,OA  External Provision Residential,"10,330.00"
6338,5556584,GLENBANK CARE HOME LTD,17/09/2018,54301,Residential Provision,Adult Services,PD Purchaser Residential Care,"4,160.00"
6338,5556584,GLENBANK CARE HOME LTD,05/09/2018,54301,Residential Provision,Adult Services,MH Residential External Provision,"7,840.00"
2906299,5556517,Glenhomes Care Home,27/09/2018,54301,Residential Provision,Adult Services,OA  External Provision Residential,"7,840.00"
2906299,5556517,Glenhomes Care Home,27/09/2018,54301,Residential Provision,Adult Services,PD Purchaser Residential Care,"5,880.00"
2906299,5556517,Glenhomes Care Home,05/09/2018,54301,Residential Provision,Adult Services,MH Residential External Provision,"1,960.00"
6342,5556586,GORSEY CLOUGH NURSING HOME LTD,13/09/2018,54301,Residential Provision,Adult Services,PD Purchaser Residential Care,"1,904.36"
6344,5556690,GRANGE LEA RESIDENTIAL CARE HOME LTD,24/09/2018,54301,Residential Provision,Adult Services,OA  External Provision Residential,980.00
6344,5556587,GRANGE LEA RESIDENTIAL CARE HOME LTD,20/09/2018,54301,Residential Provision,Adult Services,OA  External Provision Residential,"23,600.00"
6344,5556587,GRANGE LEA RESIDENTIAL CARE HOME LTD,24/09/2018,54301,Residential Provision,Adult Services,PD Purchaser Residential Care,"1,960.00"
6344,5556587,GRANGE LEA RESIDENTIAL CARE HOME LTD,05/09/2018,54301,Residential Provision,Adult Services,MH Residential External Provision,"1,960.00"
2194290,5556668,GREENLANDS RESIDENTIAL HOME LTD,13/09/2018,54301,Residential Provision,Adult Services,OA  External Provision Residential,"26,320.00"
2194290,5556668,GREENLANDS RESIDENTIAL HOME LTD,24/09/2018,54301,Residential Provision,Adult Services,PD Purchaser Residential Care,"9,800.00"
2194290,5556668,GREENLANDS RESIDENTIAL HOME LTD,05/09/2018,54301,Residential Provision,Adult Services,MH Residential External Provision,"1,960.00"
38584,5556639,HALF ACRE CARE HOME,24/09/2018,54301,Residential Provision,Adult Services,PD Purchaser Residential Care,"1,904.36"
178960,5556648,Hartington House,05/09/2018,54301,Residential Provision,Adult Services,MH Residential External Provision,"13,226.20"
3149580,5556532,Haslingden Hall and Lodge,24/09/2018,54301,Residential Provision,Adult Services,PD Purchaser Residential Care,"1,796.84"
3095477,5556529,Hatfield Residential And Nursing Home,20/09/2018,54301,Residential Provision,Adult Services,OA  External Provision Residential,"2,321.88"
6367,5556703,HAZELBROOK CHRISTIAN NURSING HOME,13/09/2018,54301,Residential Provision,Adult Services,OA  External Provision Residential,"3,920.00"
6367,5556614,HAZELBROOK CHRISTIAN NURSING HOME,24/09/2018,54301,Residential Provision,Adult Services,OA  External Provision Residential,"6,140.00"
6367,5556614,HAZELBROOK CHRISTIAN NURSING HOME,24/09/2018,54301,Residential Provision,Adult Services,PD Purchaser Residential Care,"7,840.00"
6367,5556614,HAZELBROOK CHRISTIAN NURSING HOME,05/09/2018,54301,Residential Provision,Adult Services,MH Residential External Provision,"1,960.00"
2957307,5556521,Hazelwell Lodge,17/09/2018,54301,Residential Provision,Adult Services,MH Residential External Provision,"1,968.64"
3741693,5556549,Heaton Vale,05/09/2018,54301,Residential Provision,Adult Services,LD Purchaser Residential Care,"16,696.00"
6369,5556588,HENSHAWS SOCIETY FOR THE BLIND,06/09/2018,54301,Residential Provision,Adult Services,OA  External Provision Residential,"3,158.96"
258947,5556651,HIGHCLIFFE RESIDENTIAL HOME#TEAMCARE LTD,10/09/2018,54301,Residential Provision,Adult Services,PD Purchaser Residential Care,"2,032.56"
3152601,5556533,Highfield Hall,20/09/2018,54301,Residential Provision,Adult Services,PD Purchaser Residential Care,"2,265.84"
3193606,5556535,Hillcrest - Vernon,13/09/2018,54301,Residential Provision,Adult Services,LD Purchaser Residential Care,"4,870.72"
13294,5570397,HOLGATE HOUSE LIMITED,17/09/2018,54301,Residential Provision,Public Health,Substance Misuse,"2,052.64"
6454,5556696,HOLLANDS NURSING HOME,13/09/2018,54301,Residential Provision,Adult Services,OA  External Provision Residential,"2,180.00"
6454,5556592,HOLLANDS NURSING HOME,10/09/2018,54301,Residential Provision,Adult Services,OA  External Provision Residential,"8,720.00"
6454,5556592,HOLLANDS NURSING HOME,10/09/2018,54301,Residential Provision,Adult Services,PD Purchaser Residential Care,"2,180.00"
6454,5556696,HOLLANDS NURSING HOME,24/09/2018,54301,Residential Provision,Adult Services,PD Purchaser Residential Care,"3,815.00"
6454,5556592,HOLLANDS NURSING HOME,05/09/2018,54301,Residential Provision,Adult Services,LD Purchaser Residential Care,"12,457.14"
6454,5556592,HOLLANDS NURSING HOME,05/09/2018,54301,Residential Provision,Adult Services,MH Residential External Provision,"8,720.00"
4266977,5556560,Hollybank Care Home,13/09/2018,54301,Residential Provision,Adult Services,MH Residential External Provision,"1,904.36"
6138,5556581,HYDE  LEA,20/09/2018,54301,Residential Provision,Adult Services,OA  External Provision Residential,"16,100.00"
6138,5556581,HYDE  LEA,24/09/2018,54301,Residential Provision,Adult Services,MH Residential External Provision,"6,462.14"
3562682,5556721,Jah-Jireh Care Home,24/09/2018,54301,Residential Provision,Adult Services,PD Purchaser Residential Care,"1,272.86"
1989355,5556664,KINGARTH,20/09/2018,54301,Residential Provision,Adult Services,LD Purchaser Residential Care,"12,190.88"
6434,5556616,KNIGHTSWOOD RESIDENTIAL HOME,06/09/2018,54301,Residential Provision,Adult Services,OA  External Provision Residential,"5,160.00"
6434,5556616,KNIGHTSWOOD RESIDENTIAL HOME,13/09/2018,54301,Residential Provision,Adult Services,PD Purchaser Residential Care,"1,960.00"
6434,5556616,KNIGHTSWOOD RESIDENTIAL HOME,13/09/2018,54301,Residential Provision,Adult Services,MH Residential External Provision,"1,960.00"
4824145,5556575,Lauren Court Residential Care Home,03/09/2018,54301,Residential Provision,Adult Services,OA  External Provision Residential,"3,496.64"
1015735,5556708,LEVER EDGE CARE HOME,03/09/2018,54301,Residential Provision,Adult Services,OA  External Provision Residential,"1,960.00"
1015735,5556654,LEVER EDGE CARE HOME,03/09/2018,54301,Residential Provision,Adult Services,OA  External Provision Residential,"87,714.29"
1015735,5556654,LEVER EDGE CARE HOME,13/09/2018,54301,Residential Provision,Adult Services,PD Purchaser Residential Care,"13,550.00"
1015735,5556654,LEVER EDGE CARE HOME,05/09/2018,54301,Residential Provision,Adult Services,MH Residential External Provision,"18,960.00"
3333633,5556539,Lotus Care (Ellerslie Court) Limited T/A Ellerslie Court,27/09/2018,54301,Residential Provision,Adult Services,PD Purchaser Residential Care,"2,722.32"
6449,5556694,LYNGATE RESIDENTIAL HOME,27/09/2018,54301,Residential Provision,Adult Services,OA  External Provision Residential,"1,960.00"
6449,5556590,LYNGATE RESIDENTIAL HOME,20/09/2018,54301,Residential Provision,Adult Services,OA  External Provision Residential,"25,480.00"
6449,5556590,LYNGATE RESIDENTIAL HOME,13/09/2018,54301,Residential Provision,Adult Services,PD Purchaser Residential Care,"1,960.00"
6449,5556694,LYNGATE RESIDENTIAL HOME,13/09/2018,54301,Residential Provision,Adult Services,PD Purchaser Residential Care,"3,920.00"
6449,5556590,LYNGATE RESIDENTIAL HOME,05/09/2018,54301,Residential Provision,Adult Services,MH Residential External Provision,"3,920.00"
4824051,5556574,Mandalay Care Home,06/09/2018,54301,Residential Provision,Adult Services,OA  External Provision Residential,"1,920.00"
6470,5556617,MARLEY COURT  NURSING & RESIDENTAIL HOME,13/09/2018,54301,Residential Provision,Adult Services,OA  External Provision Residential,"1,796.84"
4808,5556606,MARY & JOSEPH HOUSE,13/09/2018,54301,Residential Provision,Adult Services,OA  External Provision Residential,"2,504.76"
4808,5556606,MARY & JOSEPH HOUSE,05/09/2018,54301,Residential Provision,Adult Services,MH Residential External Provision,"2,504.76"
2497291,5556709,MAX POTENTIAL UK LTD,20/09/2018,54301,Residential Provision,Adult Services,LD Purchaser Residential Care,"3,500.00"
2497291,5556681,MAX POTENTIAL UK LTD,24/09/2018,54301,Residential Provision,Adult Services,LD Purchaser Residential Care,"7,000.00"
2497291,5556681,MAX POTENTIAL UK LTD,20/09/2018,54301,Residential Provision,Adult Services,MH Residential External Provision,"10,500.00"
3942953,5556555,McAuley Mount Care Home,17/09/2018,54301,Residential Provision,Adult Services,OA  External Provision Residential,"1,796.84"
4856,5556626,MEADOWBANK HOUSE,20/09/2018,54301,Residential Provision,Adult Services,OA  External Provision Residential,"19,600.00"
4856,5556626,MEADOWBANK HOUSE,17/09/2018,54301,Residential Provision,Adult Services,PD Purchaser Residential Care,"7,840.00"
4856,5556626,MEADOWBANK HOUSE,06/09/2018,54301,Residential Provision,Adult Services,MH Residential External Provision,"3,920.00"
2109302,5556837,Mencap,24/09/2018,54301,Residential Provision,Adult Services,LD Provider  ShortTerm Breaks,"29,850.12"
2109299,5556665,Mencap,03/09/2018,54301,Residential Provision,Adult Services,LD Purchaser Residential Care,"18,434.83"
2109302,5556837,Mencap,10/09/2018,54301,Residential Provision,Adult Services,LD Purchaser Residential Care,"3,025.35"
3962953,5556557,Millbrook Way - Heathwaite,27/09/2018,54301,Residential Provision,Adult Services,LD Purchaser Residential Care,"13,826.64"
10133,5556705,MILLVIEW NURSING HOME,03/09/2018,54301,Residential Provision,Adult Services,OA  External Provision Residential,638.61
10133,5556636,MILLVIEW NURSING HOME,24/09/2018,54301,Residential Provision,Adult Services,OA  External Provision Residential,"74,165.71"
10133,5556636,MILLVIEW NURSING HOME,17/09/2018,54301,Residential Provision,Adult Services,PD Purchaser Residential Care,"18,160.00"
10133,5556636,MILLVIEW NURSING HOME,05/09/2018,54301,Residential Provision,Adult Services,MH Residential External Provision,"22,680.00"
2620330,5556508,Moorfields Care Home,24/09/2018,54301,Residential Provision,Adult Services,OA  External Provision Residential,"1,904.36"
2938324,5556519,Morden Grange,20/09/2018,54301,Residential Provision,Adult Services,MH Residential External Provision,"10,800.00"
2626324,5556509,Morgan Care Ltd,24/09/2018,54301,Residential Provision,Adult Services,OA  External Provision Residential,"14,800.57"
4299954,5556561,Next Steps The Elms,13/09/2018,54301,Residential Provision,Adult Services,MH Residential External Provision,"3,728.60"
3041437,5556809,Oasis Recovery Communities Limited,27/09/2018,54301,Residential Provision,Public Health,Substance Misuse,500.00
3041437,5570205,Oasis Recovery Communities Limited,19/09/2018,54301,Residential Provision,Public Health,Substance Misuse,"2,000.00"
3041437,5570207,Oasis Recovery Communities Limited,24/09/2018,54301,Residential Provision,Public Health,Substance Misuse,"2,000.00"
3041437,5570206,Oasis Recovery Communities Limited,10/09/2018,54301,Residential Provision,Public Health,Substance Misuse,"2,214.29"
2397427,5556680,ORCHARD COURT,05/09/2018,54301,Residential Provision,Adult Services,OA  External Provision Residential,"2,026.36"
7907,5556697,PARKVIEW NURSING & RESIDENTIAL HOME,13/09/2018,54301,Residential Provision,Adult Services,OA  External Provision Residential,"3,430.00"
7907,5556593,PARKVIEW NURSING & RESIDENTIAL HOME,27/09/2018,54301,Residential Provision,Adult Services,OA  External Provision Residential,"49,460.40"
7907,5556593,PARKVIEW NURSING & RESIDENTIAL HOME,24/09/2018,54301,Residential Provision,Adult Services,PD Purchaser Residential Care,"9,800.00"
7907,5556697,PARKVIEW NURSING & RESIDENTIAL HOME,05/09/2018,54301,Residential Provision,Adult Services,MH Residential External Provision,"2,240.00"
7907,5556593,PARKVIEW NURSING & RESIDENTIAL HOME,06/09/2018,54301,Residential Provision,Adult Services,MH Residential External Provision,"11,550.00"
168404,5556647,QUEENS PARK VIEW#INTELLIGENT CARE,06/09/2018,54301,Residential Provision,Adult Services,MH Residential External Provision,"8,957.72"
2845300,5556513,Radcliffe Meadows Nursing Home,20/09/2018,54301,Residential Provision,Adult Services,LD Purchaser Residential Care,"5,000.00"
6595,5556594,RANDOMLIGHT LTD#HEIGHTSIDE HOUSE,06/09/2018,54301,Residential Provision,Adult Services,MH Residential External Provision,"2,468.84"
42398,5556643,REDBANK CARE HOME#PAYEE VOYAGE NORTH,17/09/2018,54301,Residential Provision,Adult Services,LD Purchaser Residential Care,"5,028.32"
2678357,5556510,Redbricks Care Home,10/09/2018,54301,Residential Provision,Adult Services,OA  External Provision Residential,"2,277.52"
3106489,5556530,Richmond Care Home,24/09/2018,54301,Residential Provision,Adult Services,OA  External Provision Residential,"1,943.48"
3836954,5556551,Ridgeway Lodge,27/09/2018,54301,Residential Provision,Adult Services,MH Residential External Provision,"2,099.00"
2596318,5556507,Rivington Park Care Home,10/09/2018,54301,Residential Provision,Adult Services,OA  External Provision Residential,"2,110.56"
6617,5556597,RIVINGTON VIEW NURSING HOME,05/09/2018,54301,Residential Provision,Adult Services,OA  External Provision Residential,"14,678.00"
6617,5556597,RIVINGTON VIEW NURSING HOME,17/09/2018,54301,Residential Provision,Adult Services,PD Purchaser Residential Care,"4,064.00"
6617,5556597,RIVINGTON VIEW NURSING HOME,24/09/2018,54301,Residential Provision,Adult Services,MH Residential External Provision,"1,960.00"
6623,5556598,ROSE COURT NURSING HOME,27/09/2018,54301,Residential Provision,Adult Services,OA  External Provision Residential,"3,808.72"
6623,5556598,ROSE COURT NURSING HOME,24/09/2018,54301,Residential Provision,Adult Services,MH Residential External Provision,"3,808.72"
3010366,5570086,Salus,17/09/2018,54301,Residential Provision,Public Health,Substance Misuse,855.00
3010366,5570084,Salus,13/09/2018,54301,Residential Provision,Public Health,Substance Misuse,"2,215.00"
4344954,5556562,Sandybrook House,05/09/2018,54301,Residential Provision,Adult Services,OA  External Provision Residential,"3,909.60"
3315669,5556538,Segal Gardens,20/09/2018,54301,Residential Provision,Adult Services,LD Purchaser Residential Care,"15,488.88"
4661010,5556687,Shannon Court Care Home Limited,05/09/2018,54301,Residential Provision,Adult Services,OA  External Provision Residential,"2,180.00"
4661010,5556570,Shannon Court Care Home Limited,20/09/2018,54301,Residential Provision,Adult Services,OA  External Provision Residential,"50,140.00"
4661010,5556570,Shannon Court Care Home Limited,27/09/2018,54301,Residential Provision,Adult Services,PD Purchaser Residential Care,"2,180.00"
142271,5556646,SHAWCROSS CARE HOME#TAMENG CARE LTD,17/09/2018,54301,Residential Provision,Adult Services,OA  External Provision Residential,"1,980.00"
1877,5556631,Somerset House,20/09/2018,54301,Residential Provision,Adult Services,MH Residential External Provision,"8,262.20"
6673,5556704,SOUTHLANDS RESIDENTIAL HOME#SOUTHLANDS,13/09/2018,54301,Residential Provision,Adult Services,OA  External Provision Residential,"1,960.00"
6673,5556619,SOUTHLANDS RESIDENTIAL HOME#SOUTHLANDS,24/09/2018,54301,Residential Provision,Adult Services,OA  External Provision Residential,"19,430.00"
991723,5556653,SOUTHVIEW LODGE RESIDENTIAL CARE HOME,06/09/2018,54301,Residential Provision,Adult Services,OA  External Provision Residential,"1,796.84"
113123,5556707,SPENNYMOOR CARE HOME LTD,20/09/2018,54301,Residential Provision,Adult Services,OA  External Provision Residential,"1,302.86"
113123,5556644,SPENNYMOOR CARE HOME LTD,24/09/2018,54301,Residential Provision,Adult Services,OA  External Provision Residential,"4,340.00"
113123,5556644,SPENNYMOOR CARE HOME LTD,24/09/2018,54301,Residential Provision,Adult Services,PD Purchaser Residential Care,"2,368.00"
3041414,5556524,Stanley Grange#1,05/09/2018,54301,Residential Provision,Adult Services,LD Purchaser Residential Care,"4,867.96"
4660999,5556568,Stansfield Hall Care Home,24/09/2018,54301,Residential Provision,Adult Services,OA  External Provision Residential,"1,920.00"
6686,5556601,STARMOUNT VILLA RESIDENTIAL CARE HOME,03/09/2018,54301,Residential Provision,Adult Services,OA  External Provision Residential,"3,808.72"
4859745,5574168,Street Scene,27/09/2018,54301,Residential Provision,Public Health,Substance Misuse,"2,987.20"
4859745,5574166,Street Scene,17/09/2018,54301,Residential Provision,Public Health,Substance Misuse,"2,987.20"
7857,5556620,SUNNYSIDE RESIDENTIAL HOME,24/09/2018,54301,Residential Provision,Adult Services,OA  External Provision Residential,"19,680.00"
7857,5556620,SUNNYSIDE RESIDENTIAL HOME,13/09/2018,54301,Residential Provision,Adult Services,PD Purchaser Residential Care,"11,840.00"
7857,5556620,SUNNYSIDE RESIDENTIAL HOME,27/09/2018,54301,Residential Provision,Adult Services,MH Residential External Provision,"17,720.00"
3528643,5556545,Syne Hills Care Home Ltd,13/09/2018,54301,Residential Provision,Adult Services,OA  External Provision Residential,"1,824.00"
3054467,5556526,Take a Break with Choices,17/09/2018,54301,Residential Provision,Adult Services,PD Purchaser Residential Care,"2,200.00"
3054467,5556685,Take a Break with Choices,17/09/2018,54301,Residential Provision,Adult Services,LD Purchaser Residential Care,"2,800.00"
2146302,5556666,THE BEECHES CARE HOME,24/09/2018,54301,Residential Provision,Adult Services,OA  External Provision Residential,"2,181.84"
972,5556608,THE BRANDLES,05/09/2018,54301,Residential Provision,Adult Services,MH Residential External Provision,"3,808.72"
6438,5556692,THE BUNGALOW RESIDENTIAL HOME,17/09/2018,54301,Residential Provision,Adult Services,OA  External Provision Residential,578.58
6438,5556693,THE BUNGALOW RESIDENTIAL HOME,03/09/2018,54301,Residential Provision,Adult Services,OA  External Provision Residential,"1,960.00"
6438,5556589,THE BUNGALOW RESIDENTIAL HOME,12/09/2018,54301,Residential Provision,Adult Services,OA  External Provision Residential,"18,156.00"
6438,5556589,THE BUNGALOW RESIDENTIAL HOME,24/09/2018,54301,Residential Provision,Adult Services,PD Purchaser Residential Care,"1,960.00"
6438,5556589,THE BUNGALOW RESIDENTIAL HOME,20/09/2018,54301,Residential Provision,Adult Services,MH Residential External Provision,"4,152.04"
2236315,5556670,THE CHANTERS CARE HOME,17/09/2018,54301,Residential Provision,Adult Services,OA  External Provision Residential,"3,680.00"
10139,5556706,THE CLOUGH RESIDENTIAL HOME,13/09/2018,54301,Residential Provision,Adult Services,OA  External Provision Residential,"2,660.00"
10139,5556637,THE CLOUGH RESIDENTIAL HOME,13/09/2018,54301,Residential Provision,Adult Services,OA  External Provision Residential,"11,900.00"
10139,5556706,THE CLOUGH RESIDENTIAL HOME,17/09/2018,54301,Residential Provision,Adult Services,PD Purchaser Residential Care,980.00
10139,5556637,THE CLOUGH RESIDENTIAL HOME,10/09/2018,54301,Residential Provision,Adult Services,MH Residential External Provision,"5,880.00"
6713,5556629,THE DAVID LEWIS CENTRE,17/09/2018,54301,Residential Provision,Adult Services,LD Purchaser Residential Care,"7,716.50"
9562,5568550,THE HAMILTONS,06/09/2018,54301,Residential Provision,Adult Services,OA  External Provision Residential,"4,250.00"
2876386,5556515,The Lakes Care Centre,17/09/2018,54301,Residential Provision,Adult Services,OA  External Provision Residential,"2,291.60"
1604381,5556661,THE LIMES#MAKING SPACES,20/09/2018,54301,Residential Provision,Adult Services,MH Residential External Provision,"2,100.00"
9243,5556633,THE OLD VICARAGE,27/09/2018,54301,Residential Provision,Adult Services,OA  External Provision Residential,"14,460.00"
9243,5556633,THE OLD VICARAGE,06/09/2018,54301,Residential Provision,Adult Services,MH Residential External Provision,"1,960.00"
3335627,5556540,The Orchard,24/09/2018,54301,Residential Provision,Adult Services,PD Purchaser Residential Care,"3,622.60"
1912,5556607,THE SPINAL UNIT ACTION GROUP,24/09/2018,54301,Residential Provision,Adult Services,PD Purchaser Residential Care,"2,288.88"
4837744,5557514,The Spires,10/09/2018,54301,Residential Provision,Adult Services,OA  External Provision Residential,"7,164.29"
39372,5556640,THORLEY HOUSE,20/09/2018,54301,Residential Provision,Adult Services,PD Purchaser Residential Care,"1,980.00"
3054461,5556525,Voyage Care,20/09/2018,54301,Residential Provision,Adult Services,OA  External Provision Residential,"8,194.08"
3863953,5556552,Walshaw Hall & The Beeches R C H,03/09/2018,54301,Residential Provision,Adult Services,OA  External Provision Residential,"1,904.36"
7621,5556623,WALSHAW HALL RESIDENTIAL HOME,17/09/2018,54301,Residential Provision,Adult Services,OA  External Provision Residential,"1,904.36"
3616772,5556548,Wentworth House Care Services Ltd,27/09/2018,54301,Residential Provision,Adult Services,OA  External Provision Residential,"1,814.08"
4624992,5556566,Westmead,13/09/2018,54301,Residential Provision,Adult Services,LD Purchaser Residential Care,"46,860.00"
4522961,5556564,Westmorland Court,13/09/2018,54301,Residential Provision,Adult Services,OA  External Provision Residential,"2,292.00"
2379296,5556678,WHITEFIELD HOUSE,27/09/2018,54301,Residential Provision,Adult Services,OA  External Provision Residential,"1,904.36"
6780,5556699,WINGATES RESIDENTIAL HOME,17/09/2018,54301,Residential Provision,Adult Services,OA  External Provision Residential,"1,260.00"
6780,5556698,WINGATES RESIDENTIAL HOME,24/09/2018,54301,Residential Provision,Adult Services,OA  External Provision Residential,"3,430.00"
6780,5556602,WINGATES RESIDENTIAL HOME,17/09/2018,54301,Residential Provision,Adult Services,OA  External Provision Residential,"32,240.00"
6780,5556602,WINGATES RESIDENTIAL HOME,17/09/2018,54301,Residential Provision,Adult Services,PD Purchaser Residential Care,"1,330.00"
6780,5556602,WINGATES RESIDENTIAL HOME,17/09/2018,54301,Residential Provision,Adult Services,MH Residential External Provision,"1,960.00"
1402,5556701,WITHINS RESIDENTIAL HOME,06/09/2018,54301,Residential Provision,Adult Services,OA  External Provision Residential,555.00
1402,5556609,WITHINS RESIDENTIAL HOME,05/09/2018,54301,Residential Provision,Adult Services,OA  External Provision Residential,"56,865.00"
1402,5556609,WITHINS RESIDENTIAL HOME,27/09/2018,54301,Residential Provision,Adult Services,PD Purchaser Residential Care,"8,180.00"
1402,5556609,WITHINS RESIDENTIAL HOME,13/09/2018,54301,Residential Provision,Adult Services,LD Purchaser Residential Care,"1,960.00"
1402,5556609,WITHINS RESIDENTIAL HOME,05/09/2018,54301,Residential Provision,Adult Services,MH Residential External Provision,"5,880.00"
4845744,5556578,Woodlands Court Residential Home,17/09/2018,54301,Residential Provision,Adult Services,OA  External Provision Residential,"1,980.00"
6783,5556603,WOODLANDS HOUSE RESIDENTIAL HOME LTD,20/09/2018,54301,Residential Provision,Adult Services,OA  External Provision Residential,"14,025.00"
6783,5556700,WOODLANDS HOUSE RESIDENTIAL HOME LTD,17/09/2018,54301,Residential Provision,Adult Services,PD Purchaser Residential Care,"3,254.29"
6783,5556603,WOODLANDS HOUSE RESIDENTIAL HOME LTD,05/09/2018,54301,Residential Provision,Adult Services,MH Residential External Provision,"1,825.71"
2915306,5556518,Woodlands Westhoughton,27/09/2018,54301,Residential Provision,Adult Services,OA  External Provision Residential,"22,002.14"
2915306,5556518,Woodlands Westhoughton,13/09/2018,54301,Residential Provision,Adult Services,PD Purchaser Residential Care,"2,180.00"
2915306,5556518,Woodlands Westhoughton,27/09/2018,54301,Residential Provision,Adult Services,LD Purchaser Residential Care,"6,200.00"
2915306,5556518,Woodlands Westhoughton,05/09/2018,54301,Residential Provision,Adult Services,MH Residential External Provision,"4,360.00"
1420,5556624,WORSLEY LODGE NURSING HOME,06/09/2018,54301,Residential Provision,Adult Services,OA  External Provision Residential,"1,814.08"
1420,5556624,WORSLEY LODGE NURSING HOME,24/09/2018,54301,Residential Provision,Adult Services,PD Purchaser Residential Care,"1,814.08"
101393,5570202,ADAMS SELFSTORE,05/09/2018,22004,Room Hire,Development & Regeneration,Collections Access MUS,661.44
7401,5564038,Blackburn with Darwen Borough Council,24/09/2018,22004,Room Hire,Childrens Services,CH80207 - Music Serv - BwD,"4,050.00"
6675,5555547,SPECTRA SECURITY LTD,13/09/2018,25107,Secure Doors,Environmental Services,Security Services,"1,900.00"
3590695,5568360,G4S Cash Solutions (UK) Ltd,24/09/2018,44402,Security Cash Collection,Chief Executives,CSD Cashiers,"4,714.73"
3325,5588507,ENVIRONMENT AGENCY,24/09/2018,22202,Sewerage & Env'mental Servs,Environmental Services,Assets,"1,580.00"
4682,5557534,M&G TRANSPORT & TECHNICAL SERVICES LTD,10/09/2018,48610,Specialist Advice,Development & Regeneration,LMA External Funded Projects,"10,162.14"
1576374,5569942,EDUFOCUS LIMITED,24/09/2018,46000,Staff Subsistence Expenses,Chief Executives,Health and Safety,"4,999.00"
4857751,5570083,IT Governance Limited,24/09/2018,46004,Staff Training Courses,Chief Executives,Internal Audit,990.00
40924,5569917,ELECTORAL REFORM SERVICES,24/09/2018,79001,Survey Fees,Chief Executives,Elections,"1,384.25"
40924,5589435,ELECTORAL REFORM SERVICES,05/09/2018,79001,Survey Fees,Chief Executives,Elections,"41,597.74"
6629,5570220,ROYAL MAIL GROUP LTD,05/09/2018,79001,Survey Fees,Chief Executives,Elections,"1,532.41"
6629,5559448,ROYAL MAIL GROUP LTD,27/09/2018,79001,Survey Fees,Chief Executives,Elections,"1,997.65"
2913298,5572449,Arden Telecom Ltd,17/09/2018,45100,Telephones Direct Rental,Environmental Services,Markets  Rent Account,851.41
3332629,5558517,Redacted - Personal Data,27/09/2018,19104,Training Exp  Ext Seminars,Childrens Services,In School Coaching,600.00
6720,5559456,The University Of Manchester,05/09/2018,19104,Training Exp  Ext Seminars,Childrens Services,WPD Project Link,800.00
6720,5559455,The University Of Manchester,20/09/2018,19104,Training Exp  Ext Seminars,Childrens Services,WPD Project Link,"1,400.00"
33429,5569867,TREVOR ROBERTS ASSOCIATES LTD,05/09/2018,19104,Training Exp  Ext Seminars,Development & Regeneration,Divisional Development,800.00
2052,5582439,Bolton Under Fives Forum#BUFF,10/09/2018,19100,Training Exps Tuition Fees,Childrens Services,WPD Project Link,600.00
2052,5568555,Bolton Under Fives Forum#BUFF,20/09/2018,19100,Training Exps Tuition Fees,Childrens Services,WPD Project Link,740.00
7475,5595491,BPP PROFESSIONAL EDUCATION LTD,10/09/2018,19100,Training Exps Tuition Fees,Chief Executives,Financial Management,"2,654.18"
6514,5567273,NORTH WEST EMPLOYERS,20/09/2018,19100,Training Exps Tuition Fees,Childrens Services,Quality & inclusion,"1,200.00"
322879,5582436,Redacted - Personal Data,13/09/2018,19100,Training Exps Tuition Fees,Childrens Services,WPD Project Link,"1,787.80"
1796290,5559507,COLLETT TRANSPORT SERVICES LTD#SPECIALIST FLEET SERVICES,20/09/2018,33201,Transport Hire,Environmental Services,Transport Support Service,"3,224.00"
157187,5567271,ENTERPRISE RENT-A-CAR,20/09/2018,33201,Transport Hire,Environmental Services,Transport Support Service,708.40
1919290,5567233,LEEDS COMMERCIAL LIMITED,05/09/2018,33201,Transport Hire,Environmental Services,Transport Support Service,"2,530.00"
1919290,5567228,LEEDS COMMERCIAL LIMITED,03/09/2018,33201,Transport Hire,Environmental Services,Transport Support Service,"3,010.25"
2742398,5564712,N D Brown Ltd,05/09/2018,33201,Transport Hire,Environmental Services,Transport Support Service,"2,123.30"
1838318,5568362,NORTHGATE VEHICLE HIRE LTD,05/09/2018,33201,Transport Hire,Environmental Services,Transport Support Service,"6,923.58"
1838318,5557533,NORTHGATE VEHICLE HIRE LTD,17/09/2018,33201,Transport Hire,Environmental Services,Transport Support Service,"7,097.10"
6615,5567200,RIVERSIDE TRUCK RENTAL LTD,13/09/2018,33201,Transport Hire,Environmental Services,Transport Support Service,"4,117.00"
6615,5567243,RIVERSIDE TRUCK RENTAL LTD,05/09/2018,33201,Transport Hire,Environmental Services,Transport Support Service,"4,117.00"
6615,5558697,RIVERSIDE TRUCK RENTAL LTD,27/09/2018,33201,Transport Hire,Environmental Services,Transport Support Service,"4,400.00"
6615,5565174,RIVERSIDE TRUCK RENTAL LTD,13/09/2018,33201,Transport Hire,Environmental Services,Transport Support Service,"5,060.00"
101354,5574076,VANMAN,17/09/2018,33201,Transport Hire,Childrens Services,Music ServMusic Service general,582.10
267154,5567438,J A TYRE SERVICE LTD,27/09/2018,31303,Tyres,Environmental Services,Transport Support Service,523.50
267154,5567479,J A TYRE SERVICE LTD,13/09/2018,31303,Tyres,Environmental Services,Transport Support Service,552.40
267154,5567439,J A TYRE SERVICE LTD,05/09/2018,31303,Tyres,Environmental Services,Transport Support Service,567.40
267154,5567435,J A TYRE SERVICE LTD,27/09/2018,31303,Tyres,Environmental Services,Transport Support Service,626.00
267154,5567434,J A TYRE SERVICE LTD,17/09/2018,31303,Tyres,Environmental Services,Transport Support Service,639.00
267154,5567445,J A TYRE SERVICE LTD,17/09/2018,31303,Tyres,Environmental Services,Transport Support Service,642.00
267154,5567337,J A TYRE SERVICE LTD,05/09/2018,31303,Tyres,Environmental Services,Transport Support Service,984.65
4521970,5592517,Evolve Corporate Ltd T/A PK Safety,17/09/2018,42001,Uniforms,Environmental Services,Waste,"5,443.20"
426469,5563921,YESHILI REFLECTIVES T/A VIZWEAR,03/09/2018,42001,Uniforms,Environmental Services,Waste,514.80
6615,5557112,RIVERSIDE TRUCK RENTAL LTD,05/09/2018,36200,Uninsured Losses  Vehicles,Environmental Services,Transport Support Service,902.00
6615,5557110,RIVERSIDE TRUCK RENTAL LTD,10/09/2018,36200,Uninsured Losses  Vehicles,Environmental Services,Transport Support Service,"1,283.21"
1216,5573640,UNIVERSAL BODY REPAIRS LTD,05/09/2018,36200,Uninsured Losses  Vehicles,Environmental Services,Transport Support Service,526.30
1216,5573643,UNIVERSAL BODY REPAIRS LTD,05/09/2018,36200,Uninsured Losses  Vehicles,Environmental Services,Transport Support Service,575.00
1216,5573639,UNIVERSAL BODY REPAIRS LTD,05/09/2018,36200,Uninsured Losses  Vehicles,Environmental Services,Transport Support Service,652.50
1216,5573644,UNIVERSAL BODY REPAIRS LTD,24/09/2018,36200,Uninsured Losses  Vehicles,Environmental Services,Transport Support Service,940.80
2532340,5568364,Tusker,10/09/2018,31100,Vehicle Purchase,Chief Executives,Car Salary Sacrifice Scheme,"36,159.49"
125827,5559570,CICELEY COMMERCIALS,05/09/2018,31305,Vehicle Servicing,Environmental Services,Transport Support Service,"1,955.39"
125827,5564866,CICELEY COMMERCIALS,17/09/2018,31305,Vehicle Servicing,Environmental Services,Transport Support Service,781.66
125827,5564865,CICELEY COMMERCIALS,17/09/2018,31305,Vehicle Servicing,Environmental Services,Transport Support Service,"1,339.38"
125827,5559573,CICELEY COMMERCIALS,13/09/2018,31305,Vehicle Servicing,Environmental Services,Transport Support Service,"1,439.61"
125827,5559569,CICELEY COMMERCIALS,05/09/2018,31305,Vehicle Servicing,Environmental Services,Transport Support Service,"2,209.12"
16096,5573440,FUCHS LUBRICANTS (UK) PLC,13/09/2018,31305,Vehicle Servicing,Environmental Services,Transport Support Service,724.53
16096,5556724,FUCHS LUBRICANTS (UK) PLC,27/09/2018,31305,Vehicle Servicing,Environmental Services,Transport Support Service,831.45
16096,5556723,FUCHS LUBRICANTS (UK) PLC,20/09/2018,31305,Vehicle Servicing,Environmental Services,Transport Support Service,"1,236.71"
125827,5564868,LEYLAND AUTO LTD,13/09/2018,31305,Vehicle Servicing,Environmental Services,Transport Support Service,604.68
945,5556749,TERBERG MATEC UK,17/09/2018,31305,Vehicle Servicing,Environmental Services,Transport Support Service,571.24
825640,5569438,WASTEPARTS UK LTD,05/09/2018,31305,Vehicle Servicing,Environmental Services,Transport Support Service,535.55
125827,5566882,DVLA VEHICLE TAX,20/09/2018,31300,Vehicle Tax,Environmental Services,Transport Support Service,652.50
125827,5566883,DVLA VEHICLE TAX,13/09/2018,31300,Vehicle Tax,Environmental Services,Transport Support Service,652.50
4611992,5558698,4 Pure Heart Limited,27/09/2018,52000,Vol Assoc Grants  General,Childrens Services,Res Serv Agency Placements,"62,000.00"
156135,5563927,ACCESS TO CARE LTD,24/09/2018,52000,Vol Assoc Grants  General,Childrens Services,Res Serv Agency Placements,504.00
156135,5563971,ACCESS TO CARE LTD,17/09/2018,52000,Vol Assoc Grants  General,Childrens Services,Res Serv Agency Placements,"4,804.00"
156135,5567081,ACCESS TO CARE LTD,13/09/2018,52000,Vol Assoc Grants  General,Childrens Services,Res Serv Agency Placements,"5,057.00"
156135,5567077,ACCESS TO CARE LTD,05/09/2018,52000,Vol Assoc Grants  General,Childrens Services,Res Serv Agency Placements,"5,942.00"
156135,5567076,ACCESS TO CARE LTD,05/09/2018,52000,Vol Assoc Grants  General,Childrens Services,Res Serv Agency Placements,"7,963.00"
156135,5567037,ACCESS TO CARE LTD,13/09/2018,52000,Vol Assoc Grants  General,Childrens Services,Res Serv Agency Placements,"9,229.00"
156135,5567019,ACCESS TO CARE LTD,27/09/2018,52000,Vol Assoc Grants  General,Childrens Services,Res Serv Agency Placements,"9,988.00"
156135,5567012,ACCESS TO CARE LTD,17/09/2018,52000,Vol Assoc Grants  General,Childrens Services,Res Serv Agency Placements,"14,160.00"
156135,5567016,ACCESS TO CARE LTD,27/09/2018,52000,Vol Assoc Grants  General,Childrens Services,Res Serv Agency Placements,"14,160.00"
156135,5567073,ACCESS TO CARE LTD,06/09/2018,52000,Vol Assoc Grants  General,Childrens Services,Res Serv Agency Placements,"14,160.00"
156135,5567074,ACCESS TO CARE LTD,27/09/2018,52000,Vol Assoc Grants  General,Childrens Services,Res Serv Agency Placements,"14,160.00"
156135,5567070,ACCESS TO CARE LTD,24/09/2018,52000,Vol Assoc Grants  General,Childrens Services,Res Serv Agency Placements,"30,657.00"
7298,5569865,BARNARDOS,24/09/2018,52000,Vol Assoc Grants  General,Childrens Services,Res Serv Agency Placements,"8,614.29"
7298,5557860,BARNARDOS,27/09/2018,52000,Vol Assoc Grants  General,Childrens Services,Res Serv Agency Placements,"8,871.43"
7465,5570395,BOLTON YOUNG PERSONS HOUSING SCHEME#BYPHS,27/09/2018,52000,Vol Assoc Grants  General,Childrens Services,Res Serv Agency Placements,"3,025.35"
7465,5570391,BOLTON YOUNG PERSONS HOUSING SCHEME#BYPHS,10/09/2018,52000,Vol Assoc Grants  General,Childrens Services,Unaccompanied Asylum Seeking Children,"1,535.05"
2775307,5567009,Bryn Melyn Care Ltd,27/09/2018,52000,Vol Assoc Grants  General,Childrens Services,Res Serv Agency Placements,"23,485.71"
2779298,5566984,Cambian Childcare Ltd,05/09/2018,52000,Vol Assoc Grants  General,Childrens Services,Res Serv Agency Placements,"14,357.10"
2779298,5566982,Cambian Childcare Ltd,24/09/2018,52000,Vol Assoc Grants  General,Childrens Services,Res Serv Agency Placements,"20,571.30"
2779298,5566987,Cambian Childcare Ltd,27/09/2018,52000,Vol Assoc Grants  General,Childrens Services,Res Serv Agency Placements,"21,214.20"
6196,5568105,CARE TODAY CHILDRENS SERVICE,20/09/2018,52000,Vol Assoc Grants  General,Childrens Services,Res Serv Agency Placements,"10,827.99"
6196,5568104,CARE TODAY CHILDRENS SERVICE,05/09/2018,52000,Vol Assoc Grants  General,Childrens Services,Res Serv Agency Placements,"10,827.99"
6196,5568103,CARE TODAY CHILDRENS SERVICE,05/09/2018,52000,Vol Assoc Grants  General,Childrens Services,Res Serv Agency Placements,"28,785.67"
3643687,5567093,Care4Children Residential Services,24/09/2018,52000,Vol Assoc Grants  General,Childrens Services,Res Serv Agency Placements,"23,571.30"
3734693,5558664,CCATS Ltd,10/09/2018,52000,Vol Assoc Grants  General,Childrens Services,Res Serv Agency Placements,"2,400.00"
1048773,5558427,CHESHIRE CENTRE FOR INDEPENDENT LIVING,24/09/2018,52000,Vol Assoc Grants  General,Childrens Services,Direct Payments,"10,251.25"
1048773,5557864,CHESHIRE CENTRE FOR INDEPENDENT LIVING,13/09/2018,52000,Vol Assoc Grants  General,Childrens Services,Direct Payments,"113,855.25"
6131,5568629,CHILD ACTION NORTHWEST,24/09/2018,52000,Vol Assoc Grants  General,Childrens Services,Res Serv Agency Placements,"4,448.19"
4805084,5567109,Companion Support Services Limited,20/09/2018,52000,Vol Assoc Grants  General,Childrens Services,Res Serv Agency Placements,"6,288.66"
4805084,5567112,Companion Support Services Limited,05/09/2018,52000,Vol Assoc Grants  General,Childrens Services,Res Serv Agency Placements,"16,766.36"
3026369,5569998,Compass Fostering North Limited,17/09/2018,52000,Vol Assoc Grants  General,Childrens Services,Res Serv Agency Placements,"2,314.17"
3026369,5570011,Compass Fostering North Limited,13/09/2018,52000,Vol Assoc Grants  General,Childrens Services,Res Serv Agency Placements,"2,314.17"
3026369,5570012,Compass Fostering North Limited,27/09/2018,52000,Vol Assoc Grants  General,Childrens Services,Res Serv Agency Placements,"2,571.30"
3026369,5570013,Compass Fostering North Limited,06/09/2018,52000,Vol Assoc Grants  General,Childrens Services,Res Serv Agency Placements,"3,342.90"
3026369,5569821,Compass Fostering North Limited,05/09/2018,52000,Vol Assoc Grants  General,Childrens Services,Res Serv Agency Placements,"5,100.00"
3754702,5557862,Continuum Support#Leaving Care Ltd,20/09/2018,52000,Vol Assoc Grants  General,Childrens Services,Res Serv Agency Placements,"10,287.76"
4805079,5566977,Cora Foundation,05/09/2018,52000,Vol Assoc Grants  General,Childrens Services,Res Serv Agency Placements,"90,383.56"
2876322,5567335,Courtyard Care Ltd#1,05/09/2018,52000,Vol Assoc Grants  General,Childrens Services,Res Serv Agency Placements,"3,059.62"
3193,5567100,Durham County Council,17/09/2018,52000,Vol Assoc Grants  General,Childrens Services,Res Serv Agency Placements,"30,845.00"
4612992,5563975,Esland North Limited,17/09/2018,52000,Vol Assoc Grants  General,Childrens Services,Res Serv Agency Placements,"2,957.14"
4833728,5555551,Family Child Care Limited,13/09/2018,52000,Vol Assoc Grants  General,Childrens Services,Res Serv Agency Placements,"2,571.42"
3463,5555594,FOSTER CARE ASSOCIATES LTD,13/09/2018,52000,Vol Assoc Grants  General,Childrens Services,Res Serv Agency Placements,"2,915.55"
3463,5556802,FOSTER CARE ASSOCIATES LTD,27/09/2018,52000,Vol Assoc Grants  General,Childrens Services,Res Serv Agency Placements,"3,069.00"
3463,5595558,FOSTER CARE ASSOCIATES LTD,17/09/2018,52000,Vol Assoc Grants  General,Childrens Services,Res Serv Agency Placements,"3,450.90"
3463,5555592,FOSTER CARE ASSOCIATES LTD,05/09/2018,52000,Vol Assoc Grants  General,Childrens Services,Res Serv Agency Placements,"3,565.93"
3463,5595559,FOSTER CARE ASSOCIATES LTD,10/09/2018,52000,Vol Assoc Grants  General,Childrens Services,Res Serv Agency Placements,"3,660.60"
3025364,5567458,Fostering Ltd,20/09/2018,52000,Vol Assoc Grants  General,Childrens Services,Res Serv Agency Placements,727.50
3025364,5567388,Fostering Ltd,05/09/2018,52000,Vol Assoc Grants  General,Childrens Services,Res Serv Agency Placements,727.50
3025364,5567455,Fostering Ltd,10/09/2018,52000,Vol Assoc Grants  General,Childrens Services,Res Serv Agency Placements,727.50
3025364,5567389,Fostering Ltd,06/09/2018,52000,Vol Assoc Grants  General,Childrens Services,Res Serv Agency Placements,727.50
3025364,5567432,Fostering Ltd,05/09/2018,52000,Vol Assoc Grants  General,Childrens Services,Res Serv Agency Placements,727.50
3025364,5567390,Fostering Ltd,24/09/2018,52000,Vol Assoc Grants  General,Childrens Services,Res Serv Agency Placements,727.50
3025364,5567430,Fostering Ltd,05/09/2018,52000,Vol Assoc Grants  General,Childrens Services,Res Serv Agency Placements,727.50
3025364,5567391,Fostering Ltd,05/09/2018,52000,Vol Assoc Grants  General,Childrens Services,Res Serv Agency Placements,727.50
3025364,5567429,Fostering Ltd,17/09/2018,52000,Vol Assoc Grants  General,Childrens Services,Res Serv Agency Placements,727.50
3025364,5567392,Fostering Ltd,27/09/2018,52000,Vol Assoc Grants  General,Childrens Services,Res Serv Agency Placements,727.50
3025364,5567426,Fostering Ltd,27/09/2018,52000,Vol Assoc Grants  General,Childrens Services,Res Serv Agency Placements,727.50
3025364,5567393,Fostering Ltd,05/09/2018,52000,Vol Assoc Grants  General,Childrens Services,Res Serv Agency Placements,727.50
3025364,5567424,Fostering Ltd,05/09/2018,52000,Vol Assoc Grants  General,Childrens Services,Res Serv Agency Placements,727.50
3025364,5567394,Fostering Ltd,05/09/2018,52000,Vol Assoc Grants  General,Childrens Services,Res Serv Agency Placements,727.50
3025364,5567423,Fostering Ltd,05/09/2018,52000,Vol Assoc Grants  General,Childrens Services,Res Serv Agency Placements,727.50
3025364,5567395,Fostering Ltd,05/09/2018,52000,Vol Assoc Grants  General,Childrens Services,Res Serv Agency Placements,727.50
3025364,5567420,Fostering Ltd,05/09/2018,52000,Vol Assoc Grants  General,Childrens Services,Res Serv Agency Placements,727.50
3025364,5567397,Fostering Ltd,05/09/2018,52000,Vol Assoc Grants  General,Childrens Services,Res Serv Agency Placements,727.50
3025364,5567418,Fostering Ltd,05/09/2018,52000,Vol Assoc Grants  General,Childrens Services,Res Serv Agency Placements,727.50
3025364,5567398,Fostering Ltd,05/09/2018,52000,Vol Assoc Grants  General,Childrens Services,Res Serv Agency Placements,727.50
3025364,5567416,Fostering Ltd,05/09/2018,52000,Vol Assoc Grants  General,Childrens Services,Res Serv Agency Placements,727.50
3025364,5567399,Fostering Ltd,05/09/2018,52000,Vol Assoc Grants  General,Childrens Services,Res Serv Agency Placements,727.50
3025364,5567415,Fostering Ltd,05/09/2018,52000,Vol Assoc Grants  General,Childrens Services,Res Serv Agency Placements,727.50
3025364,5567400,Fostering Ltd,05/09/2018,52000,Vol Assoc Grants  General,Childrens Services,Res Serv Agency Placements,727.50
3025364,5567413,Fostering Ltd,05/09/2018,52000,Vol Assoc Grants  General,Childrens Services,Res Serv Agency Placements,727.50
3025364,5567401,Fostering Ltd,27/09/2018,52000,Vol Assoc Grants  General,Childrens Services,Res Serv Agency Placements,727.50
3025364,5557245,Fostering Ltd,10/09/2018,52000,Vol Assoc Grants  General,Childrens Services,Res Serv Agency Placements,727.50
3025364,5557243,Fostering Ltd,10/09/2018,52000,Vol Assoc Grants  General,Childrens Services,Res Serv Agency Placements,727.50
3025364,5557239,Fostering Ltd,13/09/2018,52000,Vol Assoc Grants  General,Childrens Services,Res Serv Agency Placements,727.50
3025364,5557240,Fostering Ltd,24/09/2018,52000,Vol Assoc Grants  General,Childrens Services,Res Serv Agency Placements,727.50
3025364,5567410,Fostering Ltd,10/09/2018,52000,Vol Assoc Grants  General,Childrens Services,Res Serv Agency Placements,727.50
3025364,5567403,Fostering Ltd,05/09/2018,52000,Vol Assoc Grants  General,Childrens Services,Res Serv Agency Placements,727.50
3025364,5570190,Fostering Ltd,06/09/2018,52000,Vol Assoc Grants  General,Childrens Services,Res Serv Agency Placements,727.50
3025364,5570188,Fostering Ltd,06/09/2018,52000,Vol Assoc Grants  General,Childrens Services,Res Serv Agency Placements,727.50
3025364,5567409,Fostering Ltd,05/09/2018,52000,Vol Assoc Grants  General,Childrens Services,Res Serv Agency Placements,799.00
3025364,5567386,Fostering Ltd,20/09/2018,52000,Vol Assoc Grants  General,Childrens Services,Res Serv Agency Placements,799.00
3025364,5567404,Fostering Ltd,10/09/2018,52000,Vol Assoc Grants  General,Childrens Services,Res Serv Agency Placements,799.00
3025364,5567383,Fostering Ltd,05/09/2018,52000,Vol Assoc Grants  General,Childrens Services,Res Serv Agency Placements,799.00
3025364,5567402,Fostering Ltd,10/09/2018,52000,Vol Assoc Grants  General,Childrens Services,Res Serv Agency Placements,799.00
3025364,5567475,Fostering Ltd,05/09/2018,52000,Vol Assoc Grants  General,Childrens Services,Res Serv Agency Placements,799.00
3025364,5567396,Fostering Ltd,05/09/2018,52000,Vol Assoc Grants  General,Childrens Services,Res Serv Agency Placements,799.00
3025364,5567474,Fostering Ltd,05/09/2018,52000,Vol Assoc Grants  General,Childrens Services,Res Serv Agency Placements,799.00
3025364,5567385,Fostering Ltd,05/09/2018,52000,Vol Assoc Grants  General,Childrens Services,Res Serv Agency Placements,799.00
3025364,5567472,Fostering Ltd,05/09/2018,52000,Vol Assoc Grants  General,Childrens Services,Res Serv Agency Placements,799.00
3025364,5567384,Fostering Ltd,05/09/2018,52000,Vol Assoc Grants  General,Childrens Services,Res Serv Agency Placements,799.00
3025364,5567471,Fostering Ltd,05/09/2018,52000,Vol Assoc Grants  General,Childrens Services,Res Serv Agency Placements,799.00
3025364,5567382,Fostering Ltd,10/09/2018,52000,Vol Assoc Grants  General,Childrens Services,Res Serv Agency Placements,799.00
3025364,5567470,Fostering Ltd,17/09/2018,52000,Vol Assoc Grants  General,Childrens Services,Res Serv Agency Placements,799.00
3025364,5567381,Fostering Ltd,27/09/2018,52000,Vol Assoc Grants  General,Childrens Services,Res Serv Agency Placements,799.00
3025364,5567371,Fostering Ltd,20/09/2018,52000,Vol Assoc Grants  General,Childrens Services,Res Serv Agency Placements,799.00
3025364,5567467,Fostering Ltd,05/09/2018,52000,Vol Assoc Grants  General,Childrens Services,Res Serv Agency Placements,799.00
3025364,5567366,Fostering Ltd,27/09/2018,52000,Vol Assoc Grants  General,Childrens Services,Res Serv Agency Placements,799.00
3025364,5567466,Fostering Ltd,24/09/2018,52000,Vol Assoc Grants  General,Childrens Services,Res Serv Agency Placements,799.00
3025364,5567364,Fostering Ltd,17/09/2018,52000,Vol Assoc Grants  General,Childrens Services,Res Serv Agency Placements,799.00
3025364,5567465,Fostering Ltd,13/09/2018,52000,Vol Assoc Grants  General,Childrens Services,Res Serv Agency Placements,799.00
3025364,5567361,Fostering Ltd,06/09/2018,52000,Vol Assoc Grants  General,Childrens Services,Res Serv Agency Placements,799.00
3025364,5567464,Fostering Ltd,20/09/2018,52000,Vol Assoc Grants  General,Childrens Services,Res Serv Agency Placements,799.00
3025364,5567358,Fostering Ltd,05/09/2018,52000,Vol Assoc Grants  General,Childrens Services,Res Serv Agency Placements,799.00
3025364,5567462,Fostering Ltd,24/09/2018,52000,Vol Assoc Grants  General,Childrens Services,Res Serv Agency Placements,799.00
3025364,5557247,Fostering Ltd,05/09/2018,52000,Vol Assoc Grants  General,Childrens Services,Res Serv Agency Placements,799.00
3025364,5557242,Fostering Ltd,27/09/2018,52000,Vol Assoc Grants  General,Childrens Services,Res Serv Agency Placements,799.00
3025364,5557236,Fostering Ltd,13/09/2018,52000,Vol Assoc Grants  General,Childrens Services,Res Serv Agency Placements,799.00
3025364,5557235,Fostering Ltd,13/09/2018,52000,Vol Assoc Grants  General,Childrens Services,Res Serv Agency Placements,799.00
3025364,5567355,Fostering Ltd,24/09/2018,52000,Vol Assoc Grants  General,Childrens Services,Res Serv Agency Placements,799.00
3025364,5567460,Fostering Ltd,17/09/2018,52000,Vol Assoc Grants  General,Childrens Services,Res Serv Agency Placements,799.00
3025364,5570191,Fostering Ltd,24/09/2018,52000,Vol Assoc Grants  General,Childrens Services,Res Serv Agency Placements,799.00
3025364,5570187,Fostering Ltd,17/09/2018,52000,Vol Assoc Grants  General,Childrens Services,Res Serv Agency Placements,799.00
2679341,5595557,Fostering People Ltd,05/09/2018,52000,Vol Assoc Grants  General,Childrens Services,Res Serv Agency Placements,"3,095.23"
2976300,5572539,Holistic Approach Ltd,05/09/2018,52000,Vol Assoc Grants  General,Childrens Services,Res Serv Agency Placements,"11,550.00"
2976300,5572541,Holistic Approach Ltd,05/09/2018,52000,Vol Assoc Grants  General,Childrens Services,Res Serv Agency Placements,"11,550.00"
